Workbook

Sheet Main
B10: 2018-03-07
B12: Sheet No. | C12: Template Name | D12: Summary
B13: 1 | C13: Future Intra | D13: For Intraday trading in F&O segment
B14: 2 | C14: Cash Intra | D14: For Intraday trading in cash market segment
B15: 3 | C15: Mid-cap Intra | D15: For Intraday trading in Mid-cap stocks
B16: 4 | C16: Bulk Deals | D16: Reveals Bulk Deals carried on NSE & BSE
B17: 5 | C17: Call Tracker

Sheet Future Intra
M5: Back to Main Page
A6: FOR INTRA DAY TRADING | L6: =Main!B10 -> 2018-03-07
A9: Sr.no | B9: Sector | C9: Scrip | D9: CLOSE RATE | E9: Pivot Point | F9: Supports | I9: Resistances
B10: Sector | D10: Point | E10: Point | F10: S1 | G10: S2 | H10: S3 | I10: R1 | J10: R2 | K10: R3 | L10: HIGH | M10: LOW | N10: OI | O10: % Change in OI
A11: 1 | B11: Index | C11: BANKNIFTY | D11: 24504.15 | E11: 24667.05 | F11: 24249.10 | G11: 23994.05 | H11: 23576.10 | I11: 24922.10 | J11: 25340.05 | K11: 25595.10 | L11: 25085 | M11: 24412 | N11: 1962080 | O11: 7.60%
A12: 2 | B12: Index | C12: NIFTY | D12: 10248.55 | E12: 10302.85 | F12: 10168.70 | G12: 10088.85 | H12: 9954.70 | I12: 10382.70 | J12: 10516.85 | K12: 10596.70 | L12: 10437 | M12: 10223 | N12: 26153550 | O12: 5.45%
A13: 3 | B13: Index | C13: NIFTYCPSE | D13: 2729.20 | E13: 909.73 | F13: 1819.47 | G13: 909.73 | H13: 1819.47 | I13: 1819.47 | J13: 909.73 | K13: 1819.47 | L13: 0 | M13: 0 | N13: 0 | O13: 0.00%
A14: 4 | B14: Index | C14: NIFTYINFRA | D14: 3662.60 | E14: 1220.87 | F14: 2441.73 | G14: 1220.87 | H14: 2441.73 | I14: 2441.73 | J14: 1220.87 | K14: 2441.73 | L14: 0 | M14: 0 | N14: 0 | O14: 0.00%
A15: 5 | B15: Index | C15: NIFTYIT | D15: 12714.00 | E15: 12777.67 | F15: 12598.33 | G15: 12482.67 | H15: 12303.33 | I15: 12893.33 | J15: 13072.67 | K15: 13188.33 | L15: 12957 | M15: 12662 | N15: 41000 | O15: 0.86%
A16: 6 | B16: Index | C16: NIFTYMID50 | D16: 5588.00 | E16: 1862.67 | F16: 3725.33 | G16: 1862.67 | H16: 3725.33 | I16: 3725.33 | J16: 1862.67 | K16: 3725.33 | L16: 0 | M16: 0 | N16: 513600 | O16: 0.00%
A17: 7 | B17: Index | C17: NIFTYPSE | D17: 4378.20 | E17: 1459.40 | F17: 2918.80 | G17: 1459.40 | H17: 2918.80 | I17: 2918.80 | J17: 1459.40 | K17: 2918.80 | L17: 0 | M17: 0 | N17: 0 | O17: 0.00%
A18: 8 | B18: Cement | C18: ACC | D18: 1589.70 | E18: 1597.60 | F18: 1577.20 | G18: 1564.70 | H18: 1544.30 | I18: 1610.10 | J18: 1630.50 | K18: 1643.00 | L18: 1618 | M18: 1585.1 | N18: 1346000 | O18: 0.84%
A19: 9 | B19: Others | C19: ADANIENT | D19: 186.90 | E19: 188.73 | F19: 173.47 | G19: 160.03 | H19: 144.77 | I19: 202.17 | J19: 217.43 | K19: 230.87 | L19: 204 | M19: 175.3 | N19: 17004000 | O19: 5.22%
A20: 10 | B20: Others | C20: ADANIPORTS | D20: 401.75 | E20: 403.98 | F20: 393.47 | G20: 385.18 | H20: 374.67 | I20: 412.27 | J20: 422.78 | K20: 431.07 | L20: 414.5 | M20: 395.7 | N20: 12120000 | O20: 0.48%
A21: 11 | B21: Power | C21: ADANIPOWER | D21: 29.50 | E21: 29.95 | F21: 28.35 | G21: 27.20 | H21: 25.60 | I21: 31.10 | J21: 32.70 | K21: 33.85 | L21: 31.55 | M21: 28.8 | N21: 102840000 | O21: -0.79%
A22: 12 | B22: Pharma | C22: AJANTPHARM | D22: 1335.00 | E22: 1345.25 | F22: 1313.50 | G22: 1292.00 | H22: 1260.25 | I22: 1366.75 | J22: 1398.50 | K22: 1420.00 | L22: 1377 | M22: 1323.75 | N22: 680000 | O22: 0.44%
A23: 13 | B23: Banking | C23: ALBK | D23: 48.90 | E23: 49.55 | F23: 47.65 | G23: 46.40 | H23: 44.50 | I23: 50.80 | J23: 52.70 | K23: 53.95 | L23: 51.45 | M23: 48.3 | N23: 18530000 | O23: 6.19%
A24: 14 | B24: Automobile | C24: AMARAJABAT | D24: 798.40 | E24: 801.43 | F24: 789.12 | G24: 779.83 | H24: 767.52 | I24: 810.72 | J24: 823.03 | K24: 832.32 | L24: 813.75 | M24: 792.15 | N24: 1304100 | O24: -1.69%
A25: 15 | B25: Cement | C25: AMBUJACEM | D25: 241.65 | E25: 244.07 | F25: 238.43 | G25: 235.22 | H25: 229.58 | I25: 247.28 | J25: 252.92 | K25: 256.13 | L25: 249.7 | M25: 240.85 | N25: 12910000 | O25: 4.49%
A26: 16 | B26: Banking | C26: ANDHRABANK | D26: 42.85 | E26: 43.42 | F26: 41.78 | G26: 40.72 | H26: 39.08 | I26: 44.48 | J26: 46.12 | K26: 47.18 | L26: 45.05 | M26: 42.35 | N26: 25560000 | O26: 2.40%
A27: 17 | B27: Others | C27: APOLLOHOSP | D27: 1148.95 | E27: 1155.42 | F27: 1132.08 | G27: 1115.22 | H27: 1091.88 | I27: 1172.28 | J27: 1195.62 | K27: 1212.48 | L27: 1178.75 | M27: 1138.55 | N27: 916500 | O27: 1.95%
A28: 18 | B28: Automobile | C28: APOLLOTYRE | D28: 258.15 | E28: 259.15 | F28: 254.55 | G28: 250.95 | H28: 246.35 | I28: 262.75 | J28: 267.35 | K28: 270.95 | L28: 263.75 | M28: 255.55 | N28: 12837000 | O28: -3.73%
A29: 19 | B29: Textile | C29: ARVIND | D29: 399.90 | E29: 403.43 | F29: 394.07 | G29: 388.23 | H29: 378.87 | I29: 409.27 | J29: 418.63 | K29: 424.47 | L29: 412.8 | M29: 397.6 | N29: 5726000 | O29: 0.42%
A30: 20 | B30: Automobile | C30: ASHOKLEY | D30: 140.05 | E30: 140.93 | F30: 138.62 | G30: 137.18 | H30: 134.87 | I30: 142.37 | J30: 144.68 | K30: 146.12 | L30: 143.25 | M30: 139.5 | N30: 56259000 | O30: -1.64%
A31: 21 | B31: FMCG | C31: ASIANPAINT | D31: 1101.85 | E31: 1104.05 | F31: 1098.30 | G31: 1094.75 | H31: 1089.00 | I31: 1107.60 | J31: 1113.35 | K31: 1116.90 | L31: 1109.8 | M31: 1100.5 | N31: 4073400 | O31: 2.07%
A32: 22 | B32: Pharma | C32: AUROPHARMA | D32: 608.20 | E32: 611.32 | F32: 600.43 | G32: 592.67 | H32: 581.78 | I32: 619.08 | J32: 629.97 | K32: 637.73 | L32: 622.2 | M32: 603.55 | N32: 23203200 | O32: -2.12%
A33: 23 | B33: Banking | C33: AXISBANK | D33: 517.20 | E33: 520.40 | F33: 509.80 | G33: 502.40 | H33: 491.80 | I33: 527.80 | J33: 538.40 | K33: 545.80 | L33: 531 | M33: 513 | N33: 45502800 | O33: 1.03%
A34: 24 | B34: Automobile | C34: BAJAJ-AUTO | D34: 2901.90 | E34: 2923.07 | F34: 2865.63 | G34: 2829.37 | H34: 2771.93 | I34: 2959.33 | J34: 3016.77 | K34: 3053.03 | L34: 2980.5 | M34: 2886.8 | N34: 2230250 | O34: -0.17%
A35: 25 | B35: Others | C35: BAJAJFINSV | D35: 4985.15 | E35: 5020.98 | F35: 4932.97 | G35: 4880.78 | H35: 4792.77 | I35: 5073.17 | J35: 5161.18 | K35: 5213.37 | L35: 5109 | M35: 4968.8 | N35: 738000 | O35: -0.54%
A36: 26 | B36: Finance | C36: BAJFINANCE | D36: 1638.95 | E36: 1648.03 | F36: 1622.07 | G36: 1605.18 | H36: 1579.22 | I36: 1664.92 | J36: 1690.88 | K36: 1707.77 | L36: 1674 | M36: 1631.15 | N36: 5650500 | O36: -2.04%
A37: 27 | B37: Others | C37: BALKRISIND | D37: 1017.05 | E37: 1026.68 | F37: 1002.37 | G37: 987.68 | H37: 963.37 | I37: 1041.37 | J37: 1065.68 | K37: 1080.37 | L37: 1051 | M37: 1012 | N37: 1159200 | O37: 0.07%
A38: 28 | B38: Others | C38: BALRAMCHIN | D38: 100.45 | E38: 102.87 | F38: 96.48 | G38: 92.52 | H38: 86.13 | I38: 106.83 | J38: 113.22 | K38: 117.18 | L38: 109.25 | M38: 98.9 | N38: 17055500 | O38: -1.97%
A39: 29 | B39: Banking | C39: BANKBARODA | D39: 135.50 | E39: 137.20 | F39: 132.70 | G39: 129.90 | H39: 125.40 | I39: 140.00 | J39: 144.50 | K39: 147.30 | L39: 141.7 | M39: 134.4 | N39: 64876000 | O39: 0.02%
A40: 30 | B40: Banking | C40: BANKINDIA | D40: 103.60 | E40: 106.33 | F40: 99.27 | G40: 94.93 | H40: 87.87 | I40: 110.67 | J40: 117.73 | K40: 122.07 | L40: 113.4 | M40: 102 | N40: 27168000 | O40: 6.02%
A41: 31 | B41: FMCG | C41: BATAINDIA | D41: 715.25 | E41: 717.42 | F41: 707.83 | G41: 700.42 | H41: 690.83 | I41: 724.83 | J41: 734.42 | K41: 741.83 | L41: 727 | M41: 710 | N41: 2009700 | O41: -2.92%
A42: 32 | B42: Capital_Goods | C42: BEL | D42: 152.15 | E42: 153.73 | F42: 149.72 | G42: 147.28 | H42: 143.27 | I42: 156.17 | J42: 160.18 | K42: 162.62 | L42: 157.75 | M42: 151.3 | N42: 24309450 | O42: 0.10%
A43: 33 | B43: Infrastructure | C43: BEML | D43: 1259.65 | E43: 1275.23 | F43: 1225.47 | G43: 1191.28 | H43: 1141.52 | I43: 1309.42 | J43: 1359.18 | K43: 1393.37 | L43: 1325 | M43: 1241.05 | N43: 2266500 | O43: 3.11%
A44: 34 | B44: Others | C44: BERGEPAINT | D44: 242.60 | E44: 244.00 | F44: 239.60 | G44: 236.60 | H44: 232.20 | I44: 247.00 | J44: 251.40 | K44: 254.40 | L44: 248.4 | M44: 241 | N44: 1240800 | O44: -2.08%
A45: 35 | B45: Finance | C45: BHARATFIN | D45: 1041.20 | E45: 1044.73 | F45: 1033.07 | G45: 1024.93 | H45: 1013.27 | I45: 1052.87 | J45: 1064.53 | K45: 1072.67 | L45: 1056.4 | M45: 1036.6 | N45: 5310000 | O45: 0.97%
A46: 36 | B46: Automobile | C46: BHARATFORG | D46: 761.35 | E46: 764.93 | F46: 754.07 | G46: 746.78 | H46: 735.92 | I46: 772.22 | J46: 783.08 | K46: 790.37 | L46: 775.8 | M46: 757.65 | N46: 6553200 | O46: -2.08%
A47: 37 | B47: Telecom | C47: BHARTIARTL | D47: 414.85 | E47: 418.53 | F47: 408.57 | G47: 402.28 | H47: 392.32 | I47: 424.82 | J47: 434.78 | K47: 441.07 | L47: 428.5 | M47: 412.25 | N47: 58872700 | O47: 0.22%
A48: 38 | B48: Capital_Goods | C48: BHEL | D48: 88.50 | E48: 89.53 | F48: 87.02 | G48: 85.53 | H48: 83.02 | I48: 91.02 | J48: 93.53 | K48: 95.02 | L48: 92.05 | M48: 88.05 | N48: 49740000 | O48: 2.84%
A49: 39 | B49: Pharma | C49: BIOCON | D49: 632.20 | E49: 632.93 | F49: 622.27 | G49: 612.33 | H49: 601.67 | I49: 642.87 | J49: 653.53 | K49: 663.47 | L49: 643.6 | M49: 623 | N49: 7315200 | O49: -0.90%
A50: 40 | B50: Automobile | C50: BOSCHLTD | D50: 18074.50 | E50: 18154.98 | F50: 17910.02 | G50: 17745.53 | H50: 17500.57 | I50: 18319.47 | J50: 18564.43 | K50: 18728.92 | L50: 18399.95 | M50: 17990.5 | N50: 144075 | O50: 2.45%
A51: 41 | B51: Oil_Gas | C51: BPCL | D51: 441.65 | E51: 442.25 | F51: 433.70 | G51: 425.75 | H51: 417.20 | I51: 450.20 | J51: 458.75 | K51: 466.70 | L51: 450.8 | M51: 434.3 | N51: 9685800 | O51: -3.55%
A52: 42 | B52: FMCG | C52: BRITANNIA | D52: 4831.30 | E52: 4859.75 | F52: 4771.55 | G52: 4711.80 | H52: 4623.60 | I52: 4919.50 | J52: 5007.70 | K52: 5067.45 | L52: 4947.95 | M52: 4800 | N52: 865000 | O52: -1.17%
A53: 43 | B53: Pharma | C53: CADILAHC | D53: 389.20 | E53: 391.30 | F53: 384.60 | G53: 380.00 | H53: 373.30 | I53: 395.90 | J53: 402.60 | K53: 407.20 | L53: 398 | M53: 386.7 | N53: 6107200 | O53: -1.42%
A54: 44 | B54: Banking | C54: CANBK | D54: 268.85 | E54: 273.37 | F54: 260.73 | G54: 252.62 | H54: 239.98 | I54: 281.48 | J54: 294.12 | K54: 302.23 | L54: 286 | M54: 265.25 | N54: 14193600 | O54: 7.00%
A55: 45 | B55: Others | C55: CANFINHOME | D55: 537.50 | E55: 542.42 | F55: 529.28 | G55: 521.07 | H55: 507.93 | I55: 550.63 | J55: 563.77 | K55: 571.98 | L55: 555.55 | M55: 534.2 | N55: 4995000 | O55: -0.42%
A56: 46 | B56: Finance | C56: CAPF | D56: 649.50 | E56: 655.03 | F56: 640.12 | G56: 630.73 | H56: 615.82 | I56: 664.42 | J56: 679.33 | K56: 688.72 | L56: 669.95 | M56: 645.65 | N56: 7303200 | O56: 0.15%
A57: 47 | B57: Oil_Gas | C57: CASTROLIND | D57: 202.40 | E57: 202.68 | F57: 200.02 | G57: 197.63 | H57: 194.97 | I57: 205.07 | J57: 207.73 | K57: 210.12 | L57: 205.35 | M57: 200.3 | N57: 13006000 | O57: -0.17%
A58: 48 | B58: Automobile | C58: CEATLTD | D58: 1572.45 | E58: 1579.82 | F58: 1560.63 | G58: 1548.82 | H58: 1529.63 | I58: 1591.63 | J58: 1610.82 | K58: 1622.63 | L58: 1599 | M58: 1568 | N58: 984550 | O58: -3.89%
A59: 49 | B59: Textile | C59: CENTURYTEX | D59: 1182.15 | E59: 1193.98 | F59: 1162.17 | G59: 1142.18 | H59: 1110.37 | I59: 1213.97 | J59: 1245.78 | K59: 1265.77 | L59: 1225.8 | M59: 1174 | N59: 6368450 | O59: 1.12%
A60: 50 | B60: Power | C60: CESC | D60: 971.00 | E60: 979.45 | F60: 957.40 | G60: 943.80 | H60: 921.75 | I60: 993.05 | J60: 1015.10 | K60: 1028.70 | L60: 1001.5 | M60: 965.85 | N60: 6285400 | O60: 1.13%
A61: 51 | B61: Power | C61: CGPOWER | D61: 79.75 | E61: 80.23 | F61: 78.82 | G61: 77.88 | H61: 76.47 | I61: 81.17 | J61: 82.58 | K61: 83.52 | L61: 81.65 | M61: 79.3 | N61: 23052000 | O61: -1.18%
A62: 52 | B62: Others | C62: CHENNPETRO | D62: 354.30 | E62: 357.77 | F62: 349.13 | G62: 343.97 | H62: 335.33 | I62: 362.93 | J62: 371.57 | K62: 376.73 | L62: 366.4 | M62: 352.6 | N62: 2653500 | O62: -0.28%
A63: 53 | B63: Others | C63: CHOLAFIN | D63: 1435.00 | E63: 1445.50 | F63: 1418.50 | G63: 1402.00 | H63: 1375.00 | I63: 1462.00 | J63: 1489.00 | K63: 1505.50 | L63: 1472.5 | M63: 1429 | N63: 511000 | O63: 0.20%
A64: 54 | B64: Pharma | C64: CIPLA | D64: 584.45 | E64: 585.47 | F64: 580.68 | G64: 576.92 | H64: 572.13 | I64: 589.23 | J64: 594.02 | K64: 597.78 | L64: 590.25 | M64: 581.7 | N64: 8915000 | O64: -3.30%
A65: 55 | B65: Others | C65: COALINDIA | D65: 285.25 | E65: 284.65 | F65: 281.85 | G65: 278.45 | H65: 275.65 | I65: 288.05 | J65: 290.85 | K65: 294.25 | L65: 287.45 | M65: 281.25 | N65: 16000600 | O65: 2.83%
A66: 56 | B66: FMCG | C66: COLPAL | D66: 1036.55 | E66: 1039.52 | F66: 1029.03 | G66: 1021.52 | H66: 1011.03 | I66: 1047.03 | J66: 1057.52 | K66: 1065.03 | L66: 1050 | M66: 1032 | N66: 1166200 | O66: 0.18%
A67: 57 | B67: Others | C67: CONCOR | D67: 1241.00 | E67: 1255.43 | F67: 1215.87 | G67: 1190.73 | H67: 1151.17 | I67: 1280.57 | J67: 1320.13 | K67: 1345.27 | L67: 1295 | M67: 1230.3 | N67: 1022500 | O67: 5.01%
A68: 58 | B68: Capital_Goods | C68: CUMMINSIND | D68: 786.45 | E68: 792.43 | F68: 777.22 | G68: 767.98 | H68: 752.77 | I68: 801.67 | J68: 816.88 | K68: 826.12 | L68: 807.65 | M68: 783.2 | N68: 651600 | O68: -0.09%
A69: 59 | B69: FMCG | C69: DABUR | D69: 323.40 | E69: 325.23 | F69: 320.07 | G69: 316.73 | H69: 311.57 | I69: 328.57 | J69: 333.73 | K69: 337.07 | L69: 330.4 | M69: 321.9 | N69: 12982500 | O69: -0.48%
A70: 60 | B70: Cement | C70: DALMIABHA | D70: 2671.10 | E70: 2683.72 | F70: 2649.43 | G70: 2627.77 | H70: 2593.48 | I70: 2705.38 | J70: 2739.67 | K70: 2761.33 | L70: 2718 | M70: 2662.05 | N70: 887400 | O70: -0.50%
A71: 61 | B71: Banking | C71: DCBBANK | D71: 160.90 | E71: 161.87 | F71: 158.23 | G71: 155.57 | H71: 151.93 | I71: 164.53 | J71: 168.17 | K71: 170.83 | L71: 165.5 | M71: 159.2 | N71: 5490000 | O71: -2.71%
A72: 62 | B72: Finance | C72: DHFL | D72: 508.15 | E72: 517.93 | F72: 488.07 | G72: 467.98 | H72: 438.12 | I72: 538.02 | J72: 567.88 | K72: 587.97 | L72: 547.8 | M72: 497.85 | N72: 30037500 | O72: 0.46%
A73: 63 | B73: Media | C73: DISHTV | D73: 67.10 | E73: 67.45 | F73: 63.55 | G73: 60.00 | H73: 56.10 | I73: 71.00 | J73: 74.90 | K73: 78.45 | L73: 71.35 | M73: 63.9 | N73: 49896000 | O73: -3.07%
A74: 64 | B74: Pharma | C74: DIVISLAB | D74: 1012.70 | E74: 1015.30 | F74: 1006.95 | G74: 1001.20 | H74: 992.85 | I74: 1021.05 | J74: 1029.40 | K74: 1035.15 | L74: 1023.65 | M74: 1009.55 | N74: 2147200 | O74: 1.51%
A75: 65 | B75: Realty | C75: DLF | D75: 217.35 | E75: 219.90 | F75: 212.10 | G75: 206.85 | H75: 199.05 | I75: 225.15 | J75: 232.95 | K75: 238.20 | L75: 227.7 | M75: 214.65 | N75: 48685000 | O75: 1.44%
A76: 66 | B76: Pharma | C76: DRREDDY | D76: 2180.30 | E76: 2193.05 | F76: 2157.30 | G76: 2134.30 | H76: 2098.55 | I76: 2216.05 | J76: 2251.80 | K76: 2274.80 | L76: 2228.8 | M76: 2170.05 | N76: 4008750 | O76: -1.44%
A77: 67 | B77: Automobile | C77: EICHERMOT | D77: 27495.45 | E77: 27513.97 | F77: 27231.58 | G77: 26967.72 | H77: 26685.33 | I77: 27777.83 | J77: 28060.22 | K77: 28324.08 | L77: 27796.35 | M77: 27250.1 | N77: 222250 | O77: -2.71%
A78: 68 | B78: Infrastructure | C78: ENGINERSIN | D78: 162.40 | E78: 164.17 | F78: 159.33 | G78: 156.27 | H78: 151.43 | I78: 167.23 | J78: 172.07 | K78: 175.13 | L78: 169 | M78: 161.1 | N78: 8820000 | O78: 1.04%
A79: 69 | B79: Finance | C79: EQUITAS | D79: 141.90 | E79: 143.23 | F79: 139.02 | G79: 136.13 | H79: 131.92 | I79: 146.12 | J79: 150.33 | K79: 153.22 | L79: 147.45 | M79: 140.35 | N79: 20361600 | O79: 2.46%
A80: 70 | B80: Automobile | C80: ESCORTS | D80: 862.15 | E80: 869.62 | F80: 850.03 | G80: 837.92 | H80: 818.33 | I80: 881.73 | J80: 901.32 | K80: 913.43 | L80: 889.2 | M80: 857.5 | N80: 2776400 | O80: -5.36%
A81: 71 | B81: Automobile | C81: EXIDEIND | D81: 208.15 | E81: 209.28 | F81: 205.97 | G81: 203.78 | H81: 200.47 | I81: 211.47 | J81: 214.78 | K81: 216.97 | L81: 212.6 | M81: 207.1 | N81: 11744000 | O81: -5.23%
A82: 72 | B82: Banking | C82: FEDERALBNK | D82: 91.85 | E82: 92.70 | F82: 90.70 | G82: 89.55 | H82: 87.55 | I82: 93.85 | J82: 95.85 | K82: 97.00 | L82: 94.7 | M82: 91.55 | N82: 71368000 | O82: -0.13%
A83: 73 | B83: Others | C83: FORTIS | D83: 161.35 | E83: 162.58 | F83: 157.67 | G83: 153.98 | H83: 149.07 | I83: 166.27 | J83: 171.18 | K83: 174.87 | L83: 167.5 | M83: 158.9 | N83: 40337500 | O83: -8.29%
A84: 74 | B84: Oil_Gas | C84: GAIL | D84: 440.40 | E84: 442.20 | F84: 436.50 | G84: 432.60 | H84: 426.90 | I84: 446.10 | J84: 451.80 | K84: 455.70 | L84: 447.9 | M84: 438.3 | N84: 12448000 | O84: 1.52%
A85: 75 | B85: Pharma | C85: GLENMARK | D85: 560.20 | E85: 561.85 | F85: 554.00 | G85: 547.80 | H85: 539.95 | I85: 568.05 | J85: 575.90 | K85: 582.10 | L85: 569.7 | M85: 555.65 | N85: 6103800 | O85: -2.77%
A86: 76 | B86: Infrastructure | C86: GMRINFRA | D86: 18.05 | E86: 18.23 | F86: 17.52 | G86: 16.98 | H86: 16.27 | I86: 18.77 | J86: 19.48 | K86: 20.02 | L86: 18.95 | M86: 17.7 | N86: 297495000 | O86: -0.59%
A87: 77 | B87: Others | C87: GODFRYPHLP | D87: 841.60 | E87: 849.00 | F87: 829.00 | G87: 816.40 | H87: 796.40 | I87: 861.60 | J87: 881.60 | K87: 894.20 | L87: 869 | M87: 836.4 | N87: 729000 | O87: 0.90%
A88: 78 | B88: FMCG | C88: GODREJCP | D88: 1087.50 | E88: 1092.35 | F88: 1070.70 | G88: 1053.90 | H88: 1032.25 | I88: 1109.15 | J88: 1130.80 | K88: 1147.60 | L88: 1114 | M88: 1075.55 | N88: 2186400 | O88: 2.09%
A89: 79 | B89: FMCG | C89: GODREJIND | D89: 544.10 | E89: 547.58 | F89: 539.52 | G89: 534.93 | H89: 526.87 | I89: 552.17 | J89: 560.23 | K89: 564.82 | L89: 555.65 | M89: 543 | N89: 2187000 | O89: -0.21%
A90: 80 | B90: Pharma | C90: GRANULES | D90: 111.15 | E90: 111.62 | F90: 107.38 | G90: 103.62 | H90: 99.38 | I90: 115.38 | J90: 119.62 | K90: 123.38 | L90: 115.85 | M90: 107.85 | N90: 16200000 | O90: -0.09%
A91: 81 | B91: Cement | C91: GRASIM | D91: 1135.70 | E91: 1139.00 | F91: 1123.70 | G91: 1111.70 | H91: 1096.40 | I91: 1151.00 | J91: 1166.30 | K91: 1178.30 | L91: 1154.3 | M91: 1127 | N91: 3900750 | O91: 0.60%
A92: 82 | B92: Others | C92: GSFC | D92: 124.25 | E92: 125.60 | F92: 121.70 | G92: 119.15 | H92: 115.25 | I92: 128.15 | J92: 132.05 | K92: 134.60 | L92: 129.5 | M92: 123.05 | N92: 19786500 | O92: -0.25%
A93: 83 | B93: Others | C93: HAVELLS | D93: 501.40 | E93: 504.78 | F93: 494.62 | G93: 487.83 | H93: 477.67 | I93: 511.57 | J93: 521.73 | K93: 528.52 | L93: 514.95 | M93: 498 | N93: 4768000 | O93: 1.06%
A94: 84 | B94: Others | C94: HCC | D94: 32.35 | E94: 32.73 | F94: 31.57 | G94: 30.78 | H94: 29.62 | I94: 33.52 | J94: 34.68 | K94: 35.47 | L94: 33.9 | M94: 31.95 | N94: 52770000 | O94: -1.87%
A95: 85 | B95: Technology | C95: HCLTECH | D95: 933.45 | E95: 939.05 | F95: 923.10 | G95: 912.75 | H95: 896.80 | I95: 949.40 | J95: 965.35 | K95: 975.70 | L95: 955 | M95: 928.7 | N95: 11424700 | O95: 0.79%
A96: 86 | B96: Finance | C96: HDFC | D96: 1781.35 | E96: 1786.97 | F96: 1756.38 | G96: 1731.42 | H96: 1700.83 | I96: 1811.93 | J96: 1842.52 | K96: 1867.48 | L96: 1817.55 | M96: 1762 | N96: 17802500 | O96: 2.12%
A97: 87 | B97: Banking | C97: HDFCBANK | D97: 1852.00 | E97: 1859.45 | F97: 1836.95 | G97: 1821.90 | H97: 1799.40 | I97: 1874.50 | J97: 1897.00 | K97: 1912.05 | L97: 1881.95 | M97: 1844.4 | N97: 16752000 | O97: 1.33%
A98: 88 | B98: Realty | C98: HDIL | D98: 46.45 | E98: 46.90 | F98: 45.60 | G98: 44.75 | H98: 43.45 | I98: 47.75 | J98: 49.05 | K98: 49.90 | L98: 48.2 | M98: 46.05 | N98: 37134000 | O98: -2.92%
A99: 89 | B99: Automobile | C99: HEROMOTOCO | D99: 3552.50 | E99: 3562.08 | F99: 3529.57 | G99: 3506.63 | H99: 3474.12 | I99: 3585.02 | J99: 3617.53 | K99: 3640.47 | L99: 3594.6 | M99: 3539.15 | N99: 1399800 | O99: -1.34%
A100: 90 | B100: Technology | C100: HEXAWARE | D100: 344.35 | E100: 347.18 | F100: 336.97 | G100: 329.58 | H100: 319.37 | I100: 354.57 | J100: 364.78 | K100: 372.17 | L100: 357.4 | M100: 339.8 | N100: 4086000 | O100: -11.15%
A101: 91 | B101: Metals | C101: HINDALCO | D101: 226.65 | E101: 229.22 | F101: 222.33 | G101: 218.02 | H101: 211.13 | I101: 233.53 | J101: 240.42 | K101: 244.73 | L101: 236.1 | M101: 224.9 | N101: 50505000 | O101: 1.13%
A102: 92 | B102: Oil_Gas | C102: HINDPETRO | D102: 365.30 | E102: 368.47 | F102: 360.03 | G102: 354.77 | H102: 346.33 | I102: 373.73 | J102: 382.17 | K102: 387.43 | L102: 376.9 | M102: 363.2 | N102: 22327200 | O102: 1.34%
A103: 93 | B103: FMCG | C103: HINDUNILVR | D103: 1296.25 | E103: 1300.37 | F103: 1288.88 | G103: 1281.52 | H103: 1270.03 | I103: 1307.73 | J103: 1319.22 | K103: 1326.58 | L103: 1311.85 | M103: 1293 | N103: 8775000 | O103: 1.28%
A104: 94 | B104: Metals | C104: HINDZINC | D104: 308.55 | E104: 310.02 | F104: 304.73 | G104: 300.92 | H104: 295.63 | I104: 313.83 | J104: 319.12 | K104: 322.93 | L104: 315.3 | M104: 306.2 | N104: 14358400 | O104: -0.36%
A105: 95 | B105: Finance | C105: IBULHSGFIN | D105: 1239.80 | E105: 1250.20 | F105: 1220.60 | G105: 1201.40 | H105: 1171.80 | I105: 1269.40 | J105: 1299.00 | K105: 1318.20 | L105: 1279.8 | M105: 1231 | N105: 15910000 | O105: 2.35%
A106: 96 | B106: Banking | C106: ICICIBANK | D106: 296.20 | E106: 300.12 | F106: 291.23 | G106: 286.27 | H106: 277.38 | I106: 305.08 | J106: 313.97 | K106: 318.93 | L106: 309 | M106: 295.15 | N106: 81367000 | O106: 4.25%
A107: 97 | B107: Others | C107: ICICIPRULI | D107: 395.75 | E107: 397.80 | F107: 391.60 | G107: 387.45 | H107: 381.25 | I107: 401.95 | J107: 408.15 | K107: 412.30 | L107: 404 | M107: 393.65 | N107: 5081700 | O107: 0.33%
A108: 98 | B108: Banking | C108: IDBI | D108: 82.75 | E108: 84.05 | F108: 79.00 | G108: 75.25 | H108: 70.20 | I108: 87.80 | J108: 92.85 | K108: 96.60 | L108: 89.1 | M108: 80.3 | N108: 56580000 | O108: -4.94%
A109: 99 | B109: Telecom | C109: IDEA | D109: 82.15 | E109: 82.35 | F109: 81.30 | G109: 80.45 | H109: 79.40 | I109: 83.20 | J109: 84.25 | K109: 85.10 | L109: 83.4 | M109: 81.5 | N109: 103061000 | O109: -0.41%
A110: 100 | B110: Finance | C110: IDFC | D110: 50.15 | E110: 50.65 | F110: 49.20 | G110: 48.25 | H110: 46.80 | I110: 51.60 | J110: 53.05 | K110: 54.00 | L110: 52.1 | M110: 49.7 | N110: 175784400 | O110: 0.15%
A111: 101 | B111: Banking | C111: IDFCBANK | D111: 50.25 | E111: 50.65 | F111: 49.60 | G111: 48.95 | H111: 47.90 | I111: 51.30 | J111: 52.35 | K111: 53.00 | L111: 51.7 | M111: 50 | N111: 172125000 | O111: 0.25%
A112: 102 | B112: Finance | C112: IFCI | D112: 21.75 | E112: 21.98 | F112: 21.32 | G112: 20.88 | H112: 20.22 | I112: 22.42 | J112: 23.08 | K112: 23.52 | L112: 22.65 | M112: 21.55 | N112: 84018000 | O112: 1.35%
A113: 103 | B113: Oil_Gas | C113: IGL | D113: 310.65 | E113: 312.20 | F113: 306.75 | G113: 302.85 | H113: 297.40 | I113: 316.10 | J113: 321.55 | K113: 325.45 | L113: 317.65 | M113: 308.3 | N113: 4911500 | O113: -11.80%
A114: 104 | B114: Cement | C114: INDIACEM | D114: 148.95 | E114: 151.33 | F114: 145.62 | G114: 142.28 | H114: 136.57 | I114: 154.67 | J114: 160.38 | K114: 163.72 | L114: 157.05 | M114: 148 | N114: 24699500 | O114: -1.20%
A115: 105 | B115: Banking | C115: INDIANB | D115: 291.10 | E115: 297.28 | F115: 279.82 | G115: 268.53 | H115: 251.07 | I115: 308.57 | J115: 326.03 | K115: 337.32 | L115: 314.75 | M115: 286 | N115: 4988000 | O115: 5.23%
A116: 106 | B116: Others | C116: INDIGO | D116: 1283.25 | E116: 1295.82 | F116: 1265.68 | G116: 1248.12 | H116: 1217.98 | I116: 1313.38 | J116: 1343.52 | K116: 1361.08 | L116: 1325.95 | M116: 1278.25 | N116: 2339400 | O116: -1.27%
A117: 107 | B117: Banking | C117: INDUSINDBK | D117: 1699.60 | E117: 1704.95 | F117: 1687.15 | G117: 1674.70 | H117: 1656.90 | I117: 1717.40 | J117: 1735.20 | K117: 1747.65 | L117: 1722.75 | M117: 1692.5 | N117: 5933700 | O117: 4.44%
A118: 108 | B118: Technology | C118: INFIBEAM | D118: 154.30 | E118: 154.90 | F118: 152.80 | G118: 151.30 | H118: 149.20 | I118: 156.40 | J118: 158.50 | K118: 160.00 | L118: 157 | M118: 153.4 | N118: 35672000 | O118: -0.91%
A119: 109 | B119: Telecom | C119: INFRATEL | D119: 331.15 | E119: 331.47 | F119: 326.08 | G119: 321.02 | H119: 315.63 | I119: 336.53 | J119: 341.92 | K119: 346.98 | L119: 336.85 | M119: 326.4 | N119: 9521700 | O119: -9.43%
A120: 110 | B120: Technology | C120: INFY | D120: 1151.75 | E120: 1155.72 | F120: 1143.08 | G120: 1134.42 | H120: 1121.78 | I120: 1164.38 | J120: 1177.02 | K120: 1185.68 | L120: 1168.35 | M120: 1147.05 | N120: 39341400 | O120: -0.89%
A121: 111 | B121: Oil_Gas | C121: IOC | D121: 376.90 | E121: 379.93 | F121: 372.62 | G121: 368.33 | H121: 361.02 | I121: 384.22 | J121: 391.53 | K121: 395.82 | L121: 387.25 | M121: 375.65 | N121: 18096000 | O121: 2.31%
A122: 112 | B122: Infrastructure | C122: IRB | D122: 216.80 | E122: 218.72 | F122: 213.83 | G122: 210.87 | H122: 205.98 | I122: 221.68 | J122: 226.57 | K122: 229.53 | L122: 223.6 | M122: 215.75 | N122: 14832500 | O122: 0.15%
A123: 113 | B123: FMCG | C123: ITC | D123: 257.05 | E123: 258.68 | F123: 254.42 | G123: 251.78 | H123: 247.52 | I123: 261.32 | J123: 265.58 | K123: 268.22 | L123: 262.95 | M123: 256.05 | N123: 92448000 | O123: 1.92%
A124: 114 | B124: Others | C124: JETAIRWAYS | D124: 721.50 | E124: 730.05 | F124: 707.10 | G124: 692.70 | H124: 669.75 | I124: 744.45 | J124: 767.40 | K124: 781.80 | L124: 753 | M124: 715.65 | N124: 6046800 | O124: 1.12%
A125: 115 | B125: Metals | C125: JINDALSTEL | D125: 234.70 | E125: 238.92 | F125: 228.43 | G125: 222.17 | H125: 211.68 | I125: 245.18 | J125: 255.67 | K125: 261.93 | L125: 249.4 | M125: 232.65 | N125: 39415500 | O125: 3.07%
A126: 116 | B126: Others | C126: JISLJALEQS | D126: 109.25 | E126: 110.98 | F126: 106.47 | G126: 103.68 | H126: 99.17 | I126: 113.77 | J126: 118.28 | K126: 121.07 | L126: 115.5 | M126: 108.2 | N126: 40788000 | O126: 0.20%
A127: 117 | B127: Realty | C127: JPASSOCIAT | D127: 16.10 | E127: 16.42 | F127: 15.28 | G127: 14.47 | H127: 13.33 | I127: 17.23 | J127: 18.37 | K127: 19.18 | L127: 17.55 | M127: 15.6 | N127: 227256000 | O127: 2.64%
A128: 118 | B128: Metals | C128: JSWSTEEL | D128: 294.45 | E128: 297.02 | F128: 290.63 | G128: 286.82 | H128: 280.43 | I128: 300.83 | J128: 307.22 | K128: 311.03 | L128: 303.4 | M128: 293.2 | N128: 62511000 | O128: 2.06%
A129: 119 | B129: Others | C129: JUBLFOOD | D129: 1991.95 | E129: 2003.98 | F129: 1963.27 | G129: 1934.58 | H129: 1893.87 | I129: 2032.67 | J129: 2073.38 | K129: 2102.07 | L129: 2044.7 | M129: 1975.3 | N129: 2384000 | O129: -3.36%
A130: 120 | B130: Others | C130: JUSTDIAL | D130: 440.50 | E130: 443.80 | F130: 434.10 | G130: 427.70 | H130: 418.00 | I130: 450.20 | J130: 459.90 | K130: 466.30 | L130: 453.5 | M130: 437.4 | N130: 3778600 | O130: 4.41%
A131: 121 | B131: Others | C131: KAJARIACER | D131: 556.55 | E131: 560.60 | F131: 547.95 | G131: 539.35 | H131: 526.70 | I131: 569.20 | J131: 581.85 | K131: 590.45 | L131: 573.25 | M131: 552 | N131: 1863200 | O131: -1.65%
A132: 122 | B132: Banking | C132: KOTAKBANK | D132: 1086.35 | E132: 1091.57 | F132: 1073.78 | G132: 1061.22 | H132: 1043.43 | I132: 1104.13 | J132: 1121.92 | K132: 1134.48 | L132: 1109.35 | M132: 1079 | N132: 11741600 | O132: 0.36%
A133: 123 | B133: Technology | C133: KPIT | D133: 215.45 | E133: 217.67 | F133: 212.13 | G133: 208.82 | H133: 203.28 | I133: 220.98 | J133: 226.52 | K133: 229.83 | L133: 223.2 | M133: 214.35 | N133: 10656000 | O133: -6.11%
A134: 124 | B134: Others | C134: KSCL | D134: 478.00 | E134: 484.78 | F134: 468.72 | G134: 459.43 | H134: 443.37 | I134: 494.07 | J134: 510.13 | K134: 519.42 | L134: 500.85 | M134: 475.5 | N134: 3021000 | O134: -4.91%
A135: 125 | B135: Banking | C135: KTKBANK | D135: 128.25 | E135: 129.42 | F135: 126.08 | G135: 123.92 | H135: 120.58 | I135: 131.58 | J135: 134.92 | K135: 137.08 | L135: 132.75 | M135: 127.25 | N135: 21584000 | O135: -0.54%
A136: 126 | B136: Finance | C136: L&TFH | D136: 159.60 | E136: 160.65 | F136: 157.55 | G136: 155.50 | H136: 152.40 | I136: 162.70 | J136: 165.80 | K136: 167.85 | L136: 163.75 | M136: 158.6 | N136: 35842500 | O136: 0.35%
A137: 127 | B137: Finance | C137: LICHSGFIN | D137: 513.55 | E137: 516.48 | F137: 508.17 | G137: 502.78 | H137: 494.47 | I137: 521.87 | J137: 530.18 | K137: 535.57 | L137: 524.8 | M137: 511.1 | N137: 15486900 | O137: -0.30%
A138: 128 | B138: Capital_Goods | C138: LT | D138: 1283.35 | E138: 1294.00 | F138: 1267.75 | G138: 1252.15 | H138: 1225.90 | I138: 1309.60 | J138: 1335.85 | K138: 1351.45 | L138: 1320.25 | M138: 1278.4 | N138: 13184250 | O138: 5.09%
A139: 129 | B139: Pharma | C139: LUPIN | D139: 776.10 | E139: 781.68 | F139: 766.52 | G139: 756.93 | H139: 741.77 | I139: 791.27 | J139: 806.43 | K139: 816.02 | L139: 796.85 | M139: 772.1 | N139: 14410800 | O139: 2.61%
A140: 130 | B140: Automobile | C140: M&M | D140: 721.20 | E140: 727.45 | F140: 711.25 | G140: 701.30 | H140: 685.10 | I140: 737.40 | J140: 753.60 | K140: 763.55 | L140: 743.65 | M140: 717.5 | N140: 15268000 | O140: 2.75%
A141: 131 | B141: Finance | C141: M&MFIN | D141: 433.20 | E141: 436.83 | F141: 425.62 | G141: 418.03 | H141: 406.82 | I141: 444.42 | J141: 455.63 | K141: 463.22 | L141: 448.05 | M141: 429.25 | N141: 6711250 | O141: -4.50%
A142: 132 | B142: Others | C142: MANAPPURAM | D142: 106.00 | E142: 106.52 | F142: 103.78 | G142: 101.57 | H142: 98.83 | I142: 108.73 | J142: 111.47 | K142: 113.68 | L142: 109.25 | M142: 104.3 | N142: 24174000 | O142: -2.16%
A143: 133 | B143: FMCG | C143: MARICO | D143: 309.70 | E143: 310.48 | F143: 307.02 | G143: 304.33 | H143: 300.87 | I143: 313.17 | J143: 316.63 | K143: 319.32 | L143: 313.95 | M143: 307.8 | N143: 4456400 | O143: 2.08%
A144: 134 | B144: Automobile | C144: MARUTI | D144: 8638.40 | E144: 8718.82 | F144: 8529.63 | G144: 8420.87 | H144: 8231.68 | I144: 8827.58 | J144: 9016.77 | K144: 9125.53 | L144: 8908 | M144: 8610.05 | N144: 2549175 | O144: 2.93%
A145: 135 | B145: FMCG | C145: MCDOWELL-N | D145: 3034.25 | E145: 3085.02 | F145: 2956.38 | G145: 2878.52 | H145: 2749.88 | I145: 3162.88 | J145: 3291.52 | K145: 3369.38 | L145: 3213.65 | M145: 3007.15 | N145: 2424000 | O145: 14.98%
A146: 136 | B146: Others | C146: MCX | D146: 764.10 | E146: 767.83 | F146: 750.67 | G146: 737.23 | H146: 720.07 | I146: 781.27 | J146: 798.43 | K146: 811.87 | L146: 785 | M146: 754.4 | N146: 3287000 | O146: -2.40%
A147: 137 | B147: Finance | C147: MFSL | D147: 489.90 | E147: 489.15 | F147: 485.45 | G147: 481.00 | H147: 477.30 | I147: 493.60 | J147: 497.30 | K147: 501.75 | L147: 492.85 | M147: 484.7 | N147: 2469000 | O147: -4.86%
A148: 138 | B148: Others | C148: MGL | D148: 1022.70 | E148: 1031.23 | F148: 1011.47 | G148: 1000.23 | H148: 980.47 | I148: 1042.47 | J148: 1062.23 | K148: 1073.47 | L148: 1051 | M148: 1020 | N148: 1016400 | O148: 2.54%
A149: 139 | B149: Technology | C149: MINDTREE | D149: 824.05 | E149: 833.93 | F149: 808.12 | G149: 792.18 | H149: 766.37 | I149: 849.87 | J149: 875.68 | K149: 891.62 | L149: 859.75 | M149: 818 | N149: 2120400 | O149: -3.13%
A150: 140 | B150: Automobile | C150: MOTHERSUMI | D150: 308.40 | E150: 310.35 | F150: 304.95 | G150: 301.50 | H150: 296.10 | I150: 313.80 | J150: 319.20 | K150: 322.65 | L150: 315.75 | M150: 306.9 | N150: 17763200 | O150: 4.63%
A151: 141 | B151: Automobile | C151: MRF | D151: 71755.35 | E151: 72117.43 | F151: 71236.92 | G151: 70718.48 | H151: 69837.97 | I151: 72635.87 | J151: 73516.38 | K151: 74034.82 | L151: 72997.95 | M151: 71599 | N151: 44520 | O151: -1.20%
A152: 142 | B152: Others | C152: MRPL | D152: 115.70 | E152: 115.85 | F152: 114.50 | G152: 113.30 | H152: 111.95 | I152: 117.05 | J152: 118.40 | K152: 119.60 | L152: 117.2 | M152: 114.65 | N152: 6075000 | O152: -9.58%
A153: 143 | B153: Finance | C153: MUTHOOTFIN | D153: 381.20 | E153: 385.22 | F153: 374.43 | G153: 367.67 | H153: 356.88 | I153: 391.98 | J153: 402.77 | K153: 409.53 | L153: 396 | M153: 378.45 | N153: 2323500 | O153: -4.97%
A154: 144 | B154: Others | C154: NATIONALUM | D154: 62.40 | E154: 63.42 | F154: 60.83 | G154: 59.27 | H154: 56.68 | I154: 64.98 | J154: 67.57 | K154: 69.13 | L154: 66 | M154: 61.85 | N154: 52136000 | O154: 0.22%
A155: 145 | B155: Others | C155: NBCC | D155: 188.60 | E155: 190.27 | F155: 185.73 | G155: 182.87 | H155: 178.33 | I155: 193.13 | J155: 197.67 | K155: 200.53 | L155: 194.8 | M155: 187.4 | N155: 11796000 | O155: -1.18%
A156: 146 | B156: Infrastructure | C156: NCC | D156: 123.00 | E156: 124.57 | F156: 119.73 | G156: 116.47 | H156: 111.63 | I156: 127.83 | J156: 132.67 | K156: 135.93 | L156: 129.4 | M156: 121.3 | N156: 29208000 | O156: 0.50%
A157: 147 | B157: Others | C157: NESTLEIND | D157: 7707.40 | E157: 7722.33 | F157: 7636.12 | G157: 7564.83 | H157: 7478.62 | I157: 7793.62 | J157: 7879.83 | K157: 7951.12 | L157: 7808.55 | M157: 7651.05 | N157: 232200 | O157: 0.96%
A158: 148 | B158: Power | C158: NHPC | D158: 27.70 | E158: 27.78 | F158: 27.52 | G158: 27.33 | H158: 27.07 | I158: 27.97 | J158: 28.23 | K158: 28.42 | L158: 28.05 | M158: 27.6 | N158: 44199000 | O158: -1.21%
A159: 149 | B159: Technology | C159: NIITTECH | D159: 861.55 | E159: 871.15 | F159: 848.50 | G159: 835.45 | H159: 812.80 | I159: 884.20 | J159: 906.85 | K159: 919.90 | L159: 893.8 | M159: 858.1 | N159: 1200000 | O159: -13.33%
A160: 150 | B160: Metals | C160: NMDC | D160: 119.75 | E160: 120.83 | F160: 118.22 | G160: 116.68 | H160: 114.07 | I160: 122.37 | J160: 124.98 | K160: 126.52 | L160: 123.45 | M160: 119.3 | N160: 38256000 | O160: 0.54%
A161: 151 | B161: Power | C161: NTPC | D161: 162.70 | E161: 163.07 | F161: 161.68 | G161: 160.67 | H161: 159.28 | I161: 164.08 | J161: 165.47 | K161: 166.48 | L161: 164.45 | M161: 162.05 | N161: 29112000 | O161: 2.91%
A162: 152 | B162: Technology | C162: OFSS | D162: 3773.70 | E162: 3782.63 | F162: 3732.07 | G162: 3690.43 | H162: 3639.87 | I162: 3824.27 | J162: 3874.83 | K162: 3916.47 | L162: 3833.2 | M162: 3741 | N162: 133050 | O162: 2.07%
A163: 153 | B163: Oil_Gas | C163: OIL | D163: 342.85 | E163: 343.87 | F163: 340.08 | G163: 337.32 | H163: 333.53 | I163: 346.63 | J163: 350.42 | K163: 353.18 | L163: 347.65 | M163: 341.1 | N163: 2145902 | O163: 1.72%
A164: 154 | B164: Oil_Gas | C164: ONGC | D164: 183.05 | E164: 183.65 | F164: 182.05 | G164: 181.05 | H164: 179.45 | I164: 184.65 | J164: 186.25 | K164: 187.25 | L164: 185.25 | M164: 182.65 | N164: 33705000 | O164: 0.67%
A165: 155 | B165: Banking | C165: ORIENTBANK | D165: 95.75 | E165: 97.08 | F165: 93.72 | G165: 91.68 | H165: 88.32 | I165: 99.12 | J165: 102.48 | K165: 104.52 | L165: 100.45 | M165: 95.05 | N165: 15486000 | O165: -2.86%
A166: 156 | B166: Textile | C166: PAGEIND | D166: 20716.00 | E166: 20970.50 | F166: 20281.00 | G166: 19846.00 | H166: 19156.50 | I166: 21405.50 | J166: 22095.00 | K166: 22530.00 | L166: 21660 | M166: 20535.5 | N166: 38350 | O166: -6.92%
A167: 157 | B167: Others | C167: PCJEWELLER | D167: 340.80 | E167: 343.27 | F167: 333.68 | G167: 326.57 | H167: 316.98 | I167: 350.38 | J167: 359.97 | K167: 367.08 | L167: 352.85 | M167: 336.15 | N167: 7807500 | O167: 3.73%
A168: 158 | B168: Pharma | C168: PEL | D168: 2371.65 | E168: 2401.90 | F168: 2333.85 | G168: 2296.05 | H168: 2228.00 | I168: 2439.70 | J168: 2507.75 | K168: 2545.55 | L168: 2469.95 | M168: 2364.1 | N168: 2140878 | O168: 8.83%
A169: 159 | B169: Oil_Gas | C169: PETRONET | D169: 234.40 | E169: 236.02 | F169: 231.38 | G169: 228.37 | H169: 223.73 | I169: 239.03 | J169: 243.67 | K169: 246.68 | L169: 240.65 | M169: 233 | N169: 16986000 | O169: 1.87%
A170: 160 | B170: Finance | C170: PFC | D170: 99.40 | E170: 99.98 | F170: 98.07 | G170: 96.73 | H170: 94.82 | I170: 101.32 | J170: 103.23 | K170: 104.57 | L170: 101.9 | M170: 98.65 | N170: 66810000 | O170: 1.97%
A171: 161 | B171: FMCG | C171: PIDILITIND | D171: 883.00 | E171: 887.02 | F171: 877.08 | G171: 871.17 | H171: 861.23 | I171: 892.93 | J171: 902.87 | K171: 908.78 | L171: 896.95 | M171: 881.1 | N171: 1182000 | O171: -3.27%
A172: 162 | B172: Banking | C172: PNB | D172: 98.00 | E172: 99.13 | F172: 95.97 | G172: 93.93 | H172: 90.77 | I172: 101.17 | J172: 104.33 | K172: 106.37 | L172: 102.3 | M172: 97.1 | N172: 81900000 | O172: -3.45%
A173: 163 | B173: Power | C173: POWERGRID | D173: 193.75 | E173: 194.68 | F173: 191.92 | G173: 190.08 | H173: 187.32 | I173: 196.52 | J173: 199.28 | K173: 201.12 | L173: 197.45 | M173: 192.85 | N173: 24616000 | O173: 0.87%
A174: 164 | B174: Power | C174: PTC | D174: 96.45 | E174: 97.43 | F174: 94.87 | G174: 93.28 | H174: 90.72 | I174: 99.02 | J174: 101.58 | K174: 103.17 | L174: 100 | M174: 95.85 | N174: 21240000 | O174: -1.41%
A175: 165 | B175: Others | C175: PVR | D175: 1286.45 | E175: 1293.78 | F175: 1263.87 | G175: 1241.28 | H175: 1211.37 | I175: 1316.37 | J175: 1346.28 | K175: 1368.87 | L175: 1323.7 | M175: 1271.2 | N175: 744800 | O175: 1.86%
A176: 166 | B176: Cement | C176: RAMCOCEM | D176: 732.80 | E176: 734.83 | F176: 728.07 | G176: 723.33 | H176: 716.57 | I176: 739.57 | J176: 746.33 | K176: 751.07 | L176: 741.6 | M176: 730.1 | N176: 927200 | O176: -1.11%
A177: 167 | B177: Others | C177: RAYMOND | D177: 911.45 | E177: 920.55 | F177: 896.75 | G177: 882.05 | H177: 858.25 | I177: 935.25 | J177: 959.05 | K177: 973.75 | L177: 944.35 | M177: 905.85 | N177: 4938400 | O177: -1.77%
A178: 168 | B178: Banking | C178: RBLBANK | D178: 470.50 | E178: 474.28 | F178: 464.57 | G178: 458.63 | H178: 448.92 | I178: 480.22 | J178: 489.93 | K178: 495.87 | L178: 484 | M178: 468.35 | N178: 4701000 | O178: -0.13%
A179: 169 | B179: Telecom | C179: RCOM | D179: 26.30 | E179: 26.77 | F179: 24.68 | G179: 23.07 | H179: 20.98 | I179: 28.38 | J179: 30.47 | K179: 32.08 | L179: 28.85 | M179: 25.15 | N179: 101612000 | O179: -2.10%
A180: 170 | B180: Capital_Goods | C180: RNAVAL | D180: 36.15 | E180: 36.77 | F180: 34.73 | G180: 33.32 | H180: 31.28 | I180: 38.18 | J180: 40.22 | K180: 41.63 | L180: 38.8 | M180: 35.35 | N180: 38241000 | O180: -3.50%
A181: 171 | B181: Power | C181: RECLTD | D181: 138.15 | E181: 139.28 | F181: 136.17 | G181: 134.18 | H181: 131.07 | I181: 141.27 | J181: 144.38 | K181: 146.37 | L181: 142.4 | M181: 137.3 | N181: 39030000 | O181: 1.72%
A182: 172 | B182: Finance | C182: RELCAPITAL | D182: 443.55 | E182: 448.98 | F182: 434.57 | G182: 425.58 | H182: 411.17 | I182: 457.97 | J182: 472.38 | K182: 481.37 | L182: 463.4 | M182: 440 | N182: 13210500 | O182: 0.48%
A183: 173 | B183: Oil_Gas | C183: RELIANCE | D183: 912.55 | E183: 919.05 | F183: 901.50 | G183: 890.45 | H183: 872.90 | I183: 930.10 | J183: 947.65 | K183: 958.70 | L183: 936.6 | M183: 908 | N183: 49994000 | O183: 0.95%
A184: 174 | B184: Power | C184: RELINFRA | D184: 433.65 | E184: 438.55 | F184: 424.50 | G184: 415.35 | H184: 401.30 | I184: 447.70 | J184: 461.75 | K184: 470.90 | L184: 452.6 | M184: 429.4 | N184: 11780600 | O184: 2.34%
A185: 175 | B185: Others | C185: REPCOHOME | D185: 553.20 | E185: 558.40 | F185: 541.80 | G185: 530.40 | H185: 513.80 | I185: 569.80 | J185: 586.40 | K185: 597.80 | L185: 575 | M185: 547 | N185: 1092600 | O185: 5.49%
A186: 176 | B186: Power | C186: RPOWER | D186: 41.35 | E186: 41.77 | F186: 40.28 | G186: 39.22 | H186: 37.73 | I186: 42.83 | J186: 44.32 | K186: 45.38 | L186: 43.25 | M186: 40.7 | N186: 64987000 | O186: 0.00%
A187: 177 | B187: Metals | C187: SAIL | D187: 76.10 | E187: 77.43 | F187: 73.87 | G187: 71.63 | H187: 68.07 | I187: 79.67 | J187: 83.23 | K187: 85.47 | L187: 81 | M187: 75.2 | N187: 114732000 | O187: 3.32%
A188: 178 | B188: Banking | C188: SBIN | D188: 257.00 | E188: 259.78 | F188: 252.72 | G188: 248.43 | H188: 241.37 | I188: 264.07 | J188: 271.13 | K188: 275.42 | L188: 266.85 | M188: 255.5 | N188: 78792000 | O188: 3.59%
A189: 179 | B189: Cement | C189: SHREECEM | D189: 16669.75 | E189: 16773.07 | F189: 16496.73 | G189: 16323.72 | H189: 16047.38 | I189: 16946.08 | J189: 17222.42 | K189: 17395.43 | L189: 17049.4 | M189: 16600.05 | N189: 65650 | O189: 0.08%
A190: 180 | B190: Capital_Goods | C190: SIEMENS | D190: 1131.65 | E190: 1139.33 | F190: 1119.22 | G190: 1106.78 | H190: 1086.67 | I190: 1151.77 | J190: 1171.88 | K190: 1184.32 | L190: 1159.45 | M190: 1126.9 | N190: 822500 | O190: -2.66%
A191: 181 | B191: Banking | C191: SOUTHBANK | D191: 25.80 | E191: 25.93 | F191: 25.47 | G191: 25.13 | H191: 24.67 | I191: 26.27 | J191: 26.73 | K191: 27.07 | L191: 26.4 | M191: 25.6 | N191: 155232444 | O191: -1.53%
A192: 182 | B192: Others | C192: SREINFRA | D192: 81.20 | E192: 81.95 | F192: 79.15 | G192: 77.10 | H192: 74.30 | I192: 84.00 | J192: 86.80 | K192: 88.85 | L192: 84.75 | M192: 79.9 | N192: 16970000 | O192: -1.77%
A193: 183 | B193: Textile | C193: SRF | D193: 1865.75 | E193: 1875.83 | F193: 1842.72 | G193: 1819.68 | H193: 1786.57 | I193: 1898.87 | J193: 1931.98 | K193: 1955.02 | L193: 1908.95 | M193: 1852.8 | N193: 484500 | O193: -0.51%
A194: 184 | B194: Finance | C194: SRTRANSFIN | D194: 1353.55 | E194: 1357.57 | F194: 1308.28 | G194: 1263.02 | H194: 1213.73 | I194: 1402.83 | J194: 1452.12 | K194: 1497.38 | L194: 1406.85 | M194: 1312.3 | N194: 2582400 | O194: -2.69%
A195: 185 | B195: Pharma | C195: STAR | D195: 679.70 | E195: 690.07 | F195: 666.13 | G195: 652.57 | H195: 628.63 | I195: 703.63 | J195: 727.57 | K195: 741.13 | L195: 714 | M195: 676.5 | N195: 3860400 | O195: 2.71%
A196: 186 | B196: Pharma | C196: SUNPHARMA | D196: 532.90 | E196: 542.13 | F196: 521.32 | G196: 509.73 | H196: 488.92 | I196: 553.72 | J196: 574.53 | K196: 586.12 | L196: 562.95 | M196: 530.55 | N196: 59427500 | O196: -1.26%
A197: 187 | B197: Media | C197: SUNTV | D197: 920.85 | E197: 925.27 | F197: 908.58 | G197: 896.32 | H197: 879.63 | I197: 937.53 | J197: 954.22 | K197: 966.48 | L197: 941.95 | M197: 913 | N197: 3931000 | O197: -6.07%
A198: 188 | B198: Power | C198: SUZLON | D198: 12.30 | E198: 12.40 | F198: 12.00 | G198: 11.70 | H198: 11.30 | I198: 12.70 | J198: 13.10 | K198: 13.40 | L198: 12.8 | M198: 12.1 | N198: 362285000 | O198: -0.15%
A199: 189 | B199: Banking | C199: SYNDIBANK | D199: 56.30 | E199: 57.48 | F199: 54.47 | G199: 52.63 | H199: 49.62 | I199: 59.32 | J199: 62.33 | K199: 64.17 | L199: 60.5 | M199: 55.65 | N199: 29961000 | O199: 1.77%
A200: 190 | B200: Fertilisers | C200: TATACHEM | D200: 673.70 | E200: 678.32 | F200: 666.63 | G200: 659.57 | H200: 647.88 | I200: 685.38 | J200: 697.07 | K200: 704.13 | L200: 690 | M200: 671.25 | N200: 6318000 | O200: -3.02%
A201: 191 | B201: Telecom | C201: TATACOMM | D201: 625.20 | E201: 628.97 | F201: 618.93 | G201: 612.67 | H201: 602.63 | I201: 635.23 | J201: 645.27 | K201: 651.53 | L201: 639 | M201: 622.7 | N201: 6852000 | O201: -0.36%
A202: 192 | B202: Technology | C202: TATAELXSI | D202: 1032.85 | E202: 1042.88 | F202: 1017.77 | G202: 1002.68 | H202: 977.57 | I202: 1057.97 | J202: 1083.08 | K202: 1098.17 | L202: 1068 | M202: 1027.8 | N202: 1591200 | O202: -1.29%
A203: 193 | B203: FMCG | C203: TATAGLOBAL | D203: 273.75 | E203: 276.25 | F203: 269.15 | G203: 264.55 | H203: 257.45 | I203: 280.85 | J203: 287.95 | K203: 292.55 | L203: 283.35 | M203: 271.65 | N203: 22828500 | O203: -4.61%
A204: 194 | B204: Automobile | C204: TATAMOTORS | D204: 347.80 | E204: 350.97 | F204: 342.93 | G204: 338.07 | H204: 330.03 | I204: 355.83 | J204: 363.87 | K204: 368.73 | L204: 359 | M204: 346.1 | N204: 71802000 | O204: -0.46%
A205: 195 | B205: Automobile | C205: TATAMTRDVR | D205: 196.60 | E205: 198.22 | F205: 193.88 | G205: 191.17 | H205: 186.83 | I205: 200.93 | J205: 205.27 | K205: 207.98 | L205: 202.55 | M205: 195.5 | N205: 30140000 | O205: 0.91%
A206: 196 | B206: Power | C206: TATAPOWER | D206: 81.95 | E206: 82.22 | F206: 81.03 | G206: 80.12 | H206: 78.93 | I206: 83.13 | J206: 84.32 | K206: 85.23 | L206: 83.4 | M206: 81.3 | N206: 64845000 | O206: 0.29%
... 37 more rows

Sheet Cash Intra
M5: Back to Main Page
A6: FOR INTRA DAY TRADING | K6: =Main!B10 -> 2018-03-07
A8: Sr.no | B8: Scrip | C8: CLOSE RATE | D8: Pivot Point | E8: Supports | H8: Resistances
C9: Point | E9: S1 | F9: S2 | G9: S3 | H9: R1 | I9: R2 | J9: R3 | K9: HIGH | L9: LOW | M9: Total Trade Quanity in Lakhs
A10: 1 | B10: Nifty 50 | C10: 10249.25 | D10: 10302.17 | E10: 10162.98 | F10: 10076.72 | G10: 9937.53 | H10: 10388.43 | I10: 10527.62 | J10: 10613.88 | K10: 10441.35 | L10: 10215.9
A11: 2 | B11: Nifty Bank | C11: 24448.45 | D11: 24616.92 | E11: 24193.58 | F11: 23938.72 | G11: 23515.38 | H11: 24871.78 | I11: 25295.12 | J11: 25549.98 | K11: 25040.25 | L11: 24362.05
A12: 3 | B12: Nifty CPSE | C12: 2561.3 | D12: 2568.97 | E12: 2547.28 | F12: 2533.27 | G12: 2511.58 | H12: 2582.98 | I12: 2604.67 | J12: 2618.68 | K12: 2590.65 | L12: 2554.95
A13: 4 | B13: Nifty Infra | C13: 3363.7 | D13: 3381.40 | E13: 3328.55 | F13: 3293.40 | G13: 3240.55 | H13: 3416.55 | I13: 3469.40 | J13: 3504.55 | K13: 3434.25 | L13: 3346.25
A14: 5 | B14: Nifty IT | C14: 12706.1 | D14: 12768.03 | E14: 12605.52 | F14: 12504.93 | G14: 12342.42 | H14: 12868.62 | I14: 13031.13 | J14: 13131.72 | K14: 12930.55 | L14: 12667.45
A15: 6 | B15: Nifty PSE | C15: 3984.75 | D15: 3999.43 | E15: 3959.22 | F15: 3933.68 | G15: 3893.47 | H15: 4024.97 | I15: 4065.18 | J15: 4090.72 | K15: 4039.65 | L15: 3973.9
A16: 7 | B16: Nifty Midcap 50 | C16: 5046.05 | D16: 5078.25 | E16: 4994.05 | F16: 4942.05 | G16: 4857.85 | H16: 5130.25 | I16: 5214.45 | J16: 5266.45 | K16: 5162.45 | L16: 5026.25
A17: 8 | B17: ABB | C17: 1475.45 | D17: 1483.48 | E17: 1442.97 | F17: 1410.48 | G17: 1369.97 | H17: 1515.97 | I17: 1556.48 | J17: 1588.97 | K17: 1524 | L17: 1451 | M17: 0.72789
A18: 9 | B18: ACC | C18: 1595.3 | D18: 1601.10 | E18: 1585.20 | F18: 1575.10 | G18: 1559.20 | H18: 1611.20 | I18: 1627.10 | J18: 1637.20 | K18: 1617 | L18: 1591 | M18: 2.38297
A19: 10 | B19: AIAENG | C19: 1401.95 | D19: 1411.70 | E19: 1370.45 | F19: 1338.95 | G19: 1297.70 | H19: 1443.20 | I19: 1484.45 | J19: 1515.95 | K19: 1452.95 | L19: 1380.2 | M19: 0.0818
A20: 11 | B20: AUBANK | C20: 583.55 | D20: 583.07 | E20: 573.18 | F20: 562.82 | G20: 552.93 | H20: 593.43 | I20: 603.32 | J20: 613.68 | K20: 592.95 | L20: 572.7 | M20: 0.64457
A21: 12 | B21: ADANIENT | C21: 186.2 | D21: 189.88 | E21: 176.42 | F21: 166.63 | G21: 153.17 | H21: 199.67 | I21: 213.13 | J21: 222.92 | K21: 203.35 | L21: 180.1 | M21: 80.63223
A22: 13 | B22: ADANIPORTS | C22: 405.25 | D22: 404.72 | E22: 395.68 | F22: 386.12 | G22: 377.08 | H22: 414.28 | I22: 423.32 | J22: 432.88 | K22: 413.75 | L22: 395.15 | M22: 33.21338
A23: 14 | B23: ADANIPOWER | C23: 29.5 | D23: 29.90 | E23: 28.35 | F23: 27.20 | G23: 25.65 | H23: 31.05 | I23: 32.60 | J23: 33.75 | K23: 31.45 | L23: 28.75 | M23: 79.22751
A24: 15 | B24: ABFRL | C24: 143.8 | D24: 146.08 | E24: 140.72 | F24: 137.63 | G24: 132.27 | H24: 149.17 | I24: 154.53 | J24: 157.62 | K24: 151.45 | L24: 143 | M24: 9.11776
A25: 16 | B25: AJANTPHARM | C25: 1338.05 | D25: 1348.20 | E25: 1314.85 | F25: 1291.65 | G25: 1258.30 | H25: 1371.40 | I25: 1404.75 | J25: 1427.95 | K25: 1381.55 | L25: 1325 | M25: 4.71601
A26: 17 | B26: ALKEM | C26: 2260.15 | D26: 2249.22 | E26: 2225.93 | F26: 2191.72 | G26: 2168.43 | H26: 2283.43 | I26: 2306.72 | J26: 2340.93 | K26: 2272.5 | L26: 2215 | M26: 0.26947
A27: 18 | B27: AMARAJABAT | C27: 798.7 | D27: 800.57 | E27: 788.13 | F27: 777.57 | G27: 765.13 | H27: 811.13 | I27: 823.57 | J27: 834.13 | K27: 813 | L27: 790 | M27: 2.54905
A28: 19 | B28: AMBUJACEM | C28: 240.65 | D28: 243.20 | E28: 237.40 | F28: 234.15 | G28: 228.35 | H28: 246.45 | I28: 252.25 | J28: 255.50 | K28: 249 | L28: 239.95 | M28: 27.27521
A29: 20 | B29: APOLLOHOSP | C29: 1160.8 | D29: 1164.93 | E29: 1140.87 | F29: 1120.93 | G29: 1096.87 | H29: 1184.87 | I29: 1208.93 | J29: 1228.87 | K29: 1189 | L29: 1145 | M29: 3.02547
A30: 21 | B30: APOLLOTYRE | C30: 258.55 | D30: 258.85 | E30: 254.70 | F30: 250.85 | G30: 246.70 | H30: 262.70 | I30: 266.85 | J30: 270.70 | K30: 263 | L30: 255 | M30: 37.45933
A31: 22 | B31: ARVIND | C31: 398.25 | D31: 401.87 | E31: 391.93 | F31: 385.62 | G31: 375.68 | H31: 408.18 | I31: 418.12 | J31: 424.43 | K31: 411.8 | L31: 395.55 | M31: 15.97438
A32: 23 | B32: ASHOKLEY | C32: 139.85 | D32: 140.67 | E32: 138.43 | F32: 137.02 | G32: 134.78 | H32: 142.08 | I32: 144.32 | J32: 145.73 | K32: 142.9 | L32: 139.25 | M32: 126.48186
A33: 24 | B33: ASIANPAINT | C33: 1101.6 | D33: 1104.73 | E33: 1096.87 | F33: 1092.13 | G33: 1084.27 | H33: 1109.47 | I33: 1117.33 | J33: 1122.07 | K33: 1112.6 | L33: 1100 | M33: 7.02294
A34: 25 | B34: AUROPHARMA | C34: 606.2 | D34: 609.17 | E34: 598.43 | F34: 590.67 | G34: 579.93 | H34: 616.93 | I34: 627.67 | J34: 635.43 | K34: 619.9 | L34: 601.4 | M34: 45.05696
A35: 26 | B35: DMART | C35: 1327.15 | D35: 1334.82 | E35: 1304.53 | F35: 1281.92 | G35: 1251.63 | H35: 1357.43 | I35: 1387.72 | J35: 1410.33 | K35: 1365.1 | L35: 1312.2 | M35: 11.6243
A36: 27 | B36: AXISBANK | C36: 517.35 | D36: 519.73 | E36: 508.82 | F36: 500.28 | G36: 489.37 | H36: 528.27 | I36: 539.18 | J36: 547.72 | K36: 530.65 | L36: 511.2 | M36: 122.4016
A37: 28 | B37: BAJAJ-AUTO | C37: 2899.2 | D37: 2919.50 | E37: 2862.95 | F37: 2826.70 | G37: 2770.15 | H37: 2955.75 | I37: 3012.30 | J37: 3048.55 | K37: 2976.05 | L37: 2883.25 | M37: 2.58501
A38: 29 | B38: BAJFINANCE | C38: 1637.75 | D38: 1645.73 | E38: 1619.62 | F38: 1601.48 | G38: 1575.37 | H38: 1663.87 | I38: 1689.98 | J38: 1708.12 | K38: 1671.85 | L38: 1627.6 | M38: 9.44176
A39: 30 | B39: BAJAJFINSV | C39: 4980.65 | D39: 5011.20 | E39: 4924.45 | F39: 4868.25 | G39: 4781.50 | H39: 5067.40 | I39: 5154.15 | J39: 5210.35 | K39: 5097.95 | L39: 4955 | M39: 0.86842
A40: 31 | B40: BALKRISIND | C40: 1015.4 | D40: 1024.62 | E40: 1000.78 | F40: 986.17 | G40: 962.33 | H40: 1039.23 | I40: 1063.07 | J40: 1077.68 | K40: 1048.45 | L40: 1010 | M40: 1.72735
A41: 32 | B41: BANKBARODA | C41: 135.25 | D41: 136.92 | E41: 132.48 | F41: 129.72 | G41: 125.28 | H41: 139.68 | I41: 144.12 | J41: 146.88 | K41: 141.35 | L41: 134.15 | M41: 108.41359
A42: 33 | B42: BANKINDIA | C42: 103.5 | D42: 106.13 | E42: 99.27 | F42: 95.03 | G42: 88.17 | H42: 110.37 | I42: 117.23 | J42: 121.47 | K42: 113 | L42: 101.9 | M42: 129.55555
A43: 34 | B43: BATAINDIA | C43: 714.9 | D43: 716.80 | E43: 709.10 | F43: 703.30 | G43: 695.60 | H43: 722.60 | I43: 730.30 | J43: 736.10 | K43: 724.5 | L43: 711 | M43: 4.25438
A44: 35 | B44: BERGEPAINT | C44: 242.6 | D44: 243.85 | E44: 238.75 | F44: 234.90 | G44: 229.80 | H44: 247.70 | I44: 252.80 | J44: 256.65 | K44: 248.95 | L44: 240 | M44: 4.74721
A45: 36 | B45: BEL | C45: 152 | D45: 153.70 | E45: 149.45 | F45: 146.90 | G45: 142.65 | H45: 156.25 | I45: 160.50 | J45: 163.05 | K45: 157.95 | L45: 151.15 | M45: 34.81768
A46: 37 | B46: BHARATFIN | C46: 1038.85 | D46: 1041.67 | E46: 1029.58 | F46: 1020.32 | G46: 1008.23 | H46: 1050.93 | I46: 1063.02 | J46: 1072.28 | K46: 1053.75 | L46: 1032.4 | M46: 5.77249
A47: 38 | B47: BHARATFORG | C47: 762 | D47: 763.85 | E47: 755.00 | F47: 748.00 | G47: 739.15 | H47: 770.85 | I47: 779.70 | J47: 786.70 | K47: 772.7 | L47: 756.85 | M47: 8.63068
A48: 39 | B48: BHEL | C48: 88.2 | D48: 89.25 | E48: 86.75 | F48: 85.30 | G48: 82.80 | H48: 90.70 | I48: 93.20 | J48: 94.65 | K48: 91.75 | L48: 87.8 | M48: 51.04528
A49: 40 | B49: BPCL | C49: 445.2 | D49: 445.23 | E49: 435.47 | F49: 425.73 | G49: 415.97 | H49: 454.97 | I49: 464.73 | J49: 474.47 | K49: 455 | L49: 435.5 | M49: 78.54169
A50: 41 | B50: BHARTIARTL | C50: 413.9 | D50: 417.38 | E50: 407.12 | F50: 400.33 | G50: 390.07 | H50: 424.17 | I50: 434.43 | J50: 441.22 | K50: 427.65 | L50: 410.6 | M50: 37.89549
A51: 42 | B51: INFRATEL | C51: 331.95 | D51: 333.73 | E51: 327.02 | F51: 322.08 | G51: 315.37 | H51: 338.67 | I51: 345.38 | J51: 350.32 | K51: 340.45 | L51: 328.8 | M51: 105.97788
A52: 43 | B52: BIOCON | C52: 632.4 | D52: 634.03 | E52: 624.37 | F52: 616.33 | G52: 606.67 | H52: 642.07 | I52: 651.73 | J52: 659.77 | K52: 643.7 | L52: 626 | M52: 33.43002
A53: 44 | B53: BOSCHLTD | C53: 18159.75 | D53: 18210.37 | E53: 17954.43 | F53: 17749.12 | G53: 17493.18 | H53: 18415.68 | I53: 18671.62 | J53: 18876.93 | K53: 18466.3 | L53: 18005.05 | M53: 0.27935
A54: 45 | B54: BRITANNIA | C54: 4825.2 | D54: 4849.05 | E54: 4763.20 | F54: 4701.20 | G54: 4615.35 | H54: 4911.05 | I54: 4996.90 | J54: 5058.90 | K54: 4934.9 | L54: 4787.05 | M54: 0.78178
A55: 46 | B55: CRISIL | C55: 1961.8 | D55: 1952.60 | E55: 1940.20 | F55: 1918.60 | G55: 1906.20 | H55: 1974.20 | I55: 1986.60 | J55: 2008.20 | K55: 1965 | L55: 1931 | M55: 0.0834
A56: 47 | B56: CADILAHC | C56: 389.6 | D56: 390.88 | E56: 384.87 | F56: 380.13 | G56: 374.12 | H56: 395.62 | I56: 401.63 | J56: 406.37 | K56: 396.9 | L56: 386.15 | M56: 6.81762
A57: 48 | B57: CANBK | C57: 267.95 | D57: 272.28 | E57: 259.67 | F57: 251.38 | G57: 238.77 | H57: 280.57 | I57: 293.18 | J57: 301.47 | K57: 284.9 | L57: 264 | M57: 51.89913
A58: 49 | B58: CASTROLIND | C58: 201.75 | D58: 202.20 | E58: 199.55 | F58: 197.35 | G58: 194.70 | H58: 204.40 | I58: 207.05 | J58: 209.25 | K58: 204.85 | L58: 200 | M58: 25.24304
A59: 50 | B59: CENTRALBK | C59: 63.85 | D59: 64.33 | E59: 62.87 | F59: 61.88 | G59: 60.42 | H59: 65.32 | I59: 66.78 | J59: 67.77 | K59: 65.8 | L59: 63.35 | M59: 2.17353
A60: 51 | B60: CENTURYTEX | C60: 1179.5 | D60: 1191.13 | E60: 1158.37 | F60: 1137.23 | G60: 1104.47 | H60: 1212.27 | I60: 1245.03 | J60: 1266.17 | K60: 1223.9 | L60: 1170 | M60: 4.79926
A61: 52 | B61: CHOLAFIN | C61: 1434.15 | D61: 1442.63 | E61: 1413.72 | F61: 1393.28 | G61: 1364.37 | H61: 1463.07 | I61: 1491.98 | J61: 1512.42 | K61: 1471.55 | L61: 1422.2 | M61: 1.68301
A62: 53 | B62: CIPLA | C62: 584.1 | D62: 584.52 | E62: 579.63 | F62: 575.17 | G62: 570.28 | H62: 588.98 | I62: 593.87 | J62: 598.33 | K62: 589.4 | L62: 580.05 | M62: 18.91302
A63: 54 | B63: COALINDIA | C63: 307 | D63: 305.85 | E63: 302.25 | F63: 297.50 | G63: 293.90 | H63: 310.60 | I63: 314.20 | J63: 318.95 | K63: 309.45 | L63: 301.1 | M63: 36.93197
A64: 55 | B64: COLPAL | C64: 1038.45 | D64: 1042.45 | E64: 1032.00 | F64: 1025.55 | G64: 1015.10 | H64: 1048.90 | I64: 1059.35 | J64: 1065.80 | K64: 1052.9 | L64: 1036 | M64: 0.92786
A65: 56 | B65: CONCOR | C65: 1236.15 | D65: 1249.65 | E65: 1210.20 | F65: 1184.25 | G65: 1144.80 | H65: 1275.60 | I65: 1315.05 | J65: 1341.00 | K65: 1289.1 | L65: 1223.7 | M65: 3.70236
A66: 57 | B66: COROMANDEL | C66: 569.15 | D66: 564.72 | E66: 550.43 | F66: 531.72 | G66: 517.43 | H66: 583.43 | I66: 597.72 | J66: 616.43 | K66: 579 | L66: 546 | M66: 2.07488
A67: 58 | B67: CROMPTON | C67: 235.4 | D67: 235.60 | E67: 233.30 | F67: 231.20 | G67: 228.90 | H67: 237.70 | I67: 240.00 | J67: 242.10 | K67: 237.9 | L67: 233.5 | M67: 4.26515
A68: 59 | B68: CUMMINSIND | C68: 786.8 | D68: 791.48 | E68: 778.32 | F68: 769.83 | G68: 756.67 | H68: 799.97 | I68: 813.13 | J68: 821.62 | K68: 804.65 | L68: 783 | M68: 1.34102
A69: 60 | B69: DLF | C69: 216.55 | D69: 219.08 | E69: 211.52 | F69: 206.48 | G69: 198.92 | H69: 224.12 | I69: 231.68 | J69: 236.72 | K69: 226.65 | L69: 214.05 | M69: 61.4409
A70: 61 | B70: DABUR | C70: 322.7 | D70: 324.43 | E70: 319.27 | F70: 315.83 | G70: 310.67 | H70: 327.87 | I70: 333.03 | J70: 336.47 | K70: 329.6 | L70: 321 | M70: 6.78537
A71: 62 | B71: DALMIABHA | C71: 2669.15 | D71: 2678.28 | E71: 2649.52 | F71: 2629.88 | G71: 2601.12 | H71: 2697.92 | I71: 2726.68 | J71: 2746.32 | K71: 2707.05 | L71: 2658.65 | M71: 0.62137
A72: 63 | B72: DHFL | C72: 508.4 | D72: 517.10 | E72: 488.40 | F72: 468.40 | G72: 439.70 | H72: 537.10 | I72: 565.80 | J72: 585.80 | K72: 545.8 | L72: 497.1 | M72: 54.29872
A73: 64 | B73: DISHTV | C73: 67.05 | D73: 67.33 | E73: 63.42 | F73: 59.78 | G73: 55.87 | H73: 70.97 | I73: 74.88 | J73: 78.52 | K73: 71.25 | L73: 63.7 | M73: 165.02341
A74: 65 | B74: DIVISLAB | C74: 1013.7 | D74: 1015.63 | E74: 1007.57 | F74: 1001.43 | G74: 993.37 | H74: 1021.77 | I74: 1029.83 | J74: 1035.97 | K74: 1023.7 | L74: 1009.5 | M74: 4.0975
A75: 66 | B75: LALPATHLAB | C75: 897.4 | D75: 899.78 | E75: 888.62 | F75: 879.83 | G75: 868.67 | H75: 908.57 | I75: 919.73 | J75: 928.52 | K75: 910.95 | L75: 891 | M75: 0.12325
A76: 67 | B76: DRREDDY | C76: 2176.45 | D76: 2189.03 | E76: 2154.27 | F76: 2132.08 | G76: 2097.32 | H76: 2211.22 | I76: 2245.98 | J76: 2268.17 | K76: 2223.8 | L76: 2166.85 | M76: 4.15
A77: 68 | B77: EDELWEISS | C77: 264.55 | D77: 268.50 | E77: 257.30 | F77: 250.05 | G77: 238.85 | H77: 275.75 | I77: 286.95 | J77: 294.20 | K77: 279.7 | L77: 261.25 | M77: 21.3777
A78: 69 | B78: EICHERMOT | C78: 27488.45 | D78: 27507.95 | E78: 27231.65 | F78: 26974.85 | G78: 26698.55 | H78: 27764.75 | I78: 28041.05 | J78: 28297.85 | K78: 27784.25 | L78: 27251.15 | M78: 0.42735
A79: 70 | B79: EMAMILTD | C79: 1103 | D79: 1102.62 | E79: 1089.38 | F79: 1075.77 | G79: 1062.53 | H79: 1116.23 | I79: 1129.47 | J79: 1143.08 | K79: 1115.85 | L79: 1089 | M79: 0.63973
A80: 71 | B80: ENDURANCE | C80: 1270.1 | D80: 1283.03 | E80: 1250.12 | F80: 1230.13 | G80: 1197.22 | H80: 1303.02 | I80: 1335.93 | J80: 1355.92 | K80: 1315.95 | L80: 1263.05 | M80: 0.79768
A81: 72 | B81: ENGINERSIN | C81: 164.7 | D81: 166.13 | E81: 162.07 | F81: 159.43 | G81: 155.37 | H81: 168.77 | I81: 172.83 | J81: 175.47 | K81: 170.2 | L81: 163.5 | M81: 11.30534
A82: 73 | B82: EXIDEIND | C82: 208.1 | D82: 209.18 | E82: 205.92 | F82: 203.73 | G82: 200.47 | H82: 211.37 | I82: 214.63 | J82: 216.82 | K82: 212.45 | L82: 207 | M82: 21.70232
A83: 74 | B83: FEDERALBNK | C83: 91.65 | D83: 92.42 | E83: 90.43 | F83: 89.22 | G83: 87.23 | H83: 93.63 | I83: 95.62 | J83: 96.83 | K83: 94.4 | L83: 91.2 | M83: 63.45324
A84: 75 | B84: GAIL | C84: 439.95 | D84: 442.03 | E84: 435.82 | F84: 431.68 | G84: 425.47 | H84: 446.17 | I84: 452.38 | J84: 456.52 | K84: 448.25 | L84: 437.9 | M84: 24.76876
A85: 76 | B85: GMRINFRA | C85: 18 | D85: 18.18 | E85: 17.47 | F85: 16.93 | G85: 16.22 | H85: 18.72 | I85: 19.43 | J85: 19.97 | K85: 18.9 | L85: 17.65 | M85: 281.55206
A86: 77 | B86: GSKCONS | C86: 6614.3 | D86: 6667.77 | E86: 6546.53 | F86: 6478.77 | G86: 6357.53 | H86: 6735.53 | I86: 6856.77 | J86: 6924.53 | K86: 6789 | L86: 6600 | M86: 0.06926
A87: 78 | B87: GLAXO | C87: 2344 | D87: 2349.68 | E87: 2314.37 | F87: 2284.73 | G87: 2249.42 | H87: 2379.32 | I87: 2414.63 | J87: 2444.27 | K87: 2385 | L87: 2320.05 | M87: 0.12564
A88: 79 | B88: GLENMARK | C88: 560.8 | D88: 560.95 | E88: 553.45 | F88: 546.10 | G88: 538.60 | H88: 568.30 | I88: 575.80 | J88: 583.15 | K88: 568.45 | L88: 553.6 | M88: 16.41322
A89: 80 | B89: GODREJCP | C89: 1089.25 | D89: 1092.15 | E89: 1071.60 | F89: 1053.95 | G89: 1033.40 | H89: 1109.80 | I89: 1130.35 | J89: 1148.00 | K89: 1112.7 | L89: 1074.5 | M89: 7.29721
A90: 81 | B90: GODREJIND | C90: 543.6 | D90: 546.43 | E90: 538.17 | F90: 532.73 | G90: 524.47 | H90: 551.87 | I90: 560.13 | J90: 565.57 | K90: 554.7 | L90: 541 | M90: 4.32862
A91: 82 | B91: GRUH | C91: 538.25 | D91: 540.75 | E91: 532.65 | F91: 527.05 | G91: 518.95 | H91: 546.35 | I91: 554.45 | J91: 560.05 | K91: 548.85 | L91: 535.15 | M91: 1.82734
A92: 83 | B92: GPPL | C92: 136.2 | D92: 136.90 | E92: 133.40 | F92: 130.60 | G92: 127.10 | H92: 139.70 | I92: 143.20 | J92: 146.00 | K92: 140.4 | L92: 134.1 | M92: 0.94923
A93: 84 | B93: GSPL | C93: 200.1 | D93: 201.57 | E93: 196.78 | F93: 193.47 | G93: 188.68 | H93: 204.88 | I93: 209.67 | J93: 212.98 | K93: 206.35 | L93: 198.25 | M93: 3.89488
A94: 85 | B94: HCLTECH | C94: 932.8 | D94: 937.43 | E94: 921.87 | F94: 910.93 | G94: 895.37 | H94: 948.37 | I94: 963.93 | J94: 974.87 | K94: 953 | L94: 926.5 | M94: 14.64878
A95: 86 | B95: HDFCBANK | C95: 1846.25 | D95: 1855.22 | E95: 1830.53 | F95: 1814.82 | G95: 1790.13 | H95: 1870.93 | I95: 1895.62 | J95: 1911.33 | K95: 1879.9 | L95: 1839.5 | M95: 11.44207
A96: 87 | B96: HAVELLS | C96: 500.3 | D96: 503.18 | E96: 493.52 | F96: 486.73 | G96: 477.07 | H96: 509.97 | I96: 519.63 | J96: 526.42 | K96: 512.85 | L96: 496.4 | M96: 7.17755
A97: 88 | B97: HEROMOTOCO | C97: 3561.9 | D97: 3567.20 | E97: 3539.40 | F97: 3516.90 | G97: 3489.10 | H97: 3589.70 | I97: 3617.50 | J97: 3640.00 | K97: 3595 | L97: 3544.7 | M97: 3.80991
A98: 89 | B98: HEXAWARE | C98: 344.9 | D98: 347.75 | E98: 337.55 | F98: 330.20 | G98: 320.00 | H98: 355.10 | I98: 365.30 | J98: 372.65 | K98: 357.95 | L98: 340.4 | M98: 9.98703
A99: 90 | B99: HINDALCO | C99: 225.85 | D99: 228.37 | E99: 221.63 | F99: 217.42 | G99: 210.68 | H99: 232.58 | I99: 239.32 | J99: 243.53 | K99: 235.1 | L99: 224.15 | M99: 124.88311
A100: 91 | B100: HINDPETRO | C100: 365.6 | D100: 368.47 | E100: 360.48 | F100: 355.37 | G100: 347.38 | H100: 373.58 | I100: 381.57 | J100: 386.68 | K100: 376.45 | L100: 363.35 | M100: 32.29531
A101: 92 | B101: HINDUNILVR | C101: 1293.2 | D101: 1296.77 | E101: 1285.63 | F101: 1278.07 | G101: 1266.93 | H101: 1304.33 | I101: 1315.47 | J101: 1323.03 | K101: 1307.9 | L101: 1289.2 | M101: 7.38512
A102: 93 | B102: HINDZINC | C102: 314.7 | D102: 315.12 | E102: 310.88 | F102: 307.07 | G102: 302.83 | H102: 318.93 | I102: 323.17 | J102: 326.98 | K102: 319.35 | L102: 311.3 | M102: 18.13814
A103: 94 | B103: HUDCO | C103: 73.9 | D103: 74.52 | E103: 72.93 | F103: 71.97 | G103: 70.38 | H103: 75.48 | I103: 77.07 | J103: 78.03 | K103: 76.1 | L103: 73.55 | M103: 72.11949
A104: 95 | B104: HDFC | C104: 1782.8 | D104: 1786.63 | E104: 1754.27 | F104: 1725.73 | G104: 1693.37 | H104: 1815.17 | I104: 1847.53 | J104: 1876.07 | K104: 1819 | L104: 1758.1 | M104: 28.99309
A105: 96 | B105: ITC | C105: 256.5 | D105: 258.13 | E105: 253.87 | F105: 251.23 | G105: 246.97 | H105: 260.77 | I105: 265.03 | J105: 267.67 | K105: 262.4 | L105: 255.5 | M105: 81.80373
A106: 97 | B106: ICICIBANK | C106: 295.05 | D106: 298.98 | E106: 290.27 | F106: 285.48 | G106: 276.77 | H106: 303.77 | I106: 312.48 | J106: 317.27 | K106: 307.7 | L106: 294.2 | M106: 189.51451
A107: 98 | B107: ICICIPRULI | C107: 395.2 | D107: 397.33 | E107: 391.77 | F107: 388.33 | G107: 382.77 | H107: 400.77 | I107: 406.33 | J107: 409.77 | K107: 402.9 | L107: 393.9 | M107: 8.28632
A108: 99 | B108: IDBI | C108: 82.6 | D108: 83.77 | E108: 78.68 | F108: 74.77 | G108: 69.68 | H108: 87.68 | I108: 92.77 | J108: 96.68 | K108: 88.85 | L108: 79.85 | M108: 902.0229
A109: 100 | B109: IDFCBANK | C109: 50.15 | D109: 50.52 | E109: 49.53 | F109: 48.92 | G109: 47.93 | H109: 51.13 | I109: 52.12 | J109: 52.73 | K109: 51.5 | L109: 49.9 | M109: 37.64846
A110: 101 | B110: IDFC | C110: 50.1 | D110: 50.55 | E110: 49.20 | F110: 48.30 | G110: 46.95 | H110: 51.45 | I110: 52.80 | J110: 53.70 | K110: 51.9 | L110: 49.65 | M110: 18.76131
A111: 102 | B111: IRB | C111: 216.3 | D111: 218.08 | E111: 213.32 | F111: 210.33 | G111: 205.57 | H111: 221.07 | I111: 225.83 | J111: 228.82 | K111: 222.85 | L111: 215.1 | M111: 7.51527
A112: 103 | B112: IDEA | C112: 81.9 | D112: 82.12 | E112: 81.03 | F112: 80.17 | G112: 79.08 | H112: 82.98 | I112: 84.07 | J112: 84.93 | K112: 83.2 | L112: 81.25 | M112: 98.36957
A113: 104 | B113: IBULHSGFIN | C113: 1238.75 | D113: 1247.45 | E113: 1218.30 | F113: 1197.85 | G113: 1168.70 | H113: 1267.90 | I113: 1297.05 | J113: 1317.50 | K113: 1276.6 | L113: 1227 | M113: 14.16894
A114: 105 | B114: INDIANB | C114: 290.2 | D114: 295.90 | E114: 278.30 | F114: 266.40 | G114: 248.80 | H114: 307.80 | I114: 325.40 | J114: 337.30 | K114: 313.5 | L114: 284 | M114: 21.2271
A115: 106 | B115: INDHOTEL | C115: 133.9 | D115: 134.83 | E115: 132.47 | F115: 131.03 | G115: 128.67 | H115: 136.27 | I115: 138.63 | J115: 140.07 | K115: 137.2 | L115: 133.4 | M115: 10.09896
A116: 107 | B116: IOC | C116: 382.2 | D116: 385.07 | E116: 377.33 | F116: 372.47 | G116: 364.73 | H116: 389.93 | I116: 397.67 | J116: 402.53 | K116: 392.8 | L116: 380.2 | M116: 79.17497
A117: 108 | B117: IGL | C117: 310.8 | D117: 311.80 | E117: 306.80 | F117: 302.80 | G117: 297.80 | H117: 315.80 | I117: 320.80 | J117: 324.80 | K117: 316.8 | L117: 307.8 | M117: 49.69299
A118: 109 | B118: INDUSINDBK | C118: 1710.3 | D118: 1714.12 | E118: 1696.23 | F118: 1682.17 | G118: 1664.28 | H118: 1728.18 | I118: 1746.07 | J118: 1760.13 | K118: 1732 | L118: 1700.05 | M118: 16.74469
A119: 110 | B119: NAUKRI | C119: 1232.35 | D119: 1244.80 | E119: 1197.60 | F119: 1162.85 | G119: 1115.65 | H119: 1279.55 | I119: 1326.75 | J119: 1361.50 | K119: 1292 | L119: 1210.05 | M119: 0.26114
A120: 111 | B120: INFY | C120: 1151.35 | D120: 1153.45 | E120: 1141.50 | F120: 1131.65 | G120: 1119.70 | H120: 1163.30 | I120: 1175.25 | J120: 1185.10 | K120: 1165.4 | L120: 1143.6 | M120: 33.44867
A121: 112 | B121: INDIGO | C121: 1283.5 | D121: 1293.55 | E121: 1264.95 | F121: 1246.40 | G121: 1217.80 | H121: 1312.10 | I121: 1340.70 | J121: 1359.25 | K121: 1322.15 | L121: 1275 | M121: 7.58736
A122: 113 | B122: IPCALAB | C122: 663.75 | D122: 667.60 | E122: 647.55 | F122: 631.35 | G122: 611.30 | H122: 683.80 | I122: 703.85 | J122: 720.05 | K122: 687.65 | L122: 651.4 | M122: 1.64048
A123: 114 | B123: JSWENERGY | C123: 79.1 | D123: 79.88 | E123: 77.92 | F123: 76.73 | G123: 74.77 | H123: 81.07 | I123: 83.03 | J123: 84.22 | K123: 81.85 | L123: 78.7 | M123: 18.15449
A124: 115 | B124: JSWSTEEL | C124: 293.5 | D124: 295.83 | E124: 289.77 | F124: 286.03 | G124: 279.97 | H124: 299.57 | I124: 305.63 | J124: 309.37 | K124: 301.9 | L124: 292.1 | M124: 97.55916
A125: 116 | B125: JINDALSTEL | C125: 233.65 | D125: 237.85 | E125: 227.35 | F125: 221.05 | G125: 210.55 | H125: 244.15 | I125: 254.65 | J125: 260.95 | K125: 248.35 | L125: 231.55 | M125: 151.21389
A126: 117 | B126: JUBLFOOD | C126: 1989.25 | D126: 2000.80 | E126: 1960.65 | F126: 1932.05 | G126: 1891.90 | H126: 2029.40 | I126: 2069.55 | J126: 2098.15 | K126: 2040.95 | L126: 1972.2 | M126: 8.66691
A127: 118 | B127: JUBILANT | C127: 817.3 | D127: 833.23 | E127: 790.27 | F127: 763.23 | G127: 720.27 | H127: 860.27 | I127: 903.23 | J127: 930.27 | K127: 876.2 | L127: 806.2 | M127: 9.80795
A128: 119 | B128: KARURVYSYA | C128: 103.05 | D128: 104.35 | E128: 101.15 | F128: 99.25 | G128: 96.05 | H128: 106.25 | I128: 109.45 | J128: 111.35 | K128: 107.55 | L128: 102.45 | M128: 11.70882
A129: 120 | B129: KOTAKBANK | C129: 1082.45 | D129: 1087.90 | E129: 1069.85 | F129: 1057.25 | G129: 1039.20 | H129: 1100.50 | I129: 1118.55 | J129: 1131.15 | K129: 1105.95 | L129: 1075.3 | M129: 24.04151
A130: 121 | B130: L&TFH | C130: 159.7 | D130: 160.50 | E130: 157.70 | F130: 155.70 | G130: 152.90 | H130: 162.50 | I130: 165.30 | J130: 167.30 | K130: 163.3 | L130: 158.5 | M130: 29.64624
A131: 122 | B131: LICHSGFIN | C131: 513.05 | D131: 515.90 | E131: 507.80 | F131: 502.55 | G131: 494.45 | H131: 521.15 | I131: 529.25 | J131: 534.50 | K131: 524 | L131: 510.65 | M131: 19.93052
A132: 123 | B132: LT | C132: 1283.4 | D132: 1292.43 | E132: 1265.97 | F132: 1248.53 | G132: 1222.07 | H132: 1309.87 | I132: 1336.33 | J132: 1353.77 | K132: 1318.9 | L132: 1275 | M132: 23.81856
A133: 124 | B133: LUPIN | C133: 773.4 | D133: 778.93 | E133: 762.87 | F133: 752.33 | G133: 736.27 | H133: 789.47 | I133: 805.53 | J133: 816.07 | K133: 795 | L133: 768.4 | M133: 25.26715
A134: 125 | B134: MRF | C134: 71475.85 | D134: 71928.62 | E134: 70857.23 | F134: 70238.62 | G134: 69167.23 | H134: 72547.23 | I134: 73618.62 | J134: 74237.23 | K134: 73000 | L134: 71310 | M134: 0.05388
A135: 126 | B135: MGL | C135: 1018.65 | D135: 1026.68 | E135: 1006.97 | F135: 995.28 | G135: 975.57 | H135: 1038.37 | I135: 1058.08 | J135: 1069.77 | K135: 1046.4 | L135: 1015 | M135: 1.78762
A136: 127 | B136: M&MFIN | C136: 433.35 | D136: 436.33 | E136: 425.17 | F136: 416.98 | G136: 405.82 | H136: 444.52 | I136: 455.68 | J136: 463.87 | K136: 447.5 | L136: 428.15 | M136: 13.76669
A137: 128 | B137: M&M | C137: 719.9 | D137: 726.30 | E137: 709.60 | F137: 699.30 | G137: 682.60 | H137: 736.60 | I137: 753.30 | J137: 763.60 | K137: 743 | L137: 716 | M137: 17.63292
A138: 129 | B138: MANAPPURAM | C138: 106 | D138: 106.40 | E138: 103.80 | F138: 101.60 | G138: 99.00 | H138: 108.60 | I138: 111.20 | J138: 113.40 | K138: 109 | L138: 104.2 | M138: 25.80108
A139: 130 | B139: MRPL | C139: 115.75 | D139: 115.77 | E139: 114.23 | F139: 112.72 | G139: 111.18 | H139: 117.28 | I139: 118.82 | J139: 120.33 | K139: 117.3 | L139: 114.25 | M139: 18.40184
A140: 131 | B140: MARICO | C140: 309.5 | D140: 309.75 | E140: 306.10 | F140: 302.70 | G140: 299.05 | H140: 313.15 | I140: 316.80 | J140: 320.20 | K140: 313.4 | L140: 306.35 | M140: 6.43097
A141: 132 | B141: MARUTI | C141: 8616.5 | D141: 8700.50 | E141: 8516.00 | F141: 8415.50 | G141: 8231.00 | H141: 8801.00 | I141: 8985.50 | J141: 9086.00 | K141: 8885 | L141: 8600 | M141: 5.43686
A142: 133 | B142: MFSL | C142: 490.2 | D142: 489.43 | E142: 484.87 | F142: 479.53 | G142: 474.97 | H142: 494.77 | I142: 499.33 | J142: 504.67 | K142: 494 | L142: 484.1 | M142: 6.38482
A143: 134 | B143: MINDTREE | C143: 826.1 | D143: 838.92 | E143: 807.23 | F143: 788.37 | G143: 756.68 | H143: 857.78 | I143: 889.47 | J143: 908.33 | K143: 870.6 | L143: 820.05 | M143: 25.58913
A144: 135 | B144: MOTHERSUMI | C144: 307.2 | D144: 309.37 | E144: 303.83 | F144: 300.47 | G144: 294.93 | H144: 312.73 | I144: 318.27 | J144: 321.63 | K144: 314.9 | L144: 306 | M144: 30.38607
A145: 136 | B145: MPHASIS | C145: 846.35 | D145: 851.10 | E145: 837.30 | F145: 828.25 | G145: 814.45 | H145: 860.15 | I145: 873.95 | J145: 883.00 | K145: 864.9 | L145: 842.05 | M145: 2.83051
A146: 137 | B146: MUTHOOTFIN | C146: 381.5 | D146: 384.85 | E146: 373.70 | F146: 365.90 | G146: 354.75 | H146: 392.65 | I146: 403.80 | J146: 411.60 | K146: 396 | L146: 377.05 | M146: 5.2975
A147: 138 | B147: NATCOPHARM | C147: 729.35 | D147: 739.62 | E147: 711.73 | F147: 694.12 | G147: 666.23 | H147: 757.23 | I147: 785.12 | J147: 802.73 | K147: 767.5 | L147: 722 | M147: 4.58009
A148: 139 | B148: NBCC | C148: 189.15 | D148: 190.55 | E148: 186.60 | F148: 184.05 | G148: 180.10 | H148: 193.10 | I148: 197.05 | J148: 199.60 | K148: 194.5 | L148: 188 | M148: 11.3516
A149: 140 | B149: NHPC | C149: 27.7 | D149: 27.75 | E149: 27.55 | F149: 27.40 | G149: 27.20 | H149: 27.90 | I149: 28.10 | J149: 28.25 | K149: 27.95 | L149: 27.6 | M149: 60.39018
A150: 141 | B150: NMDC | C150: 122.9 | D150: 123.85 | E150: 121.55 | F150: 120.20 | G150: 117.90 | H150: 125.20 | I150: 127.50 | J150: 128.85 | K150: 126.15 | L150: 122.5 | M150: 34.63892
A151: 142 | B151: NTPC | C151: 163.35 | D151: 163.50 | E151: 162.05 | F151: 160.75 | G151: 159.30 | H151: 164.80 | I151: 166.25 | J151: 167.55 | K151: 164.95 | L151: 162.2 | M151: 51.14754
A152: 143 | B152: NATIONALUM | C152: 62.2 | D152: 63.18 | E152: 60.57 | F152: 58.93 | G152: 56.32 | H152: 64.82 | I152: 67.43 | J152: 69.07 | K152: 65.8 | L152: 61.55 | M152: 140.53132
A153: 144 | B153: OBEROIRLTY | C153: 481.35 | D153: 488.35 | E153: 464.20 | F153: 447.05 | G153: 422.90 | H153: 505.50 | I153: 529.65 | J153: 546.80 | K153: 512.5 | L153: 471.2 | M153: 11.46787
A154: 145 | B154: ONGC | C154: 185.4 | D154: 185.60 | E154: 184.30 | F154: 183.20 | G154: 181.90 | H154: 186.70 | I154: 188.00 | J154: 189.10 | K154: 186.9 | L154: 184.5 | M154: 29.06142
A155: 146 | B155: OIL | C155: 346.55 | D155: 348.18 | E155: 342.42 | F155: 338.28 | G155: 332.52 | H155: 352.32 | I155: 358.08 | J155: 362.22 | K155: 353.95 | L155: 344.05 | M155: 4.27453
A156: 147 | B156: OFSS | C156: 3763.7 | D156: 3766.23 | E156: 3717.47 | F156: 3671.23 | G156: 3622.47 | H156: 3812.47 | I156: 3861.23 | J156: 3907.47 | K156: 3815 | L156: 3720 | M156: 0.41024
A157: 148 | B157: PCJEWELLER | C157: 340 | D157: 342.42 | E157: 333.23 | F157: 326.47 | G157: 317.28 | H157: 349.18 | I157: 358.37 | J157: 365.13 | K157: 351.6 | L157: 335.65 | M157: 91.91994
A158: 149 | B158: PIIND | C158: 877.5 | D158: 874.23 | E158: 868.27 | F158: 859.03 | G158: 853.07 | H158: 883.47 | I158: 889.43 | J158: 898.67 | K158: 880.2 | L158: 865 | M158: 0.61073
A159: 150 | B159: PNBHOUSING | C159: 1161.8 | D159: 1157.20 | E159: 1103.40 | F159: 1045.00 | G159: 991.20 | H159: 1215.60 | I159: 1269.40 | J159: 1327.80 | K159: 1211 | L159: 1098.8 | M159: 3.39228
A160: 151 | B160: PAGEIND | C160: 20989.45 | D160: 21150.15 | E160: 20500.30 | F160: 20011.15 | G160: 19361.30 | H160: 21639.30 | I160: 22289.15 | J160: 22778.30 | K160: 21800 | L160: 20661 | M160: 0.12236
A161: 152 | B161: PETRONET | C161: 233.95 | D161: 235.53 | E161: 231.17 | F161: 228.38 | G161: 224.02 | H161: 238.32 | I161: 242.68 | J161: 245.47 | K161: 239.9 | L161: 232.75 | M161: 35.26424
A162: 153 | B162: PIDILITIND | C162: 882.05 | D162: 885.25 | E162: 874.50 | F162: 866.95 | G162: 856.20 | H162: 892.80 | I162: 903.55 | J162: 911.10 | K162: 896 | L162: 877.7 | M162: 2.96228
A163: 154 | B163: PEL | C163: 2369.5 | D163: 2399.83 | E163: 2329.77 | F163: 2290.03 | G163: 2219.97 | H163: 2439.57 | I163: 2509.63 | J163: 2549.37 | K163: 2469.9 | L163: 2360.1 | M163: 2.74977
A164: 155 | B164: PFC | C164: 99 | D164: 99.62 | E164: 97.68 | F164: 96.37 | G164: 94.43 | H164: 100.93 | I164: 102.87 | J164: 104.18 | K164: 101.55 | L164: 98.3 | M164: 72.25144
A165: 156 | B165: POWERGRID | C165: 193.15 | D165: 194.25 | E165: 191.00 | F165: 188.85 | G165: 185.60 | H165: 196.40 | I165: 199.65 | J165: 201.80 | K165: 197.5 | L165: 192.1 | M165: 53.57824
A166: 157 | B166: PRESTIGE | C166: 314.05 | D166: 318.02 | E166: 306.03 | F166: 298.02 | G166: 286.03 | H166: 326.03 | I166: 338.02 | J166: 346.03 | K166: 330 | L166: 310 | M166: 2.60601
A167: 158 | B167: PGHH | C167: 9319 | D167: 9319.32 | E167: 9275.68 | F167: 9232.37 | G167: 9188.73 | H167: 9362.63 | I167: 9406.27 | J167: 9449.58 | K167: 9362.95 | L167: 9276 | M167: 0.00777
A168: 159 | B168: PNB | C168: 97.85 | D168: 98.88 | E168: 95.77 | F168: 93.68 | G168: 90.57 | H168: 100.97 | I168: 104.08 | J168: 106.17 | K168: 102 | L168: 96.8 | M168: 434.75662
A169: 160 | B169: RBLBANK | C169: 470 | D169: 473.88 | E169: 464.12 | F169: 458.23 | G169: 448.47 | H169: 479.77 | I169: 489.53 | J169: 495.42 | K169: 483.65 | L169: 468 | M169: 5.3342
A170: 161 | B170: RAJESHEXPO | C170: 794.15 | D170: 798.68 | E170: 784.47 | F170: 774.78 | G170: 760.57 | H170: 808.37 | I170: 822.58 | J170: 832.27 | K170: 812.9 | L170: 789 | M170: 1.03488
A171: 162 | B171: RELCAPITAL | C171: 443 | D171: 447.83 | E171: 433.47 | F171: 423.93 | G171: 409.57 | H171: 457.37 | I171: 471.73 | J171: 481.27 | K171: 462.2 | L171: 438.3 | M171: 43.2122
A172: 163 | B172: RCOM | C172: 26.35 | D172: 26.68 | E172: 24.67 | F172: 22.98 | G172: 20.97 | H172: 28.37 | I172: 30.38 | J172: 32.07 | K172: 28.7 | L172: 25 | M172: 971.04804
A173: 164 | B173: RELIANCE | C173: 910.85 | D173: 917.38 | E173: 898.57 | F173: 886.28 | G173: 867.47 | H173: 929.67 | I173: 948.48 | J173: 960.77 | K173: 936.2 | L173: 905.1 | M173: 73.2368
A174: 165 | B174: RELINFRA | C174: 433.35 | D174: 437.50 | E174: 424.05 | F174: 414.75 | G174: 401.30 | H174: 446.80 | I174: 460.25 | J174: 469.55 | K174: 450.95 | L174: 428.2 | M174: 33.18236
A175: 166 | B175: RPOWER | C175: 41.2 | D175: 41.62 | E175: 40.13 | F175: 39.07 | G175: 37.58 | H175: 42.68 | I175: 44.17 | J175: 45.23 | K175: 43.1 | L175: 40.55 | M175: 56.80107
A176: 167 | B176: RECLTD | C176: 138.9 | D176: 140.05 | E176: 136.85 | F176: 134.80 | G176: 131.60 | H176: 142.10 | I176: 145.30 | J176: 147.35 | K176: 143.25 | L176: 138 | M176: 41.16691
A177: 168 | B177: SRF | C177: 1856.6 | D177: 1868.53 | E177: 1833.07 | F177: 1809.53 | G177: 1774.07 | H177: 1892.07 | I177: 1927.53 | J177: 1951.07 | K177: 1904 | L177: 1845 | M177: 1.27481
A178: 169 | B178: SHREECEM | C178: 16645.9 | D178: 16748.08 | E178: 16497.42 | F178: 16348.93 | G178: 16098.27 | H178: 16896.57 | I178: 17147.23 | J178: 17295.72 | K178: 16998.75 | L178: 16599.6 | M178: 0.09289
A179: 170 | B179: SRTRANSFIN | C179: 1356 | D179: 1357.50 | E179: 1311.05 | F179: 1266.10 | G179: 1219.65 | H179: 1402.45 | I179: 1448.90 | J179: 1493.85 | K179: 1403.95 | L179: 1312.55 | M179: 9.2896
A180: 171 | B180: SIEMENS | C180: 1128.75 | D180: 1135.53 | E180: 1114.22 | F180: 1099.68 | G180: 1078.37 | H180: 1150.07 | I180: 1171.38 | J180: 1185.92 | K180: 1156.85 | L180: 1121 | M180: 2.40773
A181: 172 | B181: SBIN | C181: 256.55 | D181: 259.18 | E181: 252.37 | F181: 248.18 | G181: 241.37 | H181: 263.37 | I181: 270.18 | J181: 274.37 | K181: 266 | L181: 255 | M181: 207.78164
A182: 173 | B182: SAIL | C182: 75.75 | D182: 77.10 | E182: 73.45 | F182: 71.15 | G182: 67.50 | H182: 79.40 | I182: 83.05 | J182: 85.35 | K182: 80.75 | L182: 74.8 | M182: 217.66297
A183: 174 | B183: SPARC | C183: 416.5 | D183: 419.67 | E183: 410.33 | F183: 404.17 | G183: 394.83 | H183: 425.83 | I183: 435.17 | J183: 441.33 | K183: 429 | L183: 413.5 | M183: 4.06
A184: 175 | B184: SUNPHARMA | C184: 531.75 | D184: 541.58 | E184: 520.17 | F184: 508.58 | G184: 487.17 | H184: 553.17 | I184: 574.58 | J184: 586.17 | K184: 563 | L184: 530 | M184: 98.25945
A185: 176 | B185: SUNTV | C185: 926.8 | D185: 929.45 | E185: 914.00 | F185: 901.20 | G185: 885.75 | H185: 942.25 | I185: 957.70 | J185: 970.50 | K185: 944.9 | L185: 916.65 | M185: 17.01591
A186: 177 | B186: SUZLON | C186: 12.2 | D186: 12.33 | E186: 11.92 | F186: 11.63 | G186: 11.22 | H186: 12.62 | I186: 13.03 | J186: 13.32 | K186: 12.75 | L186: 12.05 | M186: 266.81253
A187: 178 | B187: SYNDIBANK | C187: 56.3 | D187: 57.33 | E187: 54.47 | F187: 52.63 | G187: 49.77 | H187: 59.17 | I187: 62.03 | J187: 63.87 | K187: 60.2 | L187: 55.5 | M187: 44.28803
A188: 179 | B188: SYNGENE | C188: 594.05 | D188: 597.95 | E188: 571.20 | F188: 548.35 | G188: 521.60 | H188: 620.80 | I188: 647.55 | J188: 670.40 | K188: 624.7 | L188: 575.1 | M188: 3.72777
A189: 180 | B189: TV18BRDCST | C189: 60.45 | D189: 61.30 | E189: 58.95 | F189: 57.45 | G189: 55.10 | H189: 62.80 | I189: 65.15 | J189: 66.65 | K189: 63.65 | L189: 59.8 | M189: 136.39055
A190: 181 | B190: TVSMOTOR | C190: 644.4 | D190: 652.53 | E190: 631.87 | F190: 619.33 | G190: 598.67 | H190: 665.07 | I190: 685.73 | J190: 698.27 | K190: 673.2 | L190: 640 | M190: 10.45478
A191: 182 | B191: TATACHEM | C191: 673.6 | D191: 678.03 | E191: 667.07 | F191: 660.53 | G191: 649.57 | H191: 684.57 | I191: 695.53 | J191: 702.07 | K191: 689 | L191: 671.5 | M191: 6.01845
A192: 183 | B192: TATACOMM | C192: 624.3 | D192: 627.13 | E192: 617.27 | F192: 610.23 | G192: 600.37 | H192: 634.17 | I192: 644.03 | J192: 651.07 | K192: 637 | L192: 620.1 | M192: 4.24371
A193: 184 | B193: TCS | C193: 3042.8 | D193: 3066.65 | E193: 3006.30 | F193: 2969.80 | G193: 2909.45 | H193: 3103.15 | I193: 3163.50 | J193: 3200.00 | K193: 3127 | L193: 3030.15 | M193: 9.53382
A194: 185 | B194: TATAGLOBAL | C194: 274.15 | D194: 276.23 | E194: 269.37 | F194: 264.58 | G194: 257.72 | H194: 281.02 | I194: 287.88 | J194: 292.67 | K194: 283.1 | L194: 271.45 | M194: 66.01857
A195: 186 | B195: TATAMTRDVR | C195: 196.15 | D195: 197.55 | E195: 193.60 | F195: 191.05 | G195: 187.10 | H195: 200.10 | I195: 204.05 | J195: 206.60 | K195: 201.5 | L195: 195 | M195: 24.41804
A196: 187 | B196: TATAMOTORS | C196: 346.5 | D196: 349.82 | E196: 341.68 | F196: 336.87 | G196: 328.73 | H196: 354.63 | I196: 362.77 | J196: 367.58 | K196: 357.95 | L196: 345 | M196: 88.76632
A197: 188 | B197: TATAPOWER | C197: 81.75 | D197: 82.00 | E197: 80.85 | F197: 79.95 | G197: 78.80 | H197: 82.90 | I197: 84.05 | J197: 84.95 | K197: 83.15 | L197: 81.1 | M197: 47.6407
A198: 189 | B198: TATASTEEL | C198: 659.75 | D198: 663.43 | E198: 652.87 | F198: 645.98 | G198: 635.42 | H198: 670.32 | I198: 680.88 | J198: 687.77 | K198: 674 | L198: 656.55 | M198: 84.1496
A199: 190 | B199: TECHM | C199: 617.25 | D199: 622.05 | E199: 610.20 | F199: 603.15 | G199: 591.30 | H199: 629.10 | I199: 640.95 | J199: 648.00 | K199: 633.9 | L199: 615 | M199: 24.24505
A200: 191 | B200: RAMCOCEM | C200: 742.25 | D200: 742.55 | E200: 736.70 | F200: 731.15 | G200: 725.30 | H200: 748.10 | I200: 753.95 | J200: 759.50 | K200: 748.4 | L200: 737 | M200: 1.32169
A201: 192 | B201: TITAN | C201: 807.65 | D201: 809.97 | E201: 796.73 | F201: 785.82 | G201: 772.58 | H201: 820.88 | I201: 834.12 | J201: 845.03 | K201: 823.2 | L201: 799.05 | M201: 13.58775
A202: 193 | B202: TORNTPHARM | C202: 1345.95 | D202: 1353.38 | E202: 1331.77 | F202: 1317.58 | G202: 1295.97 | H202: 1367.57 | I202: 1389.18 | J202: 1403.37 | K202: 1375 | L202: 1339.2 | M202: 5.41245
A203: 194 | B203: TORNTPOWER | C203: 258.7 | D203: 260.83 | E203: 255.37 | F203: 252.03 | G203: 246.57 | H203: 264.17 | I203: 269.63 | J203: 272.97 | K203: 266.3 | L203: 257.5 | M203: 22.56273
A204: 195 | B204: UPL | C204: 702.4 | D204: 709.40 | E204: 692.00 | F204: 681.60 | G204: 664.20 | H204: 719.80 | I204: 737.20 | J204: 747.60 | K204: 726.8 | L204: 699 | M204: 11.18988
A205: 196 | B205: ULTRACEMCO | C205: 4150.3 | D205: 4142.55 | E205: 4110.45 | F205: 4070.60 | G205: 4038.50 | H205: 4182.40 | I205: 4214.50 | J205: 4254.35 | K205: 4174.65 | L205: 4102.7 | M205: 2.35296
... 30 more rows

Sheet MidCap Intra
L5: Back To Main Page
A6: FOR INTRA DAY TRADING | K6: =Main!B10 -> 2018-03-07
A9: Sr.no | B9: Scrip | C9: CLOSE RATE | D9: Pivot Point | E9: Supports | H9: Resistances
C10: Point | E10: S1 | F10: S2 | G10: S3 | H10: R1 | I10: R2 | J10: R3 | K10: HIGH | L10: LOW | M10: Total Trade Quanity in Lakhs
A11: 1 | B11: 3MINDIA | C11: 20747.9 | D11: 20816.27 | E11: 20532.88 | F11: 20317.87 | G11: 20034.48 | H11: 21031.28 | I11: 21314.67 | J11: 21529.68 | K11: 21099.65 | L11: 20601.25 | M11: 0.02669
A12: 2 | B12: 8KMILES | C12: 710.5 | D12: 717.52 | E12: 696.03 | F12: 681.57 | G12: 660.08 | H12: 731.98 | I12: 753.47 | J12: 767.93 | K12: 739 | L12: 703.05 | M12: 1.58089
A13: 3 | B13: ABB | C13: 1475.45 | D13: 1483.48 | E13: 1442.97 | F13: 1410.48 | G13: 1369.97 | H13: 1515.97 | I13: 1556.48 | J13: 1588.97 | K13: 1524 | L13: 1451 | M13: 0.72789
A14: 4 | B14: ACC | C14: 1595.3 | D14: 1601.10 | E14: 1585.20 | F14: 1575.10 | G14: 1559.20 | H14: 1611.20 | I14: 1627.10 | J14: 1637.20 | K14: 1617 | L14: 1591 | M14: 2.38297
A15: 5 | B15: AIAENG | C15: 1401.95 | D15: 1411.70 | E15: 1370.45 | F15: 1338.95 | G15: 1297.70 | H15: 1443.20 | I15: 1484.45 | J15: 1515.95 | K15: 1452.95 | L15: 1380.2 | M15: 0.0818
A16: 6 | B16: APLAPOLLO | C16: 2003.9 | D16: 2024.52 | E16: 1979.38 | F16: 1954.87 | G16: 1909.73 | H16: 2049.03 | I16: 2094.17 | J16: 2118.68 | K16: 2069.65 | L16: 2000 | M16: 0.65539
A17: 7 | B17: AUBANK | C17: 583.55 | D17: 583.07 | E17: 573.18 | F17: 562.82 | G17: 552.93 | H17: 593.43 | I17: 603.32 | J17: 613.68 | K17: 592.95 | L17: 572.7 | M17: 0.64457
A18: 8 | B18: AARTIIND | C18: 1159.55 | D18: 1161.00 | E18: 1151.55 | F18: 1143.55 | G18: 1134.10 | H18: 1169.00 | I18: 1178.45 | J18: 1186.45 | K18: 1170.45 | L18: 1153 | M18: 0.11447
A19: 9 | B19: ABAN | C19: 164.45 | D19: 166.45 | E19: 161.50 | F19: 158.55 | G19: 153.60 | H19: 169.40 | I19: 174.35 | J19: 177.30 | K19: 171.4 | L19: 163.5 | M19: 6.26726
A20: 10 | B20: ADANIENT | C20: 186.2 | D20: 189.88 | E20: 176.42 | F20: 166.63 | G20: 153.17 | H20: 199.67 | I20: 213.13 | J20: 222.92 | K20: 203.35 | L20: 180.1 | M20: 80.63223
A21: 11 | B21: ADANIPORTS | C21: 405.25 | D21: 404.72 | E21: 395.68 | F21: 386.12 | G21: 377.08 | H21: 414.28 | I21: 423.32 | J21: 432.88 | K21: 413.75 | L21: 395.15 | M21: 33.21338
A22: 12 | B22: ADANIPOWER | C22: 29.5 | D22: 29.90 | E22: 28.35 | F22: 27.20 | G22: 25.65 | H22: 31.05 | I22: 32.60 | J22: 33.75 | K22: 31.45 | L22: 28.75 | M22: 79.22751
A23: 13 | B23: ADANITRANS | C23: 194.65 | D23: 195.55 | E23: 186.60 | F23: 178.55 | G23: 169.60 | H23: 203.60 | I23: 212.55 | J23: 220.60 | K23: 204.5 | L23: 187.5 | M23: 6.89262
A24: 14 | B24: ABFRL | C24: 143.8 | D24: 146.08 | E24: 140.72 | F24: 137.63 | G24: 132.27 | H24: 149.17 | I24: 154.53 | J24: 157.62 | K24: 151.45 | L24: 143 | M24: 9.11776
A25: 15 | B25: ADVENZYMES | C25: 233.4 | D25: 235.10 | E25: 230.40 | F25: 227.40 | G25: 222.70 | H25: 238.10 | I25: 242.80 | J25: 245.80 | K25: 239.8 | L25: 232.1 | M25: 1.22225
A26: 16 | B26: AEGISCHEM | C26: 236.75 | D26: 238.10 | E26: 228.65 | F26: 220.55 | G26: 211.10 | H26: 246.20 | I26: 255.65 | J26: 263.75 | K26: 247.55 | L26: 230 | M26: 2.02482
A27: 17 | B27: AHLUCONT | C27: 371.85 | D27: 372.62 | E27: 367.23 | F27: 362.62 | G27: 357.23 | H27: 377.23 | I27: 382.62 | J27: 387.23 | K27: 378 | L27: 368 | M27: 0.06701
A28: 18 | B28: AJANTPHARM | C28: 1338.05 | D28: 1348.20 | E28: 1314.85 | F28: 1291.65 | G28: 1258.30 | H28: 1371.40 | I28: 1404.75 | J28: 1427.95 | K28: 1381.55 | L28: 1325 | M28: 4.71601
A29: 19 | B29: AKZOINDIA | C29: 1802.5 | D29: 1810.77 | E29: 1786.63 | F29: 1770.77 | G29: 1746.63 | H29: 1826.63 | I29: 1850.77 | J29: 1866.63 | K29: 1834.9 | L29: 1794.9 | M29: 0.18673
A30: 20 | B30: APLLTD | C30: 550.85 | D30: 550.42 | E30: 545.43 | F30: 540.02 | G30: 535.03 | H30: 555.83 | I30: 560.82 | J30: 566.23 | K30: 555.4 | L30: 545 | M30: 1.95796
A31: 21 | B31: ALKEM | C31: 2260.15 | D31: 2249.22 | E31: 2225.93 | F31: 2191.72 | G31: 2168.43 | H31: 2283.43 | I31: 2306.72 | J31: 2340.93 | K31: 2272.5 | L31: 2215 | M31: 0.26947
A32: 22 | B32: ALBK | C32: 48.8 | D32: 49.40 | E32: 47.60 | F32: 46.40 | G32: 44.60 | H32: 50.60 | I32: 52.40 | J32: 53.60 | K32: 51.2 | L32: 48.2 | M32: 34.14987
A33: 23 | B33: ALLCARGO | C33: 170.4 | D33: 172.13 | E33: 168.22 | F33: 166.03 | G33: 162.12 | H33: 174.32 | I33: 178.23 | J33: 180.42 | K33: 176.05 | L33: 169.95 | M33: 1.93557
A34: 24 | B34: AMARAJABAT | C34: 798.7 | D34: 800.57 | E34: 788.13 | F34: 777.57 | G34: 765.13 | H34: 811.13 | I34: 823.57 | J34: 834.13 | K34: 813 | L34: 790 | M34: 2.54905
A35: 25 | B35: AMBUJACEM | C35: 240.65 | D35: 243.20 | E35: 237.40 | F35: 234.15 | G35: 228.35 | H35: 246.45 | I35: 252.25 | J35: 255.50 | K35: 249 | L35: 239.95 | M35: 27.27521
A36: 26 | B36: ANDHRABANK | C36: 42.65 | D36: 43.35 | E36: 41.50 | F36: 40.35 | G36: 38.50 | H36: 44.50 | I36: 46.35 | J36: 47.50 | K36: 45.2 | L36: 42.2 | M36: 33.71917
A37: 27 | B37: APARINDS | C37: 770.35 | D37: 776.60 | E37: 763.75 | F37: 757.15 | G37: 744.30 | H37: 783.20 | I37: 796.05 | J37: 802.65 | K37: 789.45 | L37: 770 | M37: 0.07575
A38: 28 | B38: APOLLOHOSP | C38: 1160.8 | D38: 1164.93 | E38: 1140.87 | F38: 1120.93 | G38: 1096.87 | H38: 1184.87 | I38: 1208.93 | J38: 1228.87 | K38: 1189 | L38: 1145 | M38: 3.02547
A39: 29 | B39: APOLLOTYRE | C39: 258.55 | D39: 258.85 | E39: 254.70 | F39: 250.85 | G39: 246.70 | H39: 262.70 | I39: 266.85 | J39: 270.70 | K39: 263 | L39: 255 | M39: 37.45933
A40: 30 | B40: ARVIND | C40: 398.25 | D40: 401.87 | E40: 391.93 | F40: 385.62 | G40: 375.68 | H40: 408.18 | I40: 418.12 | J40: 424.43 | K40: 411.8 | L40: 395.55 | M40: 15.97438
A41: 31 | B41: ASHOKLEY | C41: 139.85 | D41: 140.67 | E41: 138.43 | F41: 137.02 | G41: 134.78 | H41: 142.08 | I41: 144.32 | J41: 145.73 | K41: 142.9 | L41: 139.25 | M41: 126.48186
A42: 32 | B42: ASHOKA | C42: 225.35 | D42: 225.62 | E42: 222.28 | F42: 219.22 | G42: 215.88 | H42: 228.68 | I42: 232.02 | J42: 235.08 | K42: 228.95 | L42: 222.55 | M42: 1.46183
A43: 33 | B43: ASIANPAINT | C43: 1101.6 | D43: 1104.73 | E43: 1096.87 | F43: 1092.13 | G43: 1084.27 | H43: 1109.47 | I43: 1117.33 | J43: 1122.07 | K43: 1112.6 | L43: 1100 | M43: 7.02294
A44: 34 | B44: ASTRAZEN | C44: 1003.7 | D44: 1006.60 | E44: 992.10 | F44: 980.50 | G44: 966.00 | H44: 1018.20 | I44: 1032.70 | J44: 1044.30 | K44: 1021.1 | L44: 995 | M44: 0.01686
A45: 35 | B45: ASTRAL | C45: 851.5 | D45: 862.10 | E45: 839.40 | F45: 827.30 | G45: 804.60 | H45: 874.20 | I45: 896.90 | J45: 909.00 | K45: 884.8 | L45: 850 | M45: 0.46107
A46: 36 | B46: ATUL | C46: 2652.6 | D46: 2626.33 | E46: 2587.72 | F46: 2522.83 | G46: 2484.22 | H46: 2691.22 | I46: 2729.83 | J46: 2794.72 | K46: 2664.95 | L46: 2561.45 | M46: 0.16293
A47: 37 | B47: AUROPHARMA | C47: 606.2 | D47: 609.17 | E47: 598.43 | F47: 590.67 | G47: 579.93 | H47: 616.93 | I47: 627.67 | J47: 635.43 | K47: 619.9 | L47: 601.4 | M47: 45.05696
A48: 38 | B48: AVANTIFEED | C48: 2418.75 | D48: 2438.58 | E48: 2382.17 | F48: 2345.58 | G48: 2289.17 | H48: 2475.17 | I48: 2531.58 | J48: 2568.17 | K48: 2495 | L48: 2402 | M48: 0.67683
A49: 39 | B49: DMART | C49: 1327.15 | D49: 1334.82 | E49: 1304.53 | F49: 1281.92 | G49: 1251.63 | H49: 1357.43 | I49: 1387.72 | J49: 1410.33 | K49: 1365.1 | L49: 1312.2 | M49: 11.6243
A50: 40 | B50: AXISBANK | C50: 517.35 | D50: 519.73 | E50: 508.82 | F50: 500.28 | G50: 489.37 | H50: 528.27 | I50: 539.18 | J50: 547.72 | K50: 530.65 | L50: 511.2 | M50: 122.4016
A51: 41 | B51: BASF | C51: 2036.2 | D51: 2058.88 | E51: 1982.82 | F51: 1929.43 | G51: 1853.37 | H51: 2112.27 | I51: 2188.33 | J51: 2241.72 | K51: 2134.95 | L51: 2005.5 | M51: 0.08479
A52: 42 | B52: BEML | C52: 1259.25 | D52: 1274.75 | E52: 1224.50 | F52: 1189.75 | G52: 1139.50 | H52: 1309.50 | I52: 1359.75 | J52: 1394.50 | K52: 1325 | L52: 1240 | M52: 20.40021
A53: 43 | B53: BFUTILITIE | C53: 425.85 | D53: 430.67 | E53: 412.98 | F53: 400.12 | G53: 382.43 | H53: 443.53 | I53: 461.22 | J53: 474.08 | K53: 448.35 | L53: 417.8 | M53: 6.84887
A54: 44 | B54: BGRENERGY | C54: 113.8 | D54: 114.72 | E54: 111.58 | F54: 109.37 | G54: 106.23 | H54: 116.93 | I54: 120.07 | J54: 122.28 | K54: 117.85 | L54: 112.5 | M54: 0.43176
A55: 45 | B55: BSE | C55: 795.05 | D55: 798.92 | E55: 788.83 | F55: 782.62 | G55: 772.53 | H55: 805.13 | I55: 815.22 | J55: 821.43 | K55: 809 | L55: 792.7 | M55: 1.45492
A56: 46 | B56: BAJAJ-AUTO | C56: 2899.2 | D56: 2919.50 | E56: 2862.95 | F56: 2826.70 | G56: 2770.15 | H56: 2955.75 | I56: 3012.30 | J56: 3048.55 | K56: 2976.05 | L56: 2883.25 | M56: 2.58501
A57: 47 | B57: BAJAJCORP | C57: 468.4 | D57: 471.48 | E57: 460.27 | F57: 452.13 | G57: 440.92 | H57: 479.62 | I57: 490.83 | J57: 498.97 | K57: 482.7 | L57: 463.35 | M57: 3.9113
A58: 48 | B58: BAJAJELEC | C58: 567.95 | D58: 563.98 | E58: 550.97 | F58: 533.98 | G58: 520.97 | H58: 580.97 | I58: 593.98 | J58: 610.97 | K58: 577 | L58: 547 | M58: 11.144
A59: 49 | B59: BAJFINANCE | C59: 1637.75 | D59: 1645.73 | E59: 1619.62 | F59: 1601.48 | G59: 1575.37 | H59: 1663.87 | I59: 1689.98 | J59: 1708.12 | K59: 1671.85 | L59: 1627.6 | M59: 9.44176
A60: 50 | B60: BAJAJFINSV | C60: 4980.65 | D60: 5011.20 | E60: 4924.45 | F60: 4868.25 | G60: 4781.50 | H60: 5067.40 | I60: 5154.15 | J60: 5210.35 | K60: 5097.95 | L60: 4955 | M60: 0.86842
A61: 51 | B61: BAJAJHIND | C61: 11.75 | D61: 11.90 | E61: 11.45 | F61: 11.15 | G61: 10.70 | H61: 12.20 | I61: 12.65 | J61: 12.95 | K61: 12.35 | L61: 11.6 | M61: 33.43081
A62: 52 | B62: BAJAJHLDNG | C62: 2761.35 | D62: 2812.32 | E62: 2669.63 | F62: 2577.92 | G62: 2435.23 | H62: 2904.03 | I62: 3046.72 | J62: 3138.43 | K62: 2955 | L62: 2720.6 | M62: 0.54499
A63: 53 | B63: BALKRISIND | C63: 1015.4 | D63: 1024.62 | E63: 1000.78 | F63: 986.17 | G63: 962.33 | H63: 1039.23 | I63: 1063.07 | J63: 1077.68 | K63: 1048.45 | L63: 1010 | M63: 1.72735
A64: 54 | B64: BALLARPUR | C64: 12.9 | D64: 13.08 | E64: 12.62 | F64: 12.33 | G64: 11.87 | H64: 13.37 | I64: 13.83 | J64: 14.12 | K64: 13.55 | L64: 12.8 | M64: 12.06129
A65: 55 | B65: BALMLAWRIE | C65: 227.2 | D65: 228.40 | E65: 225.50 | F65: 223.80 | G65: 220.90 | H65: 230.10 | I65: 233.00 | J65: 234.70 | K65: 231.3 | L65: 226.7 | M65: 0.39221
A66: 56 | B66: BALRAMCHIN | C66: 100.3 | D66: 102.85 | E66: 95.95 | F66: 91.60 | G66: 84.70 | H66: 107.20 | I66: 114.10 | J66: 118.45 | K66: 109.75 | L66: 98.5 | M66: 63.30628
A67: 57 | B67: BANKBARODA | C67: 135.25 | D67: 136.92 | E67: 132.48 | F67: 129.72 | G67: 125.28 | H67: 139.68 | I67: 144.12 | J67: 146.88 | K67: 141.35 | L67: 134.15 | M67: 108.41359
A68: 58 | B68: BANKINDIA | C68: 103.5 | D68: 106.13 | E68: 99.27 | F68: 95.03 | G68: 88.17 | H68: 110.37 | I68: 117.23 | J68: 121.47 | K68: 113 | L68: 101.9 | M68: 129.55555
A69: 59 | B69: BATAINDIA | C69: 714.9 | D69: 716.80 | E69: 709.10 | F69: 703.30 | G69: 695.60 | H69: 722.60 | I69: 730.30 | J69: 736.10 | K69: 724.5 | L69: 711 | M69: 4.25438
A70: 60 | B70: BERGEPAINT | C70: 242.6 | D70: 243.85 | E70: 238.75 | F70: 234.90 | G70: 229.80 | H70: 247.70 | I70: 252.80 | J70: 256.65 | K70: 248.95 | L70: 240 | M70: 4.74721
A71: 61 | B71: BEL | C71: 152 | D71: 153.70 | E71: 149.45 | F71: 146.90 | G71: 142.65 | H71: 156.25 | I71: 160.50 | J71: 163.05 | K71: 157.95 | L71: 151.15 | M71: 34.81768
A72: 62 | B72: BHARATFIN | C72: 1038.85 | D72: 1041.67 | E72: 1029.58 | F72: 1020.32 | G72: 1008.23 | H72: 1050.93 | I72: 1063.02 | J72: 1072.28 | K72: 1053.75 | L72: 1032.4 | M72: 5.77249
A73: 63 | B73: BHARATFORG | C73: 762 | D73: 763.85 | E73: 755.00 | F73: 748.00 | G73: 739.15 | H73: 770.85 | I73: 779.70 | J73: 786.70 | K73: 772.7 | L73: 756.85 | M73: 8.63068
A74: 64 | B74: BHEL | C74: 88.2 | D74: 89.25 | E74: 86.75 | F74: 85.30 | G74: 82.80 | H74: 90.70 | I74: 93.20 | J74: 94.65 | K74: 91.75 | L74: 87.8 | M74: 51.04528
A75: 65 | B75: BPCL | C75: 445.2 | D75: 445.23 | E75: 435.47 | F75: 425.73 | G75: 415.97 | H75: 454.97 | I75: 464.73 | J75: 474.47 | K75: 455 | L75: 435.5 | M75: 78.54169
A76: 66 | B76: BHARTIARTL | C76: 413.9 | D76: 417.38 | E76: 407.12 | F76: 400.33 | G76: 390.07 | H76: 424.17 | I76: 434.43 | J76: 441.22 | K76: 427.65 | L76: 410.6 | M76: 37.89549
A77: 67 | B77: INFRATEL | C77: 331.95 | D77: 333.73 | E77: 327.02 | F77: 322.08 | G77: 315.37 | H77: 338.67 | I77: 345.38 | J77: 350.32 | K77: 340.45 | L77: 328.8 | M77: 105.97788
A78: 68 | B78: BHUSANSTL | C78: 44.6 | D78: 45.53 | E78: 43.37 | F78: 42.13 | G78: 39.97 | H78: 46.77 | I78: 48.93 | J78: 50.17 | K78: 47.7 | L78: 44.3 | M78: 31.93926
A79: 69 | B79: BIOCON | C79: 632.4 | D79: 634.03 | E79: 624.37 | F79: 616.33 | G79: 606.67 | H79: 642.07 | I79: 651.73 | J79: 659.77 | K79: 643.7 | L79: 626 | M79: 33.43002
A80: 70 | B80: BIRLACORPN | C80: 855.75 | D80: 868.30 | E80: 835.60 | F80: 815.45 | G80: 782.75 | H80: 888.45 | I80: 921.15 | J80: 941.30 | K80: 901 | L80: 848.15 | M80: 0.37596
A81: 71 | B81: BLISSGVS | C81: 186.35 | D81: 188.55 | E81: 183.25 | F81: 180.15 | G81: 174.85 | H81: 191.65 | I81: 196.95 | J81: 200.05 | K81: 193.85 | L81: 185.45 | M81: 0.45418
A82: 72 | B82: BLUEDART | C82: 4295.95 | D82: 4306.32 | E82: 4229.63 | F82: 4163.32 | G82: 4086.63 | H82: 4372.63 | I82: 4449.32 | J82: 4515.63 | K82: 4383 | L82: 4240 | M82: 0.24202
A83: 73 | B83: BLUESTARCO | C83: 791.55 | D83: 794.87 | E83: 778.73 | F83: 765.92 | G83: 749.78 | H83: 807.68 | I83: 823.82 | J83: 836.63 | K83: 811 | L83: 782.05 | M83: 1.27998
A84: 74 | B84: BBTC | C84: 1416.15 | D84: 1423.72 | E84: 1402.43 | F84: 1388.72 | G84: 1367.43 | H84: 1437.43 | I84: 1458.72 | J84: 1472.43 | K84: 1445 | L84: 1410 | M84: 0.95538
A85: 75 | B85: BOMDYEING | C85: 268.65 | D85: 268.02 | E85: 260.03 | F85: 251.42 | G85: 243.43 | H85: 276.63 | I85: 284.62 | J85: 293.23 | K85: 276 | L85: 259.4 | M85: 89.9647
A86: 76 | B86: BRFL | C86: 57.4 | D86: 58.05 | E86: 56.50 | F86: 55.60 | G86: 54.05 | H86: 58.95 | I86: 60.50 | J86: 61.40 | K86: 59.6 | L86: 57.15 | M86: 0.71544
A87: 77 | B87: BOSCHLTD | C87: 18159.75 | D87: 18210.37 | E87: 17954.43 | F87: 17749.12 | G87: 17493.18 | H87: 18415.68 | I87: 18671.62 | J87: 18876.93 | K87: 18466.3 | L87: 18005.05 | M87: 0.27935
A88: 78 | B88: BRIGADE | C88: 274.8 | D88: 274.60 | E88: 271.30 | F88: 267.80 | G88: 264.50 | H88: 278.10 | I88: 281.40 | J88: 284.90 | K88: 277.9 | L88: 271.1 | M88: 1.03111
A89: 79 | B89: BRITANNIA | C89: 4825.2 | D89: 4849.05 | E89: 4763.20 | F89: 4701.20 | G89: 4615.35 | H89: 4911.05 | I89: 4996.90 | J89: 5058.90 | K89: 4934.9 | L89: 4787.05 | M89: 0.78178
A90: 80 | B90: CARERATING | C90: 1343.8 | D90: 1345.68 | E90: 1328.42 | F90: 1313.03 | G90: 1295.77 | H90: 1361.07 | I90: 1378.33 | J90: 1393.72 | K90: 1362.95 | L90: 1330.3 | M90: 0.27477
A91: 81 | B91: CCL | C91: 294.9 | D91: 295.80 | E91: 290.10 | F91: 285.30 | G91: 279.60 | H91: 300.60 | I91: 306.30 | J91: 311.10 | K91: 301.5 | L91: 291 | M91: 0.49943
A92: 82 | B92: CGPOWER | C92: 79.45 | D92: 79.92 | E92: 78.43 | F92: 77.42 | G92: 75.93 | H92: 80.93 | I92: 82.42 | J92: 83.43 | K92: 81.4 | L92: 78.9 | M92: 33.40337
A93: 83 | B93: CRISIL | C93: 1961.8 | D93: 1952.60 | E93: 1940.20 | F93: 1918.60 | G93: 1906.20 | H93: 1974.20 | I93: 1986.60 | J93: 2008.20 | K93: 1965 | L93: 1931 | M93: 0.0834
A94: 84 | B94: CADILAHC | C94: 389.6 | D94: 390.88 | E94: 384.87 | F94: 380.13 | G94: 374.12 | H94: 395.62 | I94: 401.63 | J94: 406.37 | K94: 396.9 | L94: 386.15 | M94: 6.81762
A95: 85 | B95: CANFINHOME | C95: 535 | D95: 540.37 | E95: 526.23 | F95: 517.47 | G95: 503.33 | H95: 549.13 | I95: 563.27 | J95: 572.03 | K95: 554.5 | L95: 531.6 | M95: 9.38254
A96: 86 | B96: CANBK | C96: 267.95 | D96: 272.28 | E96: 259.67 | F96: 251.38 | G96: 238.77 | H96: 280.57 | I96: 293.18 | J96: 301.47 | K96: 284.9 | L96: 264 | M96: 51.89913
A97: 87 | B97: CAPF | C97: 647.65 | D97: 652.55 | E97: 638.70 | F97: 629.75 | G97: 615.90 | H97: 661.50 | I97: 675.35 | J97: 684.30 | K97: 666.4 | L97: 643.6 | M97: 4.21205
A98: 88 | B98: CAPLIPOINT | C98: 621.25 | D98: 620.82 | E98: 612.63 | F98: 604.02 | G98: 595.83 | H98: 629.43 | I98: 637.62 | J98: 646.23 | K98: 629 | L98: 612.2 | M98: 0.43512
A99: 89 | B99: CARBORUNIV | C99: 350.45 | D99: 348.07 | E99: 342.13 | F99: 333.82 | G99: 327.88 | H99: 356.38 | I99: 362.32 | J99: 370.63 | K99: 354 | L99: 339.75 | M99: 3.21166
A100: 90 | B100: CASTROLIND | C100: 201.75 | D100: 202.20 | E100: 199.55 | F100: 197.35 | G100: 194.70 | H100: 204.40 | I100: 207.05 | J100: 209.25 | K100: 204.85 | L100: 200 | M100: 25.24304
A101: 91 | B101: CEATLTD | C101: 1572.2 | D101: 1578.07 | E101: 1561.13 | F101: 1550.07 | G101: 1533.13 | H101: 1589.13 | I101: 1606.07 | J101: 1617.13 | K101: 1595 | L101: 1567 | M101: 4.18998
A102: 92 | B102: CENTRALBK | C102: 63.85 | D102: 64.33 | E102: 62.87 | F102: 61.88 | G102: 60.42 | H102: 65.32 | I102: 66.78 | J102: 67.77 | K102: 65.8 | L102: 63.35 | M102: 2.17353
A103: 93 | B103: CENTURYPLY | C103: 326.85 | D103: 326.45 | E103: 318.90 | F103: 310.95 | G103: 303.40 | H103: 334.40 | I103: 341.95 | J103: 349.90 | K103: 334 | L103: 318.5 | M103: 1.92189
A104: 94 | B104: CENTURYTEX | C104: 1179.5 | D104: 1191.13 | E104: 1158.37 | F104: 1137.23 | G104: 1104.47 | H104: 1212.27 | I104: 1245.03 | J104: 1266.17 | K104: 1223.9 | L104: 1170 | M104: 4.79926
A105: 95 | B105: CERA | C105: 3291.65 | D105: 3310.25 | E105: 3240.50 | F105: 3189.35 | G105: 3119.60 | H105: 3361.40 | I105: 3431.15 | J105: 3482.30 | K105: 3380 | L105: 3259.1 | M105: 0.08209
A106: 96 | B106: CHAMBLFERT | C106: 155.55 | D106: 159.03 | E106: 150.62 | F106: 145.68 | G106: 137.27 | H106: 163.97 | I106: 172.38 | J106: 177.32 | K106: 167.45 | L106: 154.1 | M106: 7.72772
A107: 97 | B107: CHENNPETRO | C107: 353.9 | D107: 356.63 | E107: 348.47 | F107: 343.03 | G107: 334.87 | H107: 362.07 | I107: 370.23 | J107: 375.67 | K107: 364.8 | L107: 351.2 | M107: 5.69688
A108: 98 | B108: CHOLAFIN | C108: 1434.15 | D108: 1442.63 | E108: 1413.72 | F108: 1393.28 | G108: 1364.37 | H108: 1463.07 | I108: 1491.98 | J108: 1512.42 | K108: 1471.55 | L108: 1422.2 | M108: 1.68301
A109: 99 | B109: CIPLA | C109: 584.1 | D109: 584.52 | E109: 579.63 | F109: 575.17 | G109: 570.28 | H109: 588.98 | I109: 593.87 | J109: 598.33 | K109: 589.4 | L109: 580.05 | M109: 18.91302
A110: 100 | B110: CUB | C110: 182.05 | D110: 181.55 | E110: 179.60 | F110: 177.15 | G110: 175.20 | H110: 184.00 | I110: 185.95 | J110: 188.40 | K110: 183.5 | L110: 179.1 | M110: 11.45322
A111: 101 | B111: COALINDIA | C111: 307 | D111: 305.85 | E111: 302.25 | F111: 297.50 | G111: 293.90 | H111: 310.60 | I111: 314.20 | J111: 318.95 | K111: 309.45 | L111: 301.1 | M111: 36.93197
A112: 102 | B112: COCHINSHIP | C112: 525.8 | D112: 528.58 | E112: 520.22 | F112: 514.63 | G112: 506.27 | H112: 534.17 | I112: 542.53 | J112: 548.12 | K112: 536.95 | L112: 523 | M112: 1.17396
A113: 103 | B113: COFFEEDAY | C113: 305.85 | D113: 307.77 | E113: 302.08 | F113: 298.32 | G113: 292.63 | H113: 311.53 | I113: 317.22 | J113: 320.98 | K113: 313.45 | L113: 304 | M113: 1.47838
A114: 104 | B114: COLPAL | C114: 1038.45 | D114: 1042.45 | E114: 1032.00 | F114: 1025.55 | G114: 1015.10 | H114: 1048.90 | I114: 1059.35 | J114: 1065.80 | K114: 1052.9 | L114: 1036 | M114: 0.92786
A115: 105 | B115: CONCOR | C115: 1236.15 | D115: 1249.65 | E115: 1210.20 | F115: 1184.25 | G115: 1144.80 | H115: 1275.60 | I115: 1315.05 | J115: 1341.00 | K115: 1289.1 | L115: 1223.7 | M115: 3.70236
A116: 106 | B116: COROMANDEL | C116: 569.15 | D116: 564.72 | E116: 550.43 | F116: 531.72 | G116: 517.43 | H116: 583.43 | I116: 597.72 | J116: 616.43 | K116: 579 | L116: 546 | M116: 2.07488
A117: 107 | B117: CORPBANK | C117: 31.3 | D117: 31.65 | E117: 30.80 | F117: 30.30 | G117: 29.45 | H117: 32.15 | I117: 33.00 | J117: 33.50 | K117: 32.5 | L117: 31.15 | M117: 1.96537
A118: 108 | B118: COX&KINGS | C118: 249.75 | D118: 249.58 | E118: 244.17 | F118: 238.58 | G118: 233.17 | H118: 255.17 | I118: 260.58 | J118: 266.17 | K118: 255 | L118: 244 | M118: 1.97956
A119: 109 | B119: CROMPTON | C119: 235.4 | D119: 235.60 | E119: 233.30 | F119: 231.20 | G119: 228.90 | H119: 237.70 | I119: 240.00 | J119: 242.10 | K119: 237.9 | L119: 233.5 | M119: 4.26515
A120: 110 | B120: CUMMINSIND | C120: 786.8 | D120: 791.48 | E120: 778.32 | F120: 769.83 | G120: 756.67 | H120: 799.97 | I120: 813.13 | J120: 821.62 | K120: 804.65 | L120: 783 | M120: 1.34102
A121: 111 | B121: CYIENT | C121: 622.3 | D121: 628.33 | E121: 612.97 | F121: 603.63 | G121: 588.27 | H121: 637.67 | I121: 653.03 | J121: 662.37 | K121: 643.7 | L121: 619 | M121: 1.05034
A122: 112 | B122: DBREALTY | C122: 53.95 | D122: 55.10 | E122: 51.85 | F122: 49.75 | G122: 46.50 | H122: 57.20 | I122: 60.45 | J122: 62.55 | K122: 58.35 | L122: 53 | M122: 4.01467
A123: 113 | B123: DBCORP | C123: 334.4 | D123: 336.85 | E123: 323.70 | F123: 313.00 | G123: 299.85 | H123: 347.55 | I123: 360.70 | J123: 371.40 | K123: 350 | L123: 326.15 | M123: 0.66802
A124: 114 | B124: DCBBANK | C124: 161.1 | D124: 161.50 | E124: 157.60 | F124: 154.10 | G124: 150.20 | H124: 165.00 | I124: 168.90 | J124: 172.40 | K124: 165.4 | L124: 158 | M124: 11.665
A125: 115 | B125: DCMSHRIRAM | C125: 554.35 | D125: 556.40 | E125: 548.10 | F125: 541.85 | G125: 533.55 | H125: 562.65 | I125: 570.95 | J125: 577.20 | K125: 564.7 | L125: 550.15 | M125: 0.78919
A126: 116 | B126: DLF | C126: 216.55 | D126: 219.08 | E126: 211.52 | F126: 206.48 | G126: 198.92 | H126: 224.12 | I126: 231.68 | J126: 236.72 | K126: 226.65 | L126: 214.05 | M126: 61.4409
A127: 117 | B127: DABUR | C127: 322.7 | D127: 324.43 | E127: 319.27 | F127: 315.83 | G127: 310.67 | H127: 327.87 | I127: 333.03 | J127: 336.47 | K127: 329.6 | L127: 321 | M127: 6.78537
A128: 118 | B128: DALMIABHA | C128: 2669.15 | D128: 2678.28 | E128: 2649.52 | F128: 2629.88 | G128: 2601.12 | H128: 2697.92 | I128: 2726.68 | J128: 2746.32 | K128: 2707.05 | L128: 2658.65 | M128: 0.62137
A129: 119 | B129: DEEPAKFERT | C129: 316.3 | D129: 318.23 | E129: 312.07 | F129: 307.83 | G129: 301.67 | H129: 322.47 | I129: 328.63 | J129: 332.87 | K129: 324.4 | L129: 314 | M129: 1.80394
A130: 120 | B130: DELTACORP | C130: 328.05 | D130: 333.57 | E130: 320.53 | F130: 313.02 | G130: 299.98 | H130: 341.08 | I130: 354.12 | J130: 361.63 | K130: 346.6 | L130: 326.05 | M130: 22.87287
A131: 121 | B131: DEN | C131: 96.8 | D131: 97.40 | E131: 93.90 | F131: 91.00 | G131: 87.50 | H131: 100.30 | I131: 103.80 | J131: 106.70 | K131: 100.9 | L131: 94.5 | M131: 3.52313
A132: 122 | B132: DENABANK | C132: 20 | D132: 20.10 | E132: 19.80 | F132: 19.60 | G132: 19.30 | H132: 20.30 | I132: 20.60 | J132: 20.80 | K132: 20.4 | L132: 19.9 | M132: 10.27553
A133: 123 | B133: DHFL | C133: 508.4 | D133: 517.10 | E133: 488.40 | F133: 468.40 | G133: 439.70 | H133: 537.10 | I133: 565.80 | J133: 585.80 | K133: 545.8 | L133: 497.1 | M133: 54.29872
A134: 124 | B134: DHANUKA | C134: 613.6 | D134: 616.07 | E134: 606.13 | F134: 598.67 | G134: 588.73 | H134: 623.53 | I134: 633.47 | J134: 640.93 | K134: 626 | L134: 608.6 | M134: 0.20054
A135: 125 | B135: DBL | C135: 982.35 | D135: 993.02 | E135: 954.33 | F135: 926.32 | G135: 887.63 | H135: 1021.03 | I135: 1059.72 | J135: 1087.73 | K135: 1031.7 | L135: 965 | M135: 10.09958
A136: 126 | B136: DISHTV | C136: 67.05 | D136: 67.33 | E136: 63.42 | F136: 59.78 | G136: 55.87 | H136: 70.97 | I136: 74.88 | J136: 78.52 | K136: 71.25 | L136: 63.7 | M136: 165.02341
A137: 127 | B137: DIVISLAB | C137: 1013.7 | D137: 1015.63 | E137: 1007.57 | F137: 1001.43 | G137: 993.37 | H137: 1021.77 | I137: 1029.83 | J137: 1035.97 | K137: 1023.7 | L137: 1009.5 | M137: 4.0975
A138: 128 | B138: LALPATHLAB | C138: 897.4 | D138: 899.78 | E138: 888.62 | F138: 879.83 | G138: 868.67 | H138: 908.57 | I138: 919.73 | J138: 928.52 | K138: 910.95 | L138: 891 | M138: 0.12325
A139: 129 | B139: DRREDDY | C139: 2176.45 | D139: 2189.03 | E139: 2154.27 | F139: 2132.08 | G139: 2097.32 | H139: 2211.22 | I139: 2245.98 | J139: 2268.17 | K139: 2223.8 | L139: 2166.85 | M139: 4.15
A140: 130 | B140: DREDGECORP | C140: 677.7 | D140: 688.88 | E140: 662.82 | F140: 647.93 | G140: 621.87 | H140: 703.77 | I140: 729.83 | J140: 744.72 | K140: 714.95 | L140: 674 | M140: 4.80063
A141: 131 | B141: EIDPARRY | C141: 304.95 | D141: 306.60 | E141: 300.45 | F141: 295.95 | G141: 289.80 | H141: 311.10 | I141: 317.25 | J141: 321.75 | K141: 312.75 | L141: 302.1 | M141: 0.77527
A142: 132 | B142: EIHOTEL | C142: 165.15 | D142: 167.03 | E142: 163.12 | F142: 161.08 | G142: 157.17 | H142: 169.07 | I142: 172.98 | J142: 175.02 | K142: 170.95 | L142: 165 | M142: 0.91595
A143: 133 | B143: EDELWEISS | C143: 264.55 | D143: 268.50 | E143: 257.30 | F143: 250.05 | G143: 238.85 | H143: 275.75 | I143: 286.95 | J143: 294.20 | K143: 279.7 | L143: 261.25 | M143: 21.3777
A144: 134 | B144: EICHERMOT | C144: 27488.45 | D144: 27507.95 | E144: 27231.65 | F144: 26974.85 | G144: 26698.55 | H144: 27764.75 | I144: 28041.05 | J144: 28297.85 | K144: 27784.25 | L144: 27251.15 | M144: 0.42735
A145: 135 | B145: EMAMILTD | C145: 1103 | D145: 1102.62 | E145: 1089.38 | F145: 1075.77 | G145: 1062.53 | H145: 1116.23 | I145: 1129.47 | J145: 1143.08 | K145: 1115.85 | L145: 1089 | M145: 0.63973
A146: 136 | B146: ENDURANCE | C146: 1270.1 | D146: 1283.03 | E146: 1250.12 | F146: 1230.13 | G146: 1197.22 | H146: 1303.02 | I146: 1335.93 | J146: 1355.92 | K146: 1315.95 | L146: 1263.05 | M146: 0.79768
A147: 137 | B147: ENGINERSIN | C147: 164.7 | D147: 166.13 | E147: 162.07 | F147: 159.43 | G147: 155.37 | H147: 168.77 | I147: 172.83 | J147: 175.47 | K147: 170.2 | L147: 163.5 | M147: 11.30534
A148: 138 | B148: EQUITAS | C148: 141.45 | D148: 142.82 | E148: 138.38 | F148: 135.32 | G148: 130.88 | H148: 145.88 | I148: 150.32 | J148: 153.38 | K148: 147.25 | L148: 139.75 | M148: 15.19814
A149: 139 | B149: EROSMEDIA | C149: 189.2 | D149: 191.02 | E149: 185.28 | F149: 181.37 | G149: 175.63 | H149: 194.93 | I149: 200.67 | J149: 204.58 | K149: 196.75 | L149: 187.1 | M149: 4.31134
A150: 140 | B150: ESCORTS | C150: 861.5 | D150: 868.83 | E150: 848.97 | F150: 836.43 | G150: 816.57 | H150: 881.37 | I150: 901.23 | J150: 913.77 | K150: 888.7 | L150: 856.3 | M150: 10.25518
A151: 141 | B151: ESSELPACK | C151: 256.9 | D151: 258.47 | E151: 254.93 | F151: 252.97 | G151: 249.43 | H151: 260.43 | I151: 263.97 | J151: 265.93 | K151: 262 | L151: 256.5 | M151: 0.2614
A152: 142 | B152: EVEREADY | C152: 388.1 | D152: 390.07 | E152: 383.13 | F152: 378.17 | G152: 371.23 | H152: 395.03 | I152: 401.97 | J152: 406.93 | K152: 397 | L152: 385.1 | M152: 0.27402
A153: 143 | B153: EXIDEIND | C153: 208.1 | D153: 209.18 | E153: 205.92 | F153: 203.73 | G153: 200.47 | H153: 211.37 | I153: 214.63 | J153: 216.82 | K153: 212.45 | L153: 207 | M153: 21.70232
A154: 144 | B154: FEDERALBNK | C154: 91.65 | D154: 92.42 | E154: 90.43 | F154: 89.22 | G154: 87.23 | H154: 93.63 | I154: 95.62 | J154: 96.83 | K154: 94.4 | L154: 91.2 | M154: 63.45324
A155: 145 | B155: FINCABLES | C155: 699.45 | D155: 699.87 | E155: 691.73 | F155: 684.02 | G155: 675.88 | H155: 707.58 | I155: 715.72 | J155: 723.43 | K155: 708 | L155: 692.15 | M155: 0.66287
A156: 146 | B156: FINPIPE | C156: 651.1 | D156: 654.68 | E156: 643.37 | F156: 635.63 | G156: 624.32 | H156: 662.42 | I156: 673.73 | J156: 681.47 | K156: 666 | L156: 646.95 | M156: 0.30954
A157: 147 | B157: FSL | C157: 51.9 | D157: 52.82 | E157: 50.33 | F157: 48.77 | G157: 46.28 | H157: 54.38 | I157: 56.87 | J157: 58.43 | K157: 55.3 | L157: 51.25 | M157: 121.56571
A158: 148 | B158: FCONSUMER | C158: 56.45 | D158: 57.22 | E158: 54.73 | F158: 53.02 | G158: 50.53 | H158: 58.93 | I158: 61.42 | J158: 63.13 | K158: 59.7 | L158: 55.5 | M158: 41.11106
A159: 149 | B159: FLFL | C159: 400.3 | D159: 401.77 | E159: 391.53 | F159: 382.77 | G159: 372.53 | H159: 410.53 | I159: 420.77 | J159: 429.53 | K159: 412 | L159: 393 | M159: 1.45636
A160: 150 | B160: GAIL | C160: 439.95 | D160: 442.03 | E160: 435.82 | F160: 431.68 | G160: 425.47 | H160: 446.17 | I160: 452.38 | J160: 456.52 | K160: 448.25 | L160: 437.9 | M160: 24.76876
A161: 151 | B161: GEPIL | C161: 802.95 | D161: 809.03 | E161: 788.12 | F161: 773.28 | G161: 752.37 | H161: 823.87 | I161: 844.78 | J161: 859.62 | K161: 829.95 | L161: 794.2 | M161: 0.07336
A162: 152 | B162: GET&D | C162: 407.15 | D162: 410.02 | E162: 403.23 | F162: 399.32 | G162: 392.53 | H162: 413.93 | I162: 420.72 | J162: 424.63 | K162: 416.8 | L162: 406.1 | M162: 1.21071
A163: 153 | B163: GHCL | C163: 277.8 | D163: 280.43 | E163: 273.47 | F163: 269.13 | G163: 262.17 | H163: 284.77 | I163: 291.73 | J163: 296.07 | K163: 287.4 | L163: 276.1 | M163: 1.18482
A164: 154 | B164: GMRINFRA | C164: 18 | D164: 18.18 | E164: 17.47 | F164: 16.93 | G164: 16.22 | H164: 18.72 | I164: 19.43 | J164: 19.97 | K164: 18.9 | L164: 17.65 | M164: 281.55206
A165: 155 | B165: GVKPIL | C165: 14.95 | D165: 15.37 | E165: 14.53 | F165: 14.12 | G165: 13.28 | H165: 15.78 | I165: 16.62 | J165: 17.03 | K165: 16.2 | L165: 14.95 | M165: 41.43545
A166: 156 | B166: GDL | C166: 203.85 | D166: 205.13 | E166: 200.82 | F166: 197.78 | G166: 193.47 | H166: 208.17 | I166: 212.48 | J166: 215.52 | K166: 209.45 | L166: 202.1 | M166: 0.47459
A167: 157 | B167: GATI | C167: 107.25 | D167: 108.22 | E167: 105.43 | F167: 103.62 | G167: 100.83 | H167: 110.03 | I167: 112.82 | J167: 114.63 | K167: 111 | L167: 106.4 | M167: 3.94722
A168: 158 | B168: GILLETTE | C168: 6605.9 | D168: 6607.93 | E168: 6558.17 | F168: 6510.43 | G168: 6460.67 | H168: 6655.67 | I168: 6705.43 | J168: 6753.17 | K168: 6657.7 | L168: 6560.2 | M168: 0.01651
A169: 159 | B169: GSKCONS | C169: 6614.3 | D169: 6667.77 | E169: 6546.53 | F169: 6478.77 | G169: 6357.53 | H169: 6735.53 | I169: 6856.77 | J169: 6924.53 | K169: 6789 | L169: 6600 | M169: 0.06926
A170: 160 | B170: GLAXO | C170: 2344 | D170: 2349.68 | E170: 2314.37 | F170: 2284.73 | G170: 2249.42 | H170: 2379.32 | I170: 2414.63 | J170: 2444.27 | K170: 2385 | L170: 2320.05 | M170: 0.12564
A171: 161 | B171: GLENMARK | C171: 560.8 | D171: 560.95 | E171: 553.45 | F171: 546.10 | G171: 538.60 | H171: 568.30 | I171: 575.80 | J171: 583.15 | K171: 568.45 | L171: 553.6 | M171: 16.41322
A172: 162 | B172: GODFRYPHLP | C172: 840.25 | D172: 845.90 | E172: 827.35 | F172: 814.45 | G172: 795.90 | H172: 858.80 | I172: 877.35 | J172: 890.25 | K172: 864.45 | L172: 833 | M172: 1.03844
A173: 163 | B173: GODREJCP | C173: 1089.25 | D173: 1092.15 | E173: 1071.60 | F173: 1053.95 | G173: 1033.40 | H173: 1109.80 | I173: 1130.35 | J173: 1148.00 | K173: 1112.7 | L173: 1074.5 | M173: 7.29721
A174: 164 | B174: GODREJIND | C174: 543.6 | D174: 546.43 | E174: 538.17 | F174: 532.73 | G174: 524.47 | H174: 551.87 | I174: 560.13 | J174: 565.57 | K174: 554.7 | L174: 541 | M174: 4.32862
A175: 165 | B175: GODREJPROP | C175: 762.4 | D175: 765.07 | E175: 751.03 | F175: 739.67 | G175: 725.63 | H175: 776.43 | I175: 790.47 | J175: 801.83 | K175: 779.1 | L175: 753.7 | M175: 0.51178
A176: 166 | B176: GRANULES | C176: 110.3 | D176: 110.85 | E176: 106.55 | F176: 102.80 | G176: 98.50 | H176: 114.60 | I176: 118.90 | J176: 122.65 | K176: 115.15 | L176: 107.1 | M176: 21.98443
A177: 167 | B177: GESHIP | C177: 355.9 | D177: 358.25 | E177: 352.65 | F177: 349.40 | G177: 343.80 | H177: 361.50 | I177: 367.10 | J177: 370.35 | K177: 363.85 | L177: 355 | M177: 0.25374
A178: 168 | B178: GREAVESCOT | C178: 120.7 | D178: 121.20 | E178: 119.55 | F178: 118.40 | G178: 116.75 | H178: 122.35 | I178: 124.00 | J178: 125.15 | K178: 122.85 | L178: 120.05 | M178: 2.48914
A179: 169 | B179: GREENPLY | C179: 336.6 | D179: 337.48 | E179: 333.12 | F179: 329.63 | G179: 325.27 | H179: 340.97 | I179: 345.33 | J179: 348.82 | K179: 341.85 | L179: 334 | M179: 0.64131
A180: 170 | B180: GRUH | C180: 538.25 | D180: 540.75 | E180: 532.65 | F180: 527.05 | G180: 518.95 | H180: 546.35 | I180: 554.45 | J180: 560.05 | K180: 548.85 | L180: 535.15 | M180: 1.82734
A181: 171 | B181: GUJALKALI | C181: 708.6 | D181: 713.23 | E181: 701.87 | F181: 695.13 | G181: 683.77 | H181: 719.97 | I181: 731.33 | J181: 738.07 | K181: 724.6 | L181: 706.5 | M181: 0.50175
A182: 172 | B182: GUJFLUORO | C182: 789.5 | D182: 786.50 | E182: 778.00 | F182: 766.50 | G182: 758.00 | H182: 798.00 | I182: 806.50 | J182: 818.00 | K182: 795 | L182: 775 | M182: 0.51912
A183: 173 | B183: GUJGASLTD | C183: 877.35 | D183: 874.10 | E183: 866.25 | F183: 855.15 | G183: 847.30 | H183: 885.20 | I183: 893.05 | J183: 904.15 | K183: 881.95 | L183: 863 | M183: 0.41838
A184: 174 | B184: GMDCLTD | C184: 135.75 | D184: 137.28 | E184: 133.67 | F184: 131.58 | G184: 127.97 | H184: 139.37 | I184: 142.98 | J184: 145.07 | K184: 140.9 | L184: 135.2 | M184: 1.41517
A185: 175 | B185: GNFC | C185: 418.45 | D185: 423.13 | E185: 410.67 | F185: 402.88 | G185: 390.42 | H185: 430.92 | I185: 443.38 | J185: 451.17 | K185: 435.6 | L185: 415.35 | M185: 5.80993
A186: 176 | B186: GPPL | C186: 136.2 | D186: 136.90 | E186: 133.40 | F186: 130.60 | G186: 127.10 | H186: 139.70 | I186: 143.20 | J186: 146.00 | K186: 140.4 | L186: 134.1 | M186: 0.94923
A187: 177 | B187: GSFC | C187: 124.05 | D187: 125.25 | E187: 121.65 | F187: 119.25 | G187: 115.65 | H187: 127.65 | I187: 131.25 | J187: 133.65 | K187: 128.85 | L187: 122.85 | M187: 9.80797
A188: 178 | B188: GSPL | C188: 200.1 | D188: 201.57 | E188: 196.78 | F188: 193.47 | G188: 188.68 | H188: 204.88 | I188: 209.67 | J188: 212.98 | K188: 206.35 | L188: 198.25 | M188: 3.89488
A189: 179 | B189: GULFOILLUB | C189: 978.1 | D189: 979.93 | E189: 970.17 | F189: 962.23 | G189: 952.47 | H189: 987.87 | I189: 997.63 | J189: 1005.57 | K189: 989.7 | L189: 972 | M189: 0.12136
A190: 180 | B190: HCL-INSYS | C190: 57.15 | D190: 58.40 | E190: 55.35 | F190: 53.55 | G190: 50.50 | H190: 60.20 | I190: 63.25 | J190: 65.05 | K190: 61.45 | L190: 56.6 | M190: 23.66472
A191: 181 | B191: HCLTECH | C191: 932.8 | D191: 937.43 | E191: 921.87 | F191: 910.93 | G191: 895.37 | H191: 948.37 | I191: 963.93 | J191: 974.87 | K191: 953 | L191: 926.5 | M191: 14.64878
A192: 182 | B192: HDFCBANK | C192: 1846.25 | D192: 1855.22 | E192: 1830.53 | F192: 1814.82 | G192: 1790.13 | H192: 1870.93 | I192: 1895.62 | J192: 1911.33 | K192: 1879.9 | L192: 1839.5 | M192: 11.44207
A193: 183 | B193: HSIL | C193: 427.85 | D193: 432.62 | E193: 422.23 | F193: 416.62 | G193: 406.23 | H193: 438.23 | I193: 448.62 | J193: 454.23 | K193: 443 | L193: 427 | M193: 0.14757
A194: 184 | B194: HTMEDIA | C194: 89 | D194: 89.70 | E194: 87.90 | F194: 86.80 | G194: 85.00 | H194: 90.80 | I194: 92.60 | J194: 93.70 | K194: 91.5 | L194: 88.6 | M194: 1.43179
A195: 185 | B195: HATHWAY | C195: 34.4 | D195: 34.98 | E195: 33.52 | F195: 32.63 | G195: 31.17 | H195: 35.87 | I195: 37.33 | J195: 38.22 | K195: 36.45 | L195: 34.1 | M195: 6.59503
A196: 186 | B196: HATSUN | C196: 719.6 | D196: 724.65 | E196: 709.95 | F196: 700.30 | G196: 685.60 | H196: 734.30 | I196: 749.00 | J196: 758.65 | K196: 739.35 | L196: 715 | M196: 0.41781
A197: 187 | B197: HAVELLS | C197: 500.3 | D197: 503.18 | E197: 493.52 | F197: 486.73 | G197: 477.07 | H197: 509.97 | I197: 519.63 | J197: 526.42 | K197: 512.85 | L197: 496.4 | M197: 7.17755
A198: 188 | B198: HEIDELBERG | C198: 155.3 | D198: 156.27 | E198: 152.68 | F198: 150.07 | G198: 146.48 | H198: 158.88 | I198: 162.47 | J198: 165.08 | K198: 159.85 | L198: 153.65 | M198: 2.09601
A199: 189 | B199: HERITGFOOD | C199: 695.3 | D199: 694.33 | E199: 681.32 | F199: 667.33 | G199: 654.32 | H199: 708.32 | I199: 721.33 | J199: 735.32 | K199: 707.35 | L199: 680.35 | M199: 0.17281
A200: 190 | B200: HEROMOTOCO | C200: 3561.9 | D200: 3567.20 | E200: 3539.40 | F200: 3516.90 | G200: 3489.10 | H200: 3589.70 | I200: 3617.50 | J200: 3640.00 | K200: 3595 | L200: 3544.7 | M200: 3.80991
A201: 191 | B201: HEXAWARE | C201: 344.9 | D201: 347.75 | E201: 337.55 | F201: 330.20 | G201: 320.00 | H201: 355.10 | I201: 365.30 | J201: 372.65 | K201: 357.95 | L201: 340.4 | M201: 9.98703
A202: 192 | B202: HFCL | C202: 28.25 | D202: 28.68 | E202: 27.57 | F202: 26.88 | G202: 25.77 | H202: 29.37 | I202: 30.48 | J202: 31.17 | K202: 29.8 | L202: 28 | M202: 39.12447
A203: 193 | B203: HIMATSEIDE | C203: 346.5 | D203: 347.33 | E203: 343.42 | F203: 340.33 | G203: 336.42 | H203: 350.42 | I203: 354.33 | J203: 357.42 | K203: 351.25 | L203: 344.25 | M203: 0.28817
A204: 194 | B204: HINDALCO | C204: 225.85 | D204: 228.37 | E204: 221.63 | F204: 217.42 | G204: 210.68 | H204: 232.58 | I204: 239.32 | J204: 243.53 | K204: 235.1 | L204: 224.15 | M204: 124.88311
A205: 195 | B205: HCC | C205: 32.35 | D205: 32.73 | E205: 31.67 | F205: 30.98 | G205: 29.92 | H205: 33.42 | I205: 34.48 | J205: 35.17 | K205: 33.8 | L205: 32.05 | M205: 54.46866
A206: 196 | B206: HINDCOPPER | C206: 69.6 | D206: 70.20 | E206: 68.00 | F206: 66.40 | G206: 64.20 | H206: 71.80 | I206: 74.00 | J206: 75.60 | K206: 72.4 | L206: 68.6 | M206: 10.94452
... 306 more rows

Sheet Bulk Deals
E6: Back To Main Page
A7: Subject : | B7: BULK DEAL | D7: =Main!B10 -> 2018-03-07
A9: Date | B9: Scrip code | C9: Scrip Name | D9: Client Name | E9: Buy / Sell | F9: Quantity Traded | G9: Trade Price / Wt.Avg.trade price | H9: Exchange
A10: 2018-03-06 | B10: 541006 | C10: ANGEL | D10: IDEAL MOTOR FINANCE PRIVATE LIMITED | E10: BUY | F10: 176,000 | G10: 28.05 | H10: BSE
A11: 2018-03-06 | B11: 541006 | C11: ANGEL | D11: GLOBE STOCKS & SECURITIES LTD | E11: BUY | F11: 152,000 | G11: 28.5 | H11: BSE
A12: 2018-03-06 | B12: 541006 | C12: ANGEL | D12: NARMADABEN HASMUKH PANSURIYA | E12: BUY | F12: 328,000 | G12: 27.19 | H12: BSE
A13: 2018-03-06 | B13: 541006 | C13: ANGEL | D13: DAXA MAHESHBHAI PANSURIYA | E13: BUY | F13: 276,000 | G13: 27.12 | H13: BSE
A14: 2018-03-06 | B14: 541006 | C14: ANGEL | D14: NNM SECURITIES PVT LTD | E14: BUY | F14: 300,000 | G14: 27.1 | H14: BSE
A15: 2018-03-06 | B15: 541006 | C15: ANGEL | D15: JACKPOT VINTRADE PRIVATE LIMITED | E15: BUY | F15: 248,000 | G15: 27.1 | H15: BSE
A16: 2018-03-06 | B16: 541006 | C16: ANGEL | D16: SANJEEV HARBANSLAL BHATIA | E16: BUY | F16: 500,000 | G16: 28.5 | H16: BSE
A17: 2018-03-06 | B17: 530723 | C17: ASITCFIN | D17: KETAN JAYANTILAL KARANI | E17: SELL | F17: 35,000 | G17: 84.74 | H17: BSE
A18: 2018-03-06 | B18: 530723 | C18: ASITCFIN | D18: LUO SHIXIN | E18: BUY | F18: 30,000 | G18: 84.55 | H18: BSE
A19: 2018-03-06 | B19: 540006 | C19: BULL | D19: JAYKUMAR GURDASMAL DADLANI | E19: BUY | F19: 40,000 | G19: 80.1 | H19: BSE
A20: 2018-03-06 | B20: 526546 | C20: CHOKSILA | D20: SHARAD KANAYALAL SHAH | E20: SELL | F20: 59,302 | G20: 28.45 | H20: BSE
A21: 2018-03-06 | B21: 526546 | C21: CHOKSILA | D21: DHEERAJ KUMAR LOHIA HUF | E21: BUY | F21: 41,016 | G21: 28.4 | H21: BSE
A22: 2018-03-06 | B22: 523232 | C22: CONTPTR | D22: RAJ KUMAR LOHIA (HUF) | E22: BUY | F22: 24,183 | G22: 35.1 | H22: BSE
A23: 2018-03-06 | B23: 523232 | C23: CONTPTR | D23: DIPAK KANAYALAL SHAH | E23: SELL | F23: 23,403 | G23: 35.1 | H23: BSE
A24: 2018-03-06 | B24: 532951 | C24: GSS | D24: SHILPHY STEEL PRIVATE LIMITED | E24: SELL | F24: 100,769 | G24: 52.5 | H24: BSE
A25: 2018-03-06 | B25: 532951 | C25: GSS | D25: SHILPHY STEEL PRIVATE LIMITED | E25: BUY | F25: 100,769 | G25: 48.05 | H25: BSE
A26: 2018-03-06 | B26: 539679 | C26: KAPILRAJ | D26: DEEPAK PARSHARAM SALVI | E26: SELL | F26: 55,856 | G26: 18.15 | H26: BSE
A27: 2018-03-06 | B27: 539679 | C27: KAPILRAJ | D27: DEEPAK PARSHARAM SALVI | E27: BUY | F27: 55,856 | G27: 18.13 | H27: BSE
A28: 2018-03-06 | B28: 539679 | C28: KAPILRAJ | D28: AJAY DHIRAJLAL NATHWANI | E28: SELL | F28: 57,355 | G28: 18.13 | H28: BSE
A29: 2018-03-06 | B29: 539679 | C29: KAPILRAJ | D29: AJAY DHIRAJLAL NATHWANI | E29: BUY | F29: 57,355 | G29: 17.9 | H29: BSE
A30: 2018-03-06 | B30: 539679 | C30: KAPILRAJ | D30: PREETI AJAY NATHWANI | E30: SELL | F30: 52,789 | G30: 18.15 | H30: BSE
A31: 2018-03-06 | B31: 540953 | C31: KENVI | D31: VIVIDOFFSET PRINTERS PRIVATELIMITED | E31: BUY | F31: 309,000 | G31: 22.72 | H31: BSE
A32: 2018-03-06 | B32: 540953 | C32: KENVI | D32: MANOJ CHHAGANLAL RATHOD HUF | E32: SELL | F32: 306,000 | G32: 22.81 | H32: BSE
A33: 2018-03-06 | B33: 540730 | C33: MEHAI | D33: LINKUP FINANCIAL CONSULTANTS PVT LTD02 | E33: BUY | F33: 33,000 | G33: 75.03 | H33: BSE
A34: 2018-03-06 | B34: 537092 | C34: MODEX | D34: DHARMENDRA KUMAR ARORA | E34: SELL | F34: 100,000 | G34: 42 | H34: BSE
A35: 2018-03-06 | B35: 537092 | C35: MODEX | D35: PAVAN SACHDEVA | E35: BUY | F35: 100,000 | G35: 42 | H35: BSE
A36: 2018-03-06 | B36: 506852 | C36: PACL | D36: IDBI BANK LIMITED | E36: SELL | F36: 520,000 | G36: 29.25 | H36: BSE
A37: 2018-03-06 | B37: 506852 | C37: PACL | D37: AMAN JAIN | E37: BUY | F37: 300,000 | G37: 29.25 | H37: BSE
A38: 2018-03-06 | B38: 540404 | C38: PRIME | D38: KALPESH H MAGIA HUF | E38: BUY | F38: 30,000 | G38: 156.83 | H38: BSE
A39: 2018-03-06 | B39: 540404 | C39: PRIME | D39: FAR SIGHT SECURITIES | E39: SELL | F39: 72,000 | G39: 160.46 | H39: BSE
A40: 2018-03-06 | B40: 540404 | C40: PRIME | D40: KUNAL BHARAT MEHTA | E40: BUY | F40: 42,000 | G40: 163.05 | H40: BSE
A41: 2018-03-06 | B41: 532983 | C41: RPGLIFE | D41: SUDARSHAN ELECTRONICS AND TV LTD | E41: BUY | F41: 1,792,000 | G41: 441.85 | H41: BSE
A42: 2018-03-06 | B42: 532983 | C42: RPGLIFE | D42: SUMMIT SECURITIES LIMITED | E42: SELL | F42: 1,792,000 | G42: 441.85 | H42: BSE
A43: 2018-03-06 | B43: 531201 | C43: SHILCTECH | D43: YODHAN SACHDEV | E43: BUY | F43: 19,738 | G43: 400 | H43: BSE
A44: 2018-03-06 | B44: 531201 | C44: SHILCTECH | D44: PAULASTYA SACHDEV | E44: SELL | F44: 19,738 | G44: 400 | H44: BSE
A45: 2018-03-06 | B45: 533157 | C45: SYNCOM | D45: PARVEEN KUMAR | E45: BUY | F45: 204,001 | G45: 5.32 | H45: BSE
A46: 2018-03-06 | B46: 533157 | C46: SYNCOM | D46: PRATEEK BANSAL | E46: SELL | F46: 204,000 | G46: 5.32 | H46: BSE
A47: 2018-03-06 | B47: 538464 | C47: TPROJECT | D47: ALLIED TREXIM PRIVATE LIMITED | E47: SELL | F47: 131,480 | G47: 33.07 | H47: BSE
A48: 2018-03-06 | B48: 539402 | C48: VAL | D48: AMAR MUKESH SHAH | E48: SELL | F48: 160,000 | G48: 20.1 | H48: BSE
A49: 2018-03-06 | B49: 539402 | C49: VAL | D49: ARYAMAN BROKING LIMITED | E49: SELL | F49: 104,000 | G49: 20.1 | H49: BSE
A50: 2018-03-06 | B50: 539402 | C50: VAL | D50: ARYAMAN BROKING LIMITED | E50: BUY | F50: 104,000 | G50: 20 | H50: BSE
A51: 2018-03-06 | B51: 539402 | C51: VAL | D51: NAMRATA SAJANKUMAR BAJAJ | E51: SELL | F51: 104,000 | G51: 20 | H51: BSE
A52: 2018-03-06 | B52: 539402 | C52: VAL | D52: SAJANKUMAR RAMESHWARLAL BAJAJ | E52: BUY | F52: 260,000 | G52: 20.1 | H52: BSE
A53: 2018-03-06 | B53: 540252 | C53: VOL | D53: MITHALAL KACHARALAL PRAJAPATI | E53: BUY | F53: 22,500 | G53: 58.22 | H53: BSE
A54: 2018-03-06 | B54: AMDIND | C54: AMD Industries Limited | D54: JATESH JAIN | E54: BUY | F54: 136,468 | G54: 44.75 | H54: NSE
A55: 2018-03-06 | B55: BHAGYANGR | C55: Bhagyanagar India Limited | D55: PRIYA CHANDRAKANT JALGAONKAR | E55: BUY | F55: 598,369 | G55: 53.9 | H55: NSE
A56: 2018-03-06 | B56: BOMDYEING | C56: Bombay Dyeing & Mfg Co. | D56: DKL BROKING & INFRA LLP | E56: BUY | F56: 1,139,721 | G56: 271.02 | H56: NSE
A57: 2018-03-06 | B57: CKPLEISURE | C57: CKP Leisure Limited | D57: ARYAMAN CAPITAL MARKETS LIMITED | E57: BUY | F57: 252,000 | G57: 29.73 | H57: NSE
A58: 2018-03-06 | B58: CKPLEISURE | C58: CKP Leisure Limited | D58: OVERSKUD MULTI ASSET MANAGEMENT PRIVATE LIMITED | E58: BUY | F58: 80,000 | G58: 29.09 | H58: NSE
A59: 2018-03-06 | B59: CKPLEISURE | C59: CKP Leisure Limited | D59: SAVASTHI INVESTMENTS LTD | E59: BUY | F59: 500,000 | G59: 29.96 | H59: NSE
A60: 2018-03-06 | B60: GAYAPROJ | C60: Gayatri Projects Ltd | D60: FORSTA AP-FONDEN | E60: BUY | F60: 1,107,180 | G60: 208.7 | H60: NSE
A61: 2018-03-06 | B61: GAYAPROJ | C61: Gayatri Projects Ltd | D61: GMO COMPLETION FUND MASTER PORTFOLIO | E61: BUY | F61: 1,191,996 | G61: 208.7 | H61: NSE
A62: 2018-03-06 | B62: GAYAPROJ | C62: Gayatri Projects Ltd | D62: GMO EMERGING DOMESTIC OPPORTUNITIES FUND | E62: BUY | F62: 1,125,055 | G62: 208.7 | H62: NSE
A63: 2018-03-06 | B63: GAYAPROJ | C63: Gayatri Projects Ltd | D63: STICHTING DEPOSITARY APG EMERGING MARKETS EQUITY POOL | E63: BUY | F63: 1,343,103 | G63: 208.7 | H63: NSE
A64: 2018-03-06 | B64: GOKEX | C64: Gokaldas Exports Limited | D64: SARAVANA SECURITIES D.SATHYAMOORTHI | E64: BUY | F64: 500,000 | G64: 93 | H64: NSE
A65: 2018-03-06 | B65: GOKEX | C65: Gokaldas Exports Limited | D65: TARUN JAIN | E65: BUY | F65: 275,000 | G65: 92.75 | H65: NSE
A66: 2018-03-06 | B66: GSS | C66: GSS Infotech Limited | D66: ACHINTYA SECURITIES PRIVATE LIMITED | E66: BUY | F66: 137,477 | G66: 49.75 | H66: NSE
A67: 2018-03-06 | B67: GSS | C67: GSS Infotech Limited | D67: BIPIN CHINUBHAI SHAH | E67: BUY | F67: 300,000 | G67: 51.75 | H67: NSE
A68: 2018-03-06 | B68: GSS | C68: GSS Infotech Limited | D68: KHUSHBOO ANAND BHAYANI | E68: BUY | F68: 335,136 | G68: 49.72 | H68: NSE
A69: 2018-03-06 | B69: GSS | C69: GSS Infotech Limited | D69: LIMITED SHILPHY STEEL PRIVATE | E69: BUY | F69: 667,382 | G69: 50.83 | H69: NSE
A70: 2018-03-06 | B70: GSS | C70: GSS Infotech Limited | D70: REAL MARKETING PVT LTD | E70: BUY | F70: 512,059 | G70: 52.76 | H70: NSE
A71: 2018-03-06 | B71: JINDCOT | C71: Jindal Cotex Ltd | D71: REAL MARKETING PVT LTD | E71: BUY | F71: 725,598 | G71: 7 | H71: NSE
A72: 2018-03-06 | B72: KILITCH | C72: Kilitch Drugs India Ltd | D72: BP FINTRADE PRIVATE LIMITED | E72: BUY | F72: 78,214 | G72: 96.36 | H72: NSE
A73: 2018-03-06 | B73: PGEL | C73: PG Electroplast Ltd | D73: ACHINTYA SECURITIES PRIVATE LIMITED | E73: BUY | F73: 102,135 | G73: 339.48 | H73: NSE
A74: 2018-03-06 | B74: RELIABLE | C74: Reliable Data Service Ltd | D74: ILABEN BIPINKUMAR NADIYA | E74: BUY | F74: 86,000 | G74: 59.4 | H74: NSE
A75: 2018-03-06 | B75: RELIABLE | C75: Reliable Data Service Ltd | D75: RAMESHBHAI CHINUBHAI SHAH | E75: BUY | F75: 86,000 | G75: 55.5 | H75: NSE
A76: 2018-03-06 | B76: RMCL | C76: Radha Madhav Corporation | D76: ARORA RAKESH | E76: BUY | F76: 400,000 | G76: 27.5 | H76: NSE
A77: 2018-03-06 | B77: RMCL | C77: Radha Madhav Corporation | D77: VIVEK MUNDRA | E77: BUY | F77: 450,000 | G77: 27.5 | H77: NSE
A78: 2018-03-06 | B78: SHRADHA | C78: Shradha Infraproj (N) Ltd | D78: NAMRATA SAJANKUMAR BAJAJ | E78: BUY | F78: 90,000 | G78: 59 | H78: NSE
A79: 2018-03-06 | B79: AMDIND | C79: AMD Industries Limited | D79: JATESH JAIN | E79: SELL | F79: 121514 | G79: 44.55 | H79: NSE
A80: 2018-03-06 | B80: BHAGYANGR | C80: Bhagyanagar India Limited | D80: PRIYA CHANDRAKANT JALGAONKAR | E80: SELL | F80: 524759 | G80: 54.24 | H80: NSE
A81: 2018-03-06 | B81: BOMDYEING | C81: Bombay Dyeing & Mfg Co. | D81: DKL BROKING & INFRA LLP | E81: SELL | F81: 906972 | G81: 271.07 | H81: NSE
A82: 2018-03-06 | B82: CKPLEISURE | C82: CKP Leisure Limited | D82: ARYAMAN CAPITAL MARKETS LIMITED | E82: SELL | F82: 208000 | G82: 29.92 | H82: NSE
A83: 2018-03-06 | B83: CKPLEISURE | C83: CKP Leisure Limited | D83: OVERSKUD MULTI ASSET MANAGEMENT PRIVATE LIMITED | E83: SELL | F83: 80000 | G83: 29.58 | H83: NSE
A84: 2018-03-06 | B84: GAYAPROJ | C84: Gayatri Projects Ltd | D84: M/S MENTOR CAPITAL LIMITED | E84: SELL | F84: 4767334 | G84: 208.7 | H84: NSE
A85: 2018-03-06 | B85: GOKEX | C85: Gokaldas Exports Limited | D85: RAJTARU ENTERPRISES | E85: SELL | F85: 275000 | G85: 92.75 | H85: NSE
A86: 2018-03-06 | B86: GOKEX | C86: Gokaldas Exports Limited | D86: SARAVANA STOCKS PRIVATE LIMITED | E86: SELL | F86: 500000 | G86: 93 | H86: NSE
A87: 2018-03-06 | B87: GSS | C87: GSS Infotech Limited | D87: ACHINTYA SECURITIES PRIVATE LIMITED | E87: SELL | F87: 137477 | G87: 49.36 | H87: NSE
A88: 2018-03-06 | B88: GSS | C88: GSS Infotech Limited | D88: JOYNET DEVELOPERS LLP | E88: SELL | F88: 150000 | G88: 52.8 | H88: NSE
A89: 2018-03-06 | B89: GSS | C89: GSS Infotech Limited | D89: KHUSHBOO ANAND BHAYANI | E89: SELL | F89: 335136 | G89: 51.88 | H89: NSE
A90: 2018-03-06 | B90: GSS | C90: GSS Infotech Limited | D90: LIMITED SHILPHY STEEL PRIVATE | E90: SELL | F90: 667382 | G90: 52.6 | H90: NSE
A91: 2018-03-06 | B91: INNOVANA | C91: Innovana Thinklabs Ltd. | D91: UMIYA TUBES LIMITED | E91: SELL | F91: 22000 | G91: 223.91 | H91: NSE
A92: 2018-03-06 | B92: IZMO | C92: IZMO Limited | D92: LKP MERCHANT FINANCING LTD | E92: SELL | F92: 150000 | G92: 109.12 | H92: NSE
A93: 2018-03-06 | B93: JINDCOT | C93: Jindal Cotex Ltd | D93: ALBULA INVESTMENT FUND LTD | E93: SELL | F93: 725000 | G93: 7 | H93: NSE
A94: 2018-03-06 | B94: KILITCH | C94: Kilitch Drugs India Ltd | D94: BP FINTRADE PRIVATE LIMITED | E94: SELL | F94: 56811 | G94: 98.98 | H94: NSE
A95: 2018-03-06 | B95: KILITCH | C95: Kilitch Drugs India Ltd | D95: SHAH DIPAK KANAYALAL | E95: SELL | F95: 66699 | G95: 96.35 | H95: NSE
A96: 2018-03-06 | B96: PGEL | C96: PG Electroplast Ltd | D96: ACHINTYA SECURITIES PRIVATE LIMITED | E96: SELL | F96: 102135 | G96: 300.73 | H96: NSE
A97: 2018-03-06 | B97: PGEL | C97: PG Electroplast Ltd | D97: NOMURA SINGAPORE LIMITED | E97: SELL | F97: 100000 | G97: 340 | H97: NSE
A98: 2018-03-06 | B98: RELIABLE | C98: Reliable Data Service Ltd | D98: RAMESHBHAI CHINUBHAI SHAH | E98: SELL | F98: 86000 | G98: 59.4 | H98: NSE
A99: 2018-03-06 | B99: RELIABLE | C99: Reliable Data Service Ltd | D99: UMIYA TUBES LIMITED | E99: SELL | F99: 86000 | G99: 55.5 | H99: NSE
A100: 2018-03-06 | B100: RMCL | C100: Radha Madhav Corporation | D100: ISIKA INFRACON PVT LTD | E100: SELL | F100: 1400000 | G100: 27.51 | H100: NSE
A101: 2018-03-06 | B101: SHRADHA | C101: Shradha Infraproj (N) Ltd | D101: SAJANKUMAR RAMESHWARLAL BAJAJ | E101: SELL | F101: 90000 | G101: 59 | H101: NSE

Sheet Call Tracker (Equity & F&O)
N5: Back To Main Page
A6: Retail Research Technical Calls & Fundamental Performance Report for the month of March -2018
N7: =Main!B10 -> 2018-03-07
B8: Positional Call
A9: Sr.no | B9: Date | D9: Company | E9: Rec | F9: Rec Price | G9: Stop Loss*** | H9: Call Closed At | I9: Target | J9: Remark | L9: Profit / Loss per Share | M9: Gain / Loss % | N9: Status | O9: Closed Date | P9: NSE Closed Price
A10: 1 | B10: 2018-02-05 | D10: UPL | E10: Buy | F10: 710-718 | G10: 684 | I10: 770-800 | J10: Open | P10: =VLOOKUP(D10,Sheet2!$A$1:M2107,6,0) -> 702.4 | S10: H
A11: 2 | B11: 2018-02-09 | D11: HINDUNILVR | E11: Buy | F11: 1330-1334 | G11: 1275 | I11: 1450 | J11: Open | P11: =VLOOKUP(D11,Sheet2!$A$1:M2108,6,0) -> 1293.2 | S11: A
A12: 3 | B12: 2018-02-12 | D12: ITC | E12: Buy | F12: 271-272 | G12: 250 | I12: 310 | J12: Open | P12: =VLOOKUP(D12,Sheet2!$A$1:M2109,6,0) -> 256.5 | S12: P
A13: 4 | B13: 2018-02-12 | D13: WIPRO | E13: Buy | F13: 287 | G13: 272 | H13: 295.5 | I13: 310-315 | J13: Part profit of Rs.8.5/- | L13: =H13-F13-K13 -> 8.5 | M13: =L13/F13 -> 2.96% | N13: Successful | O13: 2018-02-23 | P13: =VLOOKUP(D13,Sheet2!$A$1:M2110,6,0) -> 286.95 | S13: R
A14: 5 | B14: 2018-02-14 | D14: COLPAL | E14: Buy | F14: 1097.5 | G14: 1050 | H14: 1041 | I14: 1200 | J14: Loss of Rs.56.5/- | L14: -56.5 | M14: -5.15% | N14: Unsuccessful | O14: 2018-03-06 | P14: =VLOOKUP(D14,Sheet2!$A$1:M2111,6,0) -> 1038.45 | S14: R
A15: 6 | B15: 2018-02-14 | D15: GLENMARK | E15: Buy | F15: 533.5 | G15: 510 | H15: 550 | I15: 580 | J15: Profit of Rs.16.5/- | L15: =H15-F15-K15 -> 16.5 | M15: =L15/F15 -> 3.09% | N15: Successful | O15: 2018-03-01 | P15: =VLOOKUP(D15,Sheet2!$A$1:M2112,6,0) -> 560.8 | S15: R
A16: 7 | B16: 2018-02-15 | D16: CADILAHC | E16: Buy | F16: 415 | G16: 394 | H16: 392 | I16: 450-460 | J16: Loss of Rs.23/- | L16: -23 | M16: -5.54% | N16: Unsuccessful | O16: 2018-03-06 | P16: =VLOOKUP(D16,Sheet2!$A$1:M2113,6,0) -> 389.6 | S16: H
A17: 8 | B17: 2018-02-20 | D17: ALLCARGO | E17: Buy | F17: 176.5 | G17: 167 | H17: 182.75 | I17: 195 | J17: Profit of Rs.6.25/- | L17: =H17-F17-K17 -> 6.25 | M17: =L17/F17 -> 3.54% | N17: Successful | O17: 2018-03-01 | P17: =VLOOKUP(D17,Sheet2!$A$1:M2114,6,0) -> 170.4 | S17: R
A18: 9 | B18: 2018-02-22 | D18: SBIN | E18: Buy | F18: 270.5 | G18: 257 | H18: 270 | I18: 295-300 | J18: Loss of Rs.0.5/- | L18: =H18-F18-K18 -> -0.5 | M18: =L18/F18 -> -0.18% | N18: Unsuccessful | O18: 2018-03-05 | P18: =VLOOKUP(D18,Sheet2!$A$1:M2115,6,0) -> 256.55 | S18: H
A19: 10 | B19: 2018-02-26 | D19: DALMIABHA | E19: Buy | F19: 2693 | G19: 2600 | H19: 2775 | I19: 2900 | J19: Profit of Rs.82/- | L19: 82 | M19: 3.04% | N19: Successful | O19: 2018-03-01 | P19: =VLOOKUP(D19,Sheet2!$A$1:M2116,6,0) -> 2669.15 | S19: R
A20: 11 | B20: 2018-02-28 | D20: SUNPHARMA | E20: Buy | F20: 544 | G20: 515 | H20: 561 | I20: 600 | J20: Profit of Rs.17/- | L20: =H20-F20-K20 -> 17 | M20: =L20/F20 -> 3.13% | N20: Successful | O20: 2018-03-06 | P20: =VLOOKUP(D20,Sheet2!$A$1:M2117,6,0) -> 531.75 | S20: R
A21: 12 | B21: 2018-03-01 | D21: IGL | E21: Buy | F21: 303.75 | G21: 288 | H21: 314.5 | I21: 320-325 | J21: Profit of Rs.10.75/- | L21: =H21-F21-K21 -> 10.75 | M21: =L21/F21 -> 3.54% | N21: Successful | O21: 2018-03-06 | P21: =VLOOKUP(D21,Sheet2!$A$1:M2118,6,0) -> 310.8 | S21: H
A22: 13 | B22: 2018-03-01 | D22: BATAINDIA | E22: Buy | F22: 730-735 | G22: 704 | I22: 785 | J22: Open | P22: =VLOOKUP(D22,Sheet2!$A$1:M2119,6,0) -> 714.9 | S22: R
A23: 14 | B23: 2018-03-05 | D23: VRLLOG | E23: Buy | F23: 405-408 | G23: 395 | I23: 430 | J23: Open | P23: =VLOOKUP(D23,Sheet2!$A$1:M2120,6,0) -> 403.95 | S23: R
A28: CLBS = Closing Basis *** | F28: Reinitiated $
A29: Dividend adjusted <> | F29: Revised stoploss #
A31: Master Trade High Risk
A32: Sr.no | B32: Date | D32: Company | E32: Rec | F32: Rec Price | G32: Stop Loss | H32: Call Closed At | I32: Target | J32: Remark | L32: Profit / Loss per share | M32: Gain / Loss per Lot | N32: Lot | O32: Status | P32: Closed Date
A33: 1 | B33: 2018-03-01 | D33: ICICIBANK MAR FUT | E33: Sell | F33: 311 | G33: 315 | H33: 306.8 | I33: 300 | J33: Profit of Rs.4.2/- | L33: =F33-H33 -> 4.2 | M33: =L33*N33 -> 11550 | N33: 2750 | O33: Successful | P33: 2018-03-01 | S33: H
A34: 2 | B34: 2018-03-06 | D34: HINDALCO MAR FUT | E34: Sell | F34: 232.3 | G34: 236 | H34: 229.3 | I34: 225 | J34: Profit of Rs.3/- | L34: =F34-H34 -> 3 | M34: =L34*N34 -> 10500 | N34: 3500 | O34: Successful | P34: 2018-03-01
A37: Master Trade Medium Risk
A38: Sr.no | B38: Date | D38: Company | E38: Rec | F38: Rec Price | G38: Stop Loss | H38: Call Closed At | I38: Target | J38: Remark | L38: Profit/Loss per lot | M38: Gain / Loss per Lot | N38: Lot | O38: Status | P38: Closed Date
B42: Smart Delivery Trade
A43: Sr.no | B43: Date | D43: Company | E43: Rec | F43: Rec Price | G43: Stop Loss*** | H43: Call Closed At | I43: Target | J43: Remark | L43: Profit / Loss per Share | M43: Gain / Loss % | N43: Status | O43: Closed Date | P43: NSE Closed Price
A44: 1 | B44: 2018-02-15 | D44: ACC | E44: Buy | F44: 1630-1640 | G44: 1575 | I44: 1750 | J44: Open | P44: =VLOOKUP(D44,Sheet2!$A$1:M2140,6,0) -> 1595.3 | S44: R
A45: 2 | B45: 2018-02-26 | D45: HDFC | E45: Buy | F45: 1830-1836 | G45: 1780 | I45: 1950 | J45: Open | P45: =VLOOKUP(D45,Sheet2!$A$1:M2141,6,0) -> 1782.8 | S45: R
A46: 3 | B46: 2018-02-27 | D46: NBCC | E46: Buy | F46: 198-200 | G46: 190 | I46: 210-215 | J46: Open | P46: =VLOOKUP(D46,Sheet2!$A$1:M2142,6,0) -> 189.15 | S46: H
A47: 4 | B47: 2018-02-28 | D47: AMBUJACEM | E47: Buy | F47: 250-251 | G47: 238 | I47: 270-275 | J47: Open | P47: =VLOOKUP(D47,Sheet2!$A$1:M2143,6,0) -> 240.65 | S47: H
A48: 5 | B48: 2018-03-05 | D48: BAJAJ-AUTO | E48: Buy | F48: 2980-3000 | G48: 2930 | I48: 3100-3150 | J48: Open | P48: =VLOOKUP(D48,Sheet2!$A$1:M2144,6,0) -> 2899.2 | S48: H
A53: CLBS = Closing Basis *** | F53: Reinitiated $
A54: Dividend adjusted <> | F54: Revised stoploss #
A57: Techno -Funda (positional)
A58: Sr.no | B58: Date | D58: Company | E58: Rec | F58: Rec Price | G58: Stop Loss*** | H58: Call Closed At | I58: Target | J58: Remark | L58: Profit / Loss per Share | M58: Gain / Loss % | N58: Status | O58: Closed Date | P58: NSE Closed Price
A59: 1 | B59: 2018-03-05 | D59: NILKAMAL | E59: Buy | F59: 1640-1660 | G59: 1520 | I59: 1850-1900 | J59: Open | P59: =VLOOKUP(D59,Sheet2!$A$1:M2155,6,0) -> 1676.25 | S59: H
A60: CLBS = Closing Basis *** | F60: Reinitiated $
A61: Dividend adjusted <> | F61: Revised stoploss #
B65: Momentum Call
A66: Sr.no | B66: Date | D66: Company | E66: Rec | F66: Rec Price | G66: Stop Loss | H66: Call Closed At | I66: Target | J66: Remark | L66: Profit / Loss per Share/Lot | M66: Gain / Loss % | N66: Gain / Loss per Lot | O66: Lot | P66: Status | Q66: Closed Date | R66: NSE Closed Price
A67: 1 | B67: 2018-02-28 | D67: PVR | E67: Buy | F67: 1320-1326 | G67: 1295 | I67: 1360 | J67: Open | S67: R
A68: 2 | B68: 2018-03-05 | D68: BOMDYEING | E68: Buy | F68: 256.5 | G68: 249 | H68: 264.5 | I68: 268-270 | J68: Profit of Rs.8/- | L68: =H68-F68-K68 -> 8 | M68: =L68/F68 -> 3.12% | P68: Successful | Q68: 2018-03-05 | S68: R
A69: 3 | B69: 2018-03-05 | D69: SUDARSCHEM | E69: Buy | F69: 432.5 | G69: 418 | H69: 442 | I69: 450-455 | J69: Profit of Rs.9.5/- | L69: =H69-F69-K69 -> 9.5 | M69: =L69/F69 -> 2.20% | P69: Successful | Q69: 2018-03-05 | S69: H
A71: CLBS = Closing Basis *** | F71: Reinitiated $
A72: Dividend adjusted <> | F72: Revised stoploss #
B76: Quick Pick Intraday
A77: Sr.no | B77: Date | D77: Company | E77: Rec | F77: Rec Price | G77: Stop Loss*** | H77: Call Closed At | I77: Target | J77: Remark | L77: Profit / Loss per Share | M77: Gain / Loss % | N77: Status | O77: Closed Date
B85: Investment Idea
A86: Sr.no | B86: Date | D86: Company | E86: Rec | F86: Rec Price | G86: Point of Review | H86: Close Rate | I86: Target | J86: Remark | L86: Profit / Loss per Share | M86: Gain / Loss % | N86: Status | O86: Closed Date
A87: 1 | B87: 2013-11-01 | D87: L&T Finance Holding | E87: Accu | F87: 82.00 | G87: - | H87: 100 | I87: 100.00 | J87: Target Achieved | L87: =H87-F87-K87 -> 18.00 | M87: =L87/F87 -> 21.95% | N87: Successful | O87: 2016-10-14
A88: 2 | B88: 2014-06-04 | D88: Finolex Inds | E88: Buy | F88: 257.00 | G88: - | H88: 300 | I88: 300.00 | J88: Target Achieved | L88: 43.00 | M88: 16.73% | N88: Successful | O88: 2014-07-02
A89: =1+A88 -> 3 | B89: 2014-07-08 | D89: JK Cement | E89: Buy | F89: 393.00 | G89: - | H89: 468 | I89: 468.00 | J89: Target Achieved | L89: 75.00 | M89: 19.08% | N89: Successful | O89: 2014-08-12
A90: 4 | B90: 2014-08-06 | D90: Finolex Cables | E90: Buy | F90: 205.00 | G90: - | H90: 275 | I90: 250.00 | J90: Target Achieved | L90: 70.00 | M90: 34.15% | N90: Successful | O90: 2014-11-19
A91: 5 | B91: 2014-09-04 | D91: Exide Inds | E91: Buy | F91: 162.00 | G91: - | H91: 190 | I91: 190.00 | J91: Target Achieved | L91: 28.00 | M91: 17.28% | N91: Successful | O91: 2015-01-02
A92: 6 | B92: 2014-09-04 | D92: Deepak Nitrite | E92: Buy | F92: 75.00 | G92: - | H92: 91.5 | I92: 95-100 | J92: Profit of Rs.16.50/- | L92: 16.50 | M92: 22.00% | N92: Successful | O92: 2014-11-11
A93: 7 | B93: 2014-10-01 | D93: Mercks | E93: Buy | F93: 850.00 | G93: - | H93: 982.5 | I93: 1050.00 | J93: Profit of Rs.132.50/- | L93: 132.50 | M93: 15.59% | N93: Successful | O93: 2015-02-04
A94: 8 | B94: 2014-10-01 | D94: Grindwell Norton | E94: Buy | F94: 475.00 | G94: - | H94: 515 | I94: 600.00 | J94: Profit of Rs.40/- | L94: 40.00 | M94: 8.42% | N94: Successful | O94: 2014-10-27
A95: 9 | B95: 2014-10-01 | D95: Snowman Logistics | E95: Buy | F95: 86.00 | G95: - | H95: 99 | I95: 140.00 | J95: Profit of Rs.13.00/- | L95: 13.00 | M95: 15.12% | N95: Successful | O95: 2014-10-27
A96: 10 | B96: 2014-10-14 | D96: Birla Corp | E96: Buy | F96: 496.60 | G96: - | H96: 621 | I96: 580.00 | J96: Target Achieved | L96: 124.40 | M96: 25.05% | N96: Successful | O96: 2016-08-23
A97: 11 | B97: 2014-10-14 | D97: Ultratech Cem | E97: Buy | F97: 2481.90 | G97: - | H97: 2840 | I97: 2870.00 | J97: Profit of Rs.358.10/- | L97: 358.10 | M97: 14.43% | N97: Successful | O97: 2015-01-13
A98: =1+A95 -> 10 | B98: 2014-10-16 | D98: Sintex Inds | E98: Buy | F98: 84.50 | G98: - | H98: 93 | I98: 110.00 | J98: Profit of Rs.8.50/- | L98: 8.50 | M98: 10.06% | N98: Successful | O98: 2014-10-27
A99: =1+A98 -> 11 | B99: 2014-10-16 | D99: HSIL | E99: Buy | F99: 401.00 | G99: - | H99: 428 | I99: 450.00 | J99: Profit of Rs.27.00/- | L99: 27.00 | M99: 6.73% | N99: Successful | O99: 2015-01-16
A100: 12 | B100: 2014-10-16 | D100: Eveready Inds | E100: Buy | F100: 101.00 | G100: - | H100: 112 | I100: 120.00 | J100: Profit of Rs.11.00/- | L100: 11.00 | M100: 10.89% | N100: Successful | O100: 2014-10-27
A101: 13 | B101: 2014-11-11 | D101: Pennar Inds | E101: Buy | F101: 59.00 | G101: - | H101: 76 | I101: 76.00 | J101: Target Achieved | L101: 17.00 | M101: 28.81% | N101: Successful | O101: 2017-10-24
A102: 14 | B102: 2014-11-11 | D102: Snowman Logistics | E102: Buy | F102: 99.00 | G102: - | H102: 120 | I102: 120.00 | J102: Profit of Rs.21/- | L102: 21.00 | M102: 21.21% | N102: Successful | O102: 2014-11-17
A103: 15 | B103: 2014-11-13 | D103: Dharamsi Morarji Chem | E103: Buy | F103: 22.00 | G103: - | H103: 33.55 | I103: 32.00 | J103: Profit of Rs 11.55/- | L103: 11.55 | M103: 52.50% | N103: Successful | O103: 2015-07-03
A104: 16 | B104: 2014-12-03 | D104: Tatachem | E104: Buy | F104: 440.00 | G104: - | H104: 520 | I104: 520.00 | J104: Profit of Rs 80.00/- | L104: 80.00 | M104: 18.18% | N104: Successful | O104: 2015-07-23
A105: 17 | B105: 2014-12-03 | D105: Advanta | E105: Buy | F105: 360.00 | G105: - | H105: 427 | I105: 425.00 | J105: Profit of Rs.67.00/- | L105: 67.00 | M105: 18.61% | N105: Successful | O105: 2015-02-23
A106: 18 | B106: 2015-01-08 | D106: GDL | E106: Buy | F106: 360.00 | G106: - | H106: 455 | I106: 420.00 | J106: Profit of Rs.95.00/- | L106: 95.00 | M106: 26.39% | N106: Successful | O106: 2015-01-20
A107: 19 | B107: 2015-01-08 | D107: NRB Bearing | E107: Buy | F107: 130.00 | H107: 175.5 | I107: 165.00 | J107: Profit of Rs 45.50/- | L107: 45.50 | M107: 35.00% | N107: Successful | O107: 2017-12-19
A108: 20 | B108: 2015-02-05 | D108: GSFC | E108: Accu | F108: 98.00 | H108: 120 | I108: 120.00 | J108: Target Achieved | L108: 22.00 | M108: 22.45% | N108: Successful | O108: 2017-01-18
A109: 21 | B109: 2015-02-05 | D109: Sundrmfast | E109: Accu | F109: 196.00 | H109: 262 | I109: 255.00 | J109: Target Achieved | L109: 66.00 | M109: 33.67% | N109: Successful | O109: 2016-08-17
A110: 22 | B110: 2015-03-04 | D110: GPPL | E110: Accu | F110: 230-240 | I110: 280-285 | J110: Open
A111: 23 | B111: 2015-03-04 | D111: ORIENTCEM | E111: Accu | F111: 185.00 | H111: 224 | I111: 220-225 | J111: Target Achieved | L111: =H111-F111-K111 -> 39.00 | M111: =L111/F111 -> 21.08% | N111: Successful | O111: 2016-10-04
A112: 24 | B112: 2015-03-27 | D112: PFS | E112: Accu | F112: 49-50 | I112: 67.00 | J112: Open
A113: 25 | B113: 2015-03-30 | D113: Walchandnagar Ind Ltd | E113: Accu | F113: 183.50 | H113: 219 | I113: 218.00 | J113: Profit of Rs.35.50/- | L113: =H113-F113-K113 -> 35.50 | M113: =L113/F113 -> 19.35% | N113: Successful | O113: 2015-04-09
A114: 26 | B114: 2015-04-20 | D114: Kalpataru Power Transmission Ltd | E114: Accu | F114: =(227+237)/2 -> 232.00 | H114: 298 | I114: 298.00 | J114: Target Achieved | L114: 66.00 | M114: 28.45% | N114: Successful | O114: 2017-03-29
A115: 27 | B115: 2015-05-04 | D115: Mastek Ltd | E115: Buy | F115: 385.00 | H115: =212.5+331 -> 543.5 | I115: 510.00 | J115: Profit of Rs 158.50/- | L115: 158.50 | M115: 41.17% | N115: Successful | O115: 2015-08-19
A116: 28 | B116: 2015-05-04 | D116: Suprajit Eng | E116: Buy | F116: 115.50 | H116: 146 | I116: 142.00 | J116: Profit of Rs 30.50/- | L116: 30.50 | M116: 26.41% | N116: Successful | O116: 2015-07-17
A117: 29 | B117: 2015-05-27 | D117: TCI | E117: Buy | F117: 237.50 | H117: 279.5 | I117: 278.00 | J117: Target Achieved | L117: 42.00 | M117: 17.68% | N117: Successful | O117: 2015-08-06
A118: 30 | B118: 2015-06-19 | D118: HSIL | E118: Accu | F118: 340.00 | H118: 448 | I118: 448.00 | J118: Target Achieved | L118: 108.00 | M118: 31.76% | N118: Successful | O118: 2017-10-10
A119: 31 | B119: 2015-07-06 | D119: Capital First | E119: Accu | F119: 390.00 | H119: 460 | I119: 460.00 | J119: Target Achieved | L119: 70.00 | M119: 17.95% | N119: Successful | O119: 2016-04-18
A120: 32 | B120: 2015-07-10 | D120: Dolphin OffShore | E120: Accu | F120: 118-127 | I120: 172.00 | J120: Open
A121: 33 | B121: 2015-08-03 | D121: Allcargo logistics | E121: Accu | F121: 297.50 | H121: 350 | I121: 360.00 | J121: Profit of Rs 52.50/- | L121: =H121-F121-K121 -> 52.50 | M121: =L121/F121 -> 17.65% | N121: Successful | O121: 2015-08-16
A122: 34 | B122: 2015-08-03 | D122: Camline Fine | E122: Accu | F122: 115.50 | H122: 149 | I122: 140.00 | J122: Profit of Rs 33.50/- | L122: 33.50 | M122: 29.00% | N122: Successful | O122: 2017-01-05
A123: 35 | B123: 2015-09-04 | D123: TCI | E123: Accu | F123: 226.00 | H123: 292 | I123: 292.00 | J123: Target Achieved | L123: 66.00 | M123: 29.20% | N123: Successful | O123: 2015-10-09
A124: 36 | B124: 2015-09-07 | D124: Kalpataru Power Transmission Ltd | E124: Accu | F124: 232.50 | H124: 312.5 | I124: 310.00 | J124: Target Achieved | L124: 80.00 | M124: 34.41% | N124: Successful | O124: 2017-03-29
A125: 37 | B125: 2015-09-21 | D125: LLOYD ELECTRIC & ENG LTD | E125: Accu | F125: 196.50 | H125: 238 | I125: 238.00 | J125: Target Achieved | L125: 41.50 | M125: 21.12% | N125: Successful | O125: 2015-10-14
A126: 38 | B126: 2015-09-24 | D126: L&T Finance Holding | E126: Accu | F126: 65.00 | H126: 82 | I126: 82.00 | J126: Target Achieved | L126: 17.00 | M126: 26.15% | N126: Successful | O126: 2016-07-27
A127: 39 | B127: 2015-10-14 | D127: KEC International ltd | E127: Accu | F127: 144.00 | H127: 182.5 | I127: 181.00 | J127: Target Achieved | L127: 38.50 | M127: 26.74% | N127: Successful | O127: 2017-03-23
A128: 40 | B128: 2015-10-14 | D128: Gruh Finance | E128: Accu | F128: 264.00 | H128: 311 | I128: 311.00 | J128: Target Achieved | L128: 47.00 | M128: 17.80% | N128: Successful | O128: 2016-08-22
A129: 41 | B129: 2015-11-10 | D129: Pidilitind | E129: Buy | F129: 549.50 | H129: 630 | I129: 630.00 | J129: Target Achieved | L129: 80.50 | M129: 14.65% | N129: Successful | O129: 2016-02-19
A130: 42 | B130: 2015-12-04 | D130: Zensar Technology | E130: Accu | F130: 1020-1035 | I130: 1250.00 | J130: Open
A131: 43 | B131: 2015-12-29 | D131: Vinati Organics Ltd | E131: Accu | F131: 465.00 | H131: 540 | I131: 540.00 | J131: Target Achieved | L131: =H131-F131-K131 -> 75.00 | M131: =L131/F131 -> 16.13% | N131: Successful | O131: 2016-06-09
A132: 44 | B132: 2016-01-11 | D132: GSFC | E132: Buy | F132: 81.00 | H132: 110 | I132: 110.00 | J132: Target Achieved | L132: 29.00 | M132: 35.80% | N132: Successful | O132: 2017-01-10
A133: 45 | B133: 2016-01-13 | D133: SSWL | E133: Buy | F133: 417.50 | H133: 547 | I133: 535.00 | J133: Target Achieved | L133: 129.50 | M133: 31.02% | N133: Successful | O133: 2016-07-27
A134: 46 | B134: 2016-02-08 | D134: Persistent System Ltd | E134: Accu | F134: 650.00 | H134: 800 | I134: 800.00 | J134: Target Achieved | L134: =H134-F134-K134 -> 150.00 | M134: =L134/F134 -> 23.08% | N134: Successful | O134: 2018-02-23
A135: 47 | B135: 2016-03-04 | D135: UPL | E135: Accu | F135: 437.50 | H135: 504.5 | I135: 522.00 | J135: Profit of Rs.67/- | L135: 67.00 | M135: 15.31% | N135: Successful | O135: 2016-04-20
A136: 48 | B136: 2016-03-09 | D136: Ashoka Buildcon Ltd | E136: Accu | F136: 189.50 | H136: 218 | I136: 218.00 | J136: Target Achieved | L136: 28.50 | M136: 15.04% | N136: Successful | O136: 2017-10-26
A137: 49 | B137: 2016-04-11 | D137: PTC INDIA FIN SERV LTD | E137: Accu | F137: 36-37 | I137: 60.00 | J137: Open
A138: 50 | B138: 2016-04-12 | D138: CAMLINFINE $ | E138: Accu | F138: 93.00 | H138: 149 | I138: 140.00 | J138: Profit of Rs 56/- | L138: =H138-F138-K138 -> 56.00 | M138: =L138/F138 -> 60.22% | N138: Successful | O138: 2017-01-05
A139: 51 | B139: 2016-04-12 | D139: Greaves Cotton Ltd. | E139: Accu | F139: 130.00 | H139: 150 | I139: 150-155 | J139: Target Achieved | L139: 20.00 | M139: 15.38% | N139: Successful | O139: 2016-07-13
A140: 52 | B140: 2016-04-13 | D140: DHFL | E140: Accu | F140: 196.00 | H140: 299 | I140: 299.00 | J140: Target Achieved | L140: 103.00 | M140: 52.55% | N140: Successful | O140: 2016-09-07
A141: 53 | B141: 2016-04-13 | D141: Magma | E141: Accu | F141: 88.00 | H141: 103 | I141: 103.00 | J141: Target Achieved | L141: 15.00 | M141: 17.05% | N141: Successful | O141: 2016-06-09
A142: 54 | B142: 2016-05-02 | D142: KEC International ltd $ | E142: Accu | F142: 127.50 | H142: 148 | I142: 148-150 | J142: Target Achieved | L142: 20.50 | M142: 16.08% | N142: Successful | O142: 2016-07-13
A143: 55 | B143: 2016-05-03 | D143: Mindtree | E143: Accu | F143: 675.00 | H143: 815 | I143: 790-800 | J143: Target Achieved | L143: 140.00 | M143: 20.74% | N143: Successful | O143: 2018-02-23
A144: 56 | B144: 2016-06-01 | D144: Atulauto | E144: Accu | F144: 495-505 | I144: 565-570 | J144: Open
A145: 57 | B145: 2016-06-06 | D145: TRITURBINE | E145: Accu | F145: 110.00 | H145: 126.5 | I145: 125.00 | J145: Profit of Rs.16.50/- | L145: =H145-F145-K145 -> 16.50 | M145: =L145/F145 -> 15.00% | N145: Successful | O145: 2016-07-01
A146: 58 | B146: 2016-06-17 | D146: Pennar Industries Ltd | E146: Accu | F146: 44 | H146: 64.50 | I146: 69.50 | J146: Part profit of Rs.20.50/- | L146: =H146-F146-K146 -> 20.50 | M146: =L146/F146 -> 47% | N146: Successful | O146: 2017-08-30
A147: 59 | B147: 2016-06-28 | D147: EVEREADY INDS. IND. LTD. | E147: Accu | F147: 262.50 | H147: 340 | I147: 333.00 | J147: Profit of Rs.77.50/- | L147: =H147-F147-K147 -> 77.50 | M147: =L147/F147 -> 29.52% | N147: Successful | O147: 2017-10-09
A148: 60 | B148: 2016-06-28 | D148: FIEM INDUSTRIES LIMITED | E148: Accu | F148: 840.00 | H148: 1230 | I148: 1230.00 | J148: Target Achieved | L148: =H148-F148-K148 -> 390.00 | M148: =L148/F148 -> 46.43% | N148: Successful | O148: 2016-10-06
A149: 61 | B149: 2016-07-05 | D149: Bajaj Corp Ltd | E149: Accu | F149: 395 | H149: 468.50 | I149: 510.00 | J149: Part profit of Rs.73.50/- | L149: =H149-F149-K149 -> 73.50 | M149: =L149/F149 -> 19% | N149: Successful | O149: 2017-08-30
A150: 62 | B150: 2016-08-02 | D150: GPPL $ | E150: Buy | F150: 167-172 | I150: 198-200 | J150: Open
A151: 63 | B151: 2016-08-04 | D151: WONDERLA HOLIDAYS LTD | E151: Accu | F151: 395-405 | I151: 475.00 | J151: Open
A152: 64 | B152: 2016-08-11 | D152: CAMLINFINE | E152: Accu | F152: 86.50 | H152: 130 | I152: 130.00 | J152: Profit of Rs.43.50/- | L152: =H152-F152-K152 -> 43.50 | M152: =L152/F152 -> 50.29% | N152: Successful | O152: 2017-12-22
A153: 65 | B153: 2016-08-18 | D153: GRANULES | E153: Accu | F153: 133.5 | H153: 126.50 | I153: 178.00 | J153: Exit | L153: -7.00 | M153: -5.24% | N153: Unsuccessful | O153: 2016-09-02
A154: 66 | B154: 2016-08-31 | D154: VA TECH WABAG | E154: Accu | F154: 560.00 | H154: 725 | I154: 725.00 | J154: Target Achieved | L154: 165.00 | M154: 29.46% | N154: Successful | O154: 2016-03-27
A155: 67 | B155: 2016-09-01 | D155: SKIPPER LIMITED | E155: Accu | F155: 160.50 | H155: 210 | I155: 210.00 | J155: Target Achieved | L155: 49.50 | M155: 30.84% | N155: Successful | O155: 2017-05-16
A156: 68 | B156: 2016-10-03 | D156: IFB Industries | E156: Accu | F156: 430.00 | H156: 596 | I156: 575.00 | J156: Profit of Rs.166/- | L156: 166.00 | M156: 38.60% | N156: Successful | O156: 2017-02-03
A157: 69 | B157: 2016-10-14 | D157: ASIANTILES | E157: Accu | F157: 280.00 | H157: 345 | I157: 345.00 | J157: Target Achieved | L157: 65.00 | M157: 23.21% | N157: Successful | O157: 2017-03-20
A158: 70 | B158: 2016-10-14 | D158: DEEPIND | E158: Accu | F158: 245.00 | H158: 325.5 | I158: 330.00 | J158: Profit of Rs.80.5/- | L158: 80.50 | M158: 32.86% | N158: Successful | O158: 2017-02-03
A159: 71 | B159: 2016-10-17 | D159: DCBBANK | E159: Accu | F159: 125.00 | H159: 160 | I159: 160.00 | J159: Target Achieved | L159: 35.00 | M159: 28.00% | N159: Successful | O159: 2017-03-09
A160: 72 | B160: 2016-10-17 | D160: ORIENTREF | E160: Accu | F160: 114.00 | H160: 145 | I160: 145.00 | J160: Target Achieved | L160: =H160-F160-K160 -> 31.00 | M160: =L160/F160 -> 27.19% | N160: Successful | O160: 2017-05-04
A161: 73 | B161: 2016-10-17 | D161: GANECOS | E161: Accu | F161: 212.00 | H161: 280 | I161: 276.00 | J161: Profit of Rs.68/- | L161: =H161-F161-K161 -> 68.00 | M161: =L161/F161 -> 32.08% | N161: Successful | O161: 2017-05-03
A162: 74 | B162: 2016-11-04 | D162: NBCC | E162: Accu | F162: 155.00 | H162: 210 | I162: 210.00 | J162: Profit of Rs.55/- | L162: =H162-F162-K162 -> 55.00 | M162: =L162/F162 -> 35.48% | N162: Successful | O162: 2017-07-28
A163: 75 | B163: 2016-12-06 | D163: PRECAM | E163: Accu | F163: 148-153 | I163: 174.00 | J163: Open
A164: 76 | B164: 2016-12-08 | D164: INFRATEL | E164: Accu | F164: 380.00 | H164: 478 | I164: 468.00 | J164: Target Achieved | L164: =H164-F164-K164 -> 98.00 | M164: =L164/F164 -> 25.79% | N164: Successful | O164: 2017-10-17
A165: 77 | B165: 2016-12-30 | D165: GODREJPROP | E165: Accu | F165: 305.00 | H165: 375 | I165: 375.00 | J165: Target Achieved | L165: 70.00 | M165: 22.95% | N165: Successful | O165: 2017-02-02
A166: 78 | B166: 2017-01-04 | D166: DEEPAKNTR | E166: Accu | F166: 99.50 | H166: 158 | I166: 158.00 | J166: Target Achieved | L166: 58.50 | M166: 58.79% | N166: Successful | O166: 2017-06-12
A167: 79 | B167: 2017-02-20 | D167: SUBROS | E167: Accu | F167: 202.50 | H167: 234 | I167: 234.00 | J167: Target Achieved | L167: 31.50 | M167: 15.56% | N167: Successful | O167: 2017-04-11
A168: 80 | B168: 2017-02-20 | D168: RECLTD | E168: Accu | F168: 140.50 | H168: 220 | I168: 220.00 | J168: Target Achieved | L168: 79.50 | M168: 56.58% | N168: Successful | O168: 2017-05-09
A169: 81 | B169: 2017-03-24 | D169: VRLLOG | E169: Accu | F169: 300.50 | H169: 417.5 | I169: 420.00 | J169: Profit of Rs.117/- | L169: 117.00 | M169: 38.94% | N169: Successful | O169: 2017-12-01
A170: 82 | B170: 2017-03-24 | D170: FIEMIND | E170: Accu | F170: 850.00 | H170: 1042.5 | I170: 1023.00 | J170: Profit of Rs 192.50/- | L170: 192.50 | M170: 22.65% | N170: Successful | O170: 2017-04-05
A171: 83 | B171: 2017-04-05 | D171: RATNAMANI | E171: Accu | F171: 785.00 | H171: 930 | I171: 920.00 | J171: Profit of Rs.145/- | L171: 145.00 | M171: 18.47% | N171: Successful | O171: 2017-08-29
A172: 84 | B172: 2017-04-06 | D172: ZEEMEDIA | E172: Accu | F172: 39-41 | I172: 60.00 | J172: Open
A173: 85 | B173: 2017-04-12 | D173: DABUR | E173: Accu | F173: 289.50 | H173: 354 | I173: 360.00 | J173: Profit of Rs.64.5/- | L173: =H173-F173-K173 -> 64.50 | M173: =L173/F173 -> 22.28% | N173: Successful | O173: 2017-11-01
A174: 86 | B174: 2017-04-20 | D174: KPRMILL | E174: Accu | F174: 700.00 | H174: 840 | I174: 840.00 | J174: Profit of Rs.140/- | L174: =H174-F174-K174 -> 140.00 | M174: =L174/F174 -> 20.00% | N174: Successful | O174: 2017-06-07
A175: 87 | B175: 2017-05-22 | D175: GREAVESCOT | E175: Accu | F175: 153-158 | I175: 190.00 | J175: Open
A176: 88 | B176: 2017-06-01 | D176: ESSELPACK | E176: Accu | F176: 260 | H176: 311.00 | I176: 340.00 | J176: Part profit of Rs.51/- | L176: =H176-F176-K176 -> 51.00 | M176: =L176/F176 -> 20% | N176: Successful | O176: 2017-11-17
A177: 89 | B177: 2017-06-15 | D177: KEI | E177: Accu | F177: 214.50 | H177: 262 | I177: 262.00 | J177: Profit of Rs.47.5/- | L177: 47.50 | M177: 22.14% | N177: Successful | O177: 2017-08-30
A178: 90 | B178: 2017-07-17 | D178: MAYURUNIQ | E178: Accu | F178: 370.00 | H178: 447.5 | I178: 450.00 | J178: Target Achieved | L178: 77.50 | M178: 20.95% | N178: Successful | O178: 2017-10-27
A179: 91 | B179: 2017-07-27 | D179: RAMCOCEM | E179: Accu | F179: 657.50 | H179: 825 | I179: 820.00 | J179: Target Achieved | L179: 167.50 | M179: 25.48% | N179: Successful | O179: 2017-12-21
A180: 92 | B180: 2017-08-17 | D180: FINPIPE | E180: Accu | F180: 605.00 | H180: 750 | I180: 750.00 | J180: Profit of Rs.145/- | L180: 145.00 | M180: 23.97% | N180: Successful | O180: 2017-10-19
A181: 93 | B181: 2017-09-01 | D181: SHK | E181: Accu | F181: 255 | H181: 307.50 | I181: 320.00 | J181: Part profit of Rs.52.5/- | L181: 52.50 | M181: 21% | N181: Successful | O181: 2017-12-29
A182: 94 | B182: 2017-09-19 | D182: SKIPPER | E182: Accu | F182: 215.00 | H182: 258 | I182: 258.00 | J182: Target Achieved | L182: 43.00 | M182: 20.00% | N182: Successful | O182: 2017-11-01
A183: 95 | B183: 2017-09-20 | D183: CAMLINFINE | E183: Accu | F183: 75.00 | H183: 90 | I183: 90.00 | J183: Profit of Rs.15.00/- | L183: 15.00 | M183: 20.00% | N183: Successful | O183: 2017-10-11
A184: 96 | B184: 2017-10-03 | D184: GNA | E184: Accu | F184: 315.00 | H184: 392 | I184: 384.00 | J184: Profit of Rs.77/- | L184: 77.00 | M184: 24.44% | N184: Successful | O184: 2017-10-09
A185: 97 | B185: 2017-10-05 | D185: NOCIL | E185: Accu | F185: 145.00 | H185: 179 | I185: 180.00 | J185: Profit of Rs.34/- | L185: 34.00 | M185: 23.45% | N185: Successful | O185: 2017-10-17
A186: 98 | B186: 2017-10-06 | D186: CENTURYPLY | E186: Accu | F186: 256.00 | H186: 323 | I186: 320.00 | J186: Target Achieved | L186: 67.00 | M186: 26.17% | N186: Successful | O186: 2017-11-28
A187: 99 | B187: 2017-10-09 | D187: RECLTD | E187: Accu | F187: 152.5 | H187: 183.50 | I187: 210.00 | J187: Part Profit of Rs.31/- | L187: 31.00 | M187: 20% | N187: Successful | O187: 2017-11-03
A188: 100 | B188: 2017-10-09 | D188: EIHOTEL | E188: Accu | F188: 137.50 | H188: 184 | I188: 183.00 | J188: Profit of Rs.46.5/- | L188: 46.50 | M188: 33.82% | N188: Successful | O188: 2018-01-08
A189: 101 | B189: 2017-10-10 | D189: BOROSIL | E189: Accu | F189: 895.00 | H189: 1122.5 | I189: 1078.00 | J189: Profit of Rs.227.5/- | L189: 227.50 | M189: 25.42% | N189: Successful | O189: 2018-01-17
A190: 102 | B190: 2017-10-10 | D190: NRBBEARING | E190: Accu | F190: 125.50 | H190: 158 | I190: 155.00 | J190: Profit of Rs.32.5/- | L190: 32.50 | M190: 25.90% | N190: Successful | O190: 2017-11-28
A191: 103 | B191: 2017-10-12 | D191: CYIENT | E191: Accu | F191: 525.00 | H191: 629 | I191: 629.00 | J191: Target Achieved | L191: 104.00 | M191: 19.81% | N191: Successful | O191: 2018-01-19
A192: 104 | B192: 2017-11-07 | D192: HATSUN | E192: Accu | F192: 740.00 | H192: 892.5 | I192: 900.00 | J192: Profit of Rs.152.5/- | L192: 152.50 | M192: 20.61% | N192: Successful | O192: 2017-11-13
A193: 105 | B193: 2017-12-04 | D193: SANGHIIND | E193: Accu | F193: 118.50 | H193: 143.5 | I193: 145.00 | J193: Profit of Rs.25/- | L193: 25.00 | M193: 21.10% | N193: Successful | O193: 2017-12-28
A194: 106 | B194: 2017-12-05 | D194: ALLCARGO | E194: Accu | F194: 177.5 | H194: 215.00 | I194: 230.00 | J194: Part Profit of Rs.37.5/- | L194: 37.50 | M194: 21% | N194: Successful | O194: 2017-12-27
A195: 107 | B195: 2017-12-21 | D195: KAJARIACER | E195: Accu | F195: 710-720 | I195: 872.00 | J195: Open
A196: 108 | B196: 2017-12-29 | D196: GNA | E196: Accu | F196: 430-440 | I196: 539.00 | J196: Open
A197: 109 | B197: 2017-12-29 | D197: ZENSARTECH | E197: Accu | F197: 880-890 | I197: 1084.00 | J197: Open
A198: 110 | B198: 2018-02-07 | D198: KAJARIACER | E198: Accu | F198: 595-605 | I198: 872.00 | J198: Open
A199: 111 | B199: 2018-02-07 | D199: GREAVESCOT | E199: Accu | F199: 130-132 | I199: 190.00 | J199: Open
A200: 112 | B200: 2018-02-27 | D200: MOLDTKPAC | E200: Accu | F200: 320-330 | I200: 398.00 | J200: Open
A201: 113 | B201: 2018-03-05 | D201: LICHSGFIN | E201: Accu | F201: 505-515 | I201: 672.00 | J201: Open
F203: Reinitiated $
A205: Disclaimer:
A206: This document has been prepared by the Retail Research Desk of Asit C Mehta
A207: Investment Intermediates Ltd. and is meant for use of the recipient only
A208: and is not for circulation. This document is not to be reported or
A209: copied or made available to others. It should not be considered to be
A210: taken as an offer to sell or a solicitation to buy any security. The
A211: information contained herein is from sources believed reliable. We do
A212: not represent that it is accurate or complete and it should not be
A213: relied upon as such. We may from time to time have positions in and buy
A214: and sell securities referred to herein

Sheet Sheet1 (hidden)

Sheet Sheet3 (hidden)

Sheet Sheet4 (hidden)

Sheet Sheet5 (hidden)

Sheet Call Tracker (Currency) (hidden)
A1: Master Trade High Risk
A2: Sr.no | B2: Date | C2: Company | D2: Rec | E2: Rec Price | F2: Stop Loss | G2: Call Closed At | H2: Target | I2: Remark | K2: Profit / Loss per share | L2: Gain / Loss per Lot | M2: Lot | N2: Status | O2: Closed Date
A3: 1 | B3: 2017-05-08 | C3: USDINR MAY FUT | D3: Buy | E3: 64.3935 | F3: 64.29 | G3: 64.66 | H3: 64.59 | I3: Profit of Rs.0.27/- | K3: 0.27 | L3: 266.5 | M3: 1000 | N3: Successful | O3: 2017-05-09 | R3: P
A4: 2 | B4: 2017-05-08 | C4: USDINR JUN FUT | D4: Buy | E4: 64.6535 | F4: 64.45 | G4: 64.965 | H4: 65.05 | I4: Profit of Rs 0.31/- | K4: 0.31 | L4: 311.5 | M4: 1000 | N4: Successful | O4: 2017-05-09 | R4: P
A5: 3 | B5: 2017-05-09 | C5: EUROINR MAY FUT | D5: Sell | E5: 70.65 | F5: 70.8 | G5: 70.07 | H5: 70.4 | I5: Profit of Rs 0.58/- | K5: 0.58 | L5: 580 | M5: 1000 | N5: Successful | O5: 2017-05-12 | R5: P
A6: 4 | B6: 2017-05-09 | C6: GBPINR MAY FUT | D6: Buy | E6: 83.774 | F6: 83.37 | G6: 83.37 | H6: 84.77 | I6: Loss of Rs 0.40/- | K6: -0.40 | L6: -404 | M6: 1000 | N6: Unsuccessful | O6: 2017-05-11 | R6: P
A7: 5 | B7: 2017-05-11 | C7: USDINR MAY FUT | D7: Buy | E7: 64.6555 | F7: 64.55 | G7: 64.55 | H7: 64.86 | I7: Loss of Rs.0.1055/- | K7: -0.1055 | L7: =K7*M7 -> -105.50 | M7: 1000 | N7: Unsuccessful | O7: 2017-05-11 | R7: P
A8: 6 | B8: 2017-05-15 | C8: USDINR MAY FUT | D8: Buy | E8: 64.2275 | F8: 64.08 | G8: 64.46 | H8: 64.48 | I8: Profit of Rs 0.23/- | K8: 0.23 | L8: 232.5 | M8: 1000 | N8: Successful | O8: 2017-05-18 | R8: P
A9: 7 | B9: 2017-05-19 | C9: USDINR MAY FUT | D9: Sell | E9: 64.83 | F9: 65 | G9: 65 | H9: 64.5 | I9: Loss of Rs.0.17/- | K9: -0.17 | L9: -170 | M9: 1000 | N9: Unsuccessful | O9: 2017-05-19 | R9: P
A10: 8 | B10: 2017-05-23 | C10: USDINR MAY FUT | D10: Buy | E10: 64.83 | F10: 64.62 | G10: 64.95 | H10: 65.2 | I10: Profit of Rs 0.12/- | K10: 0.12 | L10: 120 | M10: 1000 | N10: Successful | O10: 2017-05-24 | R10: P
A11: 9 | B11: 2017-05-25 | C11: USDINR MAY FUT | D11: Buy | E11: 64.57 | F11: 64.25 | G11: 64.56 | H11: 65 | I11: Loss of Rs.0.01/- | K11: -0.01 | L11: -10 | M11: 1000 | N11: Neutral | O11: 2017-05-29 | R11: P
A12: 10 | B12: 2017-05-30 | C12: USDINR JUN FUT | D12: Buy | E12: 64.9125 | F12: 64.71 | G12: 64.71 | H12: 65.31 | I12: Loss of Rs.0.20/- | K12: -0.20 | L12: -202.5 | M12: 1000 | N12: Unsuccessful | O12: 2017-05-31 | R12: P
A13: 11 | B13: 2017-06-01 | C13: USDINR JUN FUT | D13: Buy | E13: 64.655 | F13: 64.45 | G13: 64.45 | H13: 65.05 | I13: Loss of Rs.0.20/- | K13: =G13-E13 -> -0.20 | L13: =K13*M13 -> -205 | M13: 1000.00 | N13: Unsuccessful | O13: 2017-06-08 | R13: P
A14: 12 | B14: 2017-06-12 | C14: USDINR JUN FUT | D14: Buy | E14: 64.45 | F14: 64 | G14: 64.7625 | H14: 65.2 | I14: Profit of Rs 0.31/- | K14: 0.31 | L14: 312.5 | M14: 1000 | N14: Successful | O14: 2017-06-16
A15: 13 | B15: 2017-06-16 | C15: USDINR JUN FUT | D15: Buy | E15: 64.51 | F15: 64.2 | G15: 64.7 | H15: 65.11 | I15: Profit of Rs 0.19/- | K15: 0.19 | L15: 190 | M15: 1000 | N15: Successful | O15: 2017-06-21
A16: 14 | B16: 2017-06-22 | C16: USDINR JUN FUT | D16: Buy | E16: 64.56 | F16: 64.2 | G16: 64.2 | H16: 65.1 | I16: Loss of Rs.0.36/- | K16: -0.36 | L16: -360 | M16: 1000.00 | N16: Unsuccessful | O16: 2017-06-30
A17: 15 | B17: 2017-07-10 | C17: USDINR JUL FUT | D17: Buy | E17: 64.67 | F17: 64.4 | G17: 64.4 | H17: 65.15 | I17: Loss of Rs.0.27/- | K17: -0.27 | L17: -270 | M17: 1000.00 | N17: Unsuccessful | O17: 2017-07-31
A18: 16 | B18: 2017-08-02 | C18: USDINR AUG FUT | D18: Buy | E18: 64.235 | F18: 63.98 | G18: 63.98 | H18: 64.75 | I18: Loss of Rs.0.26/- | K18: -0.26 | L18: -255 | M18: 1000.00 | N18: Unsuccessful | O18: 2017-08-02
A19: 17 | B19: 2017-08-08 | C19: USDINR AUG FUT | D19: Buy | E19: 63.9425 | F19: 63.6 | G19: 64.15 | H19: 64.5 | I19: Profit of Rs 0.21/- | K19: 0.21 | L19: 207.5 | M19: 1000 | N19: Successful | O19: 2017-08-10
A20: 18 | B20: 2017-08-22 | C20: USDINR AUG FUT | D20: Buy | E20: 64.1175 | F20: 63.9 | G20: 64.01 | H20: 64.5 | I20: Loss of Rs.0.11/- | K20: =G20-E20 -> -0.11 | L20: =K20*M20 -> -107.5 | M20: 1000.00 | N20: Unsuccessful | O20: 2017-08-29
A21: 19 | B21: 2017-09-01 | C21: USDINR SEP FUT | D21: Buy | E21: 64.1 | F21: 63.8 | G21: 64.205 | H21: 64.7 | I21: Profit of Rs 0.11/- | K21: 0.11 | L21: 105 | M21: 1000 | N21: Successful | O21: 2017-09-01
A22: 20 | B22: 2017-09-04 | C22: USDINR SEP FUT | D22: Buy | E22: 64.095 | F22: 63.8 | G22: 64.195 | H22: 64.7 | I22: Profit of Rs 0.10/- | K22: 0.10 | L22: =K22*M22 -> 100 | M22: 1000 | N22: Successful | O22: 2017-09-04
A23: 21 | B23: 2017-09-05 | C23: USDINR SEP FUT | D23: Buy | E23: 64.25 | F23: 64 | G23: 64.355 | H23: 64.75 | I23: Profit of Rs 0.11/- | K23: =G23-E23 -> 0.11 | L23: =K23*M23 -> 105 | M23: 1000 | N23: Successful | O23: 2017-09-06
A24: 22 | B24: 2017-09-06 | C24: USDINR SEP FUT | D24: Sell | E24: 64.365 | F24: 64.5 | G24: 64.265 | H24: 64 | I24: Profit of Rs 0.10/- | K24: =E24-G24 -> 0.10 | L24: 100 | M24: 1000 | N24: Successful | O24: 2017-09-06
A25: 23 | B25: 2017-09-07 | C25: USDINR SEP FUT | D25: Buy | E25: 64.145 | F25: 63.9 | G25: 64.2565 | H25: 64.65 | I25: Profit of Rs 0.11/- | K25: =G25-E25 -> 0.11 | L25: =K25*M25 -> 111.5 | M25: 1000 | N25: Successful | O25: 2017-09-14
A26: 24 | B26: 2017-09-11 | C26: JPYINR SEP FUT | D26: Sell | E26: 59.0285 | F26: 59.25 | G26: 58.645 | H26: 58.5 | I26: Profit of Rs 0.38/- | K26: =E26-G26 -> 0.38 | L26: 383.5 | M26: 1000 | N26: Successful | O26: 2017-09-12
A27: 25 | B27: 2017-09-14 | C27: USDINR SEP FUT | D27: Buy | E27: 64.145 | F27: 63.95 | G27: 64.26 | H27: 64.5 | I27: Profit of Rs 0.12/- | K27: =G27-E27 -> 0.12 | L27: 115 | M27: 1000 | N27: Successful | O27: 2017-09-19
A28: 26 | B28: 2017-09-20 | C28: USDINR SEP FUT | D28: Buy | E28: 64.3515 | F28: 64.15 | G28: 64.57 | H28: 64.75 | I28: Profit of Rs 0.22/- | K28: =G28-E28 -> 0.22 | L28: =K28*M28 -> 218.5 | M28: 1000 | N28: Successful | O28: 2017-09-21
A29: 27 | B29: 2017-09-21 | C29: USDINR SEP FUT | D29: Sell | E29: 64.795 | F29: 65.05 | G29: 65.05 | H29: 64.4 | I29: Loss of Rs.0.17/- | K29: -0.17 | L29: -170 | M29: 1000.00 | N29: Unsuccessful | O29: 2017-09-22
A30: 28 | B30: 2017-09-25 | C30: USDINR SEP FUT | D30: Buy | E30: 64.77 | F30: 64.4 | G30: 64.92 | H30: 65.1 | I30: Profit of Rs 0.15/- | K30: =G30-E30 -> 0.15 | L30: =K30*M30 -> 150 | M30: 1000 | N30: Successful | O30: 2017-09-25
A31: 29 | B31: 2017-09-25 | C31: USDINR SEP FUT | D31: Sell | E31: 65.1077 | F31: 65.3 | G31: 65.3 | H31: 64.5 | I31: Loss of Rs.0.19/- | K31: -0.19 | L31: -190 | M31: 1000.00 | N31: Unsuccessful | O31: 2017-09-26
A32: 30 | B32: 2017-09-27 | C32: USDINR SEP FUT | D32: Sell | E32: 65.7225 | F32: 65.83 | G32: 65.7 | H32: 65.52 | I32: Profit of Rs 0.02/- | K32: =E32-G32 -> 0.02 | L32: =K32*M32 -> 22.5 | M32: 1000 | N32: Neutral | O32: 2017-09-27
A33: 31 | B33: 2017-09-27 | C33: USDINR OCT FUT | D33: Sell | E33: 66 | F33: 66.5 | G33: 65.895 | H33: 65 | I33: Profit of Rs 0.11/- | K33: =E33-G33 -> 0.11 | L33: 105 | M33: 1000 | N33: Successful | O33: 2017-09-27
A34: 32 | B34: 2017-09-28 | C34: USDINR OCT FUT | D34: Sell | E34: 66.075 | F34: 66.3 | G34: 65.96 | H34: 65.4 | I34: Profit of Rs 0.12/- | K34: =E34-G34 -> 0.12 | L34: =K34*M34 -> 115 | M34: 1000 | N34: Successful | O34: 2017-09-28
A35: 33 | B35: 2017-09-29 | C35: GBPINR OCT fut | D35: Buy | E35: 87.745 | F35: 87.5 | G35: 87.84 | H35: 88.25 | I35: Profit of Rs 0.09/- | K35: =G35-E35 -> 0.09 | L35: 95 | M35: 1000 | N35: Successful | O35: 2017-09-29
A36: 34 | B36: 2017-09-29 | C36: USDINR OCT FUT | D36: Buy | E36: 65.514 | F36: 65.25 | G36: 65.85 | H36: 66 | I36: Profit of Rs 0.34/- | K36: 0.34 | L36: =K36*M36 -> 336 | M36: 1000 | N36: Successful | O36: 2017-10-03
A37: 35 | B37: 2017-10-09 | C37: USDINR OCT FUT | D37: Buy | E37: 65.48 | F37: 65.23 | G37: 65.5775 | H37: 65.95 | I37: Profit of Rs 0.10/- | K37: =G37-E37 -> 0.10 | L37: =K37*M37 -> 97.5 | M37: 1000 | N37: Successful | O37: 2017-10-09
A38: 36 | B38: 2017-10-10 | C38: USDINR OCT FUT | D38: Buy | E38: 65.41 | F38: 65.15 | G38: 65.5075 | H38: 66 | I38: Profit of Rs 0.10/- | K38: 0.10 | L38: 97.5 | M38: 1000 | N38: Successful | O38: 2017-10-10
A39: 37 | B39: 2017-10-11 | C39: USDINR OCT FUT | D39: Buy | E39: 65.38 | F39: 65.13 | G39: 65.13 | H39: 65.88 | I39: Loss of Rs.0.25/- | K39: -0.25 | L39: -250 | M39: 1000.00 | N39: Unsuccessful | O39: 2017-10-13
A40: 38 | B40: 2017-10-16 | C40: USDINR OCT FUT | D40: Buy | E40: 64.7925 | F40: 64.54 | G40: 64.905 | H40: 65.3 | I40: Profit of Rs 0.11/- | K40: =G40-E40 -> 0.11 | L40: =K40*M40 -> 112.5 | M40: 1000 | N40: Successful | O40: 2017-10-17
A41: 39 | B41: 2017-10-23 | C41: USDINR OCT FUT | D41: Buy | E41: 65.115 | F41: 64.85 | G41: 65.21 | H41: 65.5 | I41: Profit of Rs 0.09/- | K41: =G41-E41 -> 0.09 | L41: =K41*M41 -> 95 | M41: 1000 | N41: Successful | O41: 2017-10-25
A42: 40 | B42: 2017-10-23 | C42: JPYINR OCT FUT | D42: Buy | E42: 57.285 | F42: 57.03 | G42: 57.38 | H42: 58.4 | I42: Profit of Rs 0.10/- | K42: =G42-E42 -> 0.10 | L42: =K42*M42 -> 95 | M42: 1000 | N42: Successful | O42: 2017-10-23
A43: 41 | B43: 2017-10-26 | C43: USDINR OCT FUT | D43: Buy | E43: 64.755 | F43: 64.5 | G43: 64.87 | H43: 65.25 | I43: Profit of Rs 0.12/- | K43: 0.12 | L43: 115 | M43: 1000 | N43: Successful | O43: 2017-10-25
A44: 42 | B44: 2017-10-30 | C44: USDINR NOV FUT | D44: Buy | E44: 65.035 | F44: 64.79 | G44: 64.79 | H44: 65.5 | I44: Loss of Rs.0.24/- | K44: -0.24 | L44: -245 | M44: 1000.00 | N44: Unsuccessful | O44: 2017-11-01
A45: 43 | B45: 2017-11-01 | C45: JPYINR NOV FUT | D45: Buy | E45: 56.9875 | F45: 56.73 | G45: 57.0959 | H45: 57.5 | I45: Profit of Rs 0.11/- | K45: =G45-E45 -> 0.11 | L45: =K45*M45 -> 108.4 | M45: 1000 | N45: Successful | O45: 2017-11-07
A46: 44 | B46: 2017-11-02 | C46: USDINR NOV FUT | D46: Buy | E46: 64.7838 | F46: 64.5 | G46: 64.89 | H46: 65.25 | I46: Profit of Rs 0.11/- | K46: =G46-E46 -> 0.11 | L46: =K46*M46 -> 106.2 | M46: 1000 | N46: Successful | O46: 2017-11-06
A47: 45 | B47: 2017-11-08 | C47: USDINR NOV FUT | D47: Buy | E47: 65.1363 | F47: 64.8375 | G47: 65.235 | H47: 65.73 | I47: Profit of Rs 0.10/- | K47: =G47-E47 -> 0.10 | L47: =K47*M47 -> 98.7 | M47: 1000 | N47: Successful | O47: 2017-11-10
A48: 46 | B48: 2017-11-08 | C48: GBPINR NOV FUT | D48: Buy | E48: 85.4983 | F48: 85.25 | G48: 85.6 | H48: 86 | I48: Profit of Rs 0.10/- | K48: =G48-E48 -> 0.10 | L48: =K48*M48 -> 101.7 | M48: 1000 | N48: Successful | O48: 2017-11-09
A49: 47 | B49: 2017-11-16 | C49: EURINR NOV FUT | D49: Buy | E49: 76.8975 | F49: 76.3975 | G49: 76.3975 | H49: 77.8975 | I49: Loss of Rs.0.50/- | K49: =G49-E49 -> -0.50 | L49: -500 | M49: 1000.00 | N49: Unsuccessful | O49: 2017-11-01
A50: 48 | B50: 2017-11-16 | C50: JPYINR NOV FUT | D50: Buy | E50: 57.6625 | F50: 57.2675 | G50: 57.8075 | H50: 58.6675 | I50: Profit of Rs 0.14/- | K50: =G50-E50 -> 0.14 | L50: =K50*M50 -> 145 | M50: 1000 | N50: Successful | O50: 2017-11-17
A51: 49 | B51: 2017-11-22 | C51: EURINR NOV FUT | D51: Buy | E51: 76.175 | F51: 75.95 | G51: 76.335 | H51: 76.6 | I51: Profit of Rs 0.16/- | K51: 0.16 | L51: =K51*M51 -> 160 | M51: 1000 | N51: Successful | O51: 2017-11-22
A52: 50 | B52: 2017-11-22 | C52: USDINR NOV FUT | D52: Buy | E52: 64.87 | F52: 64.5 | G52: 64.5 | H52: 65.5 | I52: Loss of Rs.0.37/- | K52: -0.37 | L52: -370 | M52: 1000.00 | N52: Unsuccessful | O52: 2017-11-27
A53: 51 | B53: 2017-11-28 | C53: GBPINR DEC FUT | D53: Buy | E53: 86.17 | F53: 85.85 | G53: 86.46 | H53: 87 | I53: Profit of Rs 0.29/- | K53: 0.29 | L53: =K53*M53 -> 290 | M53: 1000 | N53: Successful | O53: 2017-11-29
A54: 52 | B54: 2017-11-28 | C54: JPYINR DEC FUT | D54: Buy | E54: 58.16 | F54: 57.85 | G54: 57.85 | H54: 58.6 | I54: Loss of Rs.0.31/- | K54: -0.31 | L54: -310 | M54: 1000.00 | N54: Unsuccessful | O54: 2017-11-29
A55: 53 | B55: 2017-11-28 | C55: USDINR DEC FUT | D55: Buy | E55: 64.63 | F55: 64.13 | G55: 64.13 | H55: 65.63 | I55: Loss of Rs.0.50/- | K55: -0.50 | L55: =K55*M55 -> -500 | M55: 1000.00 | N55: Unsuccessful | O55: 2017-12-15
A56: 54 | B56: 2017-11-28 | C56: EURINR DEC FUT | D56: Buy | E56: 76.93 | F56: 76.43 | G56: 76.43 | H56: 77.93 | I56: Loss of Rs.0.50/- | K56: =G56-E56 -> -0.50 | L56: =K56*M56 -> -500 | M56: 1000.00 | N56: Unsuccessful | O56: 2017-11-29
A57: 55 | B57: 2017-12-12 | C57: EURINR DEC FUT | D57: Buy | E57: 76.105 | F57: 75.7 | G57: 76.27 | H57: 76.8 | I57: Profit of Rs 0.16/- | K57: =G57-E57 -> 0.16 | L57: 165 | M57: 1000 | N57: Successful | O57: 2017-12-14
A58: 56 | B58: 2017-12-12 | C58: JPYINR DEC FUT | D58: Buy | E58: 56.975 | F58: 56.7 | G58: 57.21 | H58: 57.6 | I58: Profit of Rs 0.23/- | K58: =G58-E58 -> 0.23 | L58: =K58*M58 -> 235 | M58: 1000 | N58: Successful | O58: 2017-12-14

Sheet Sheet2 (hidden)
A1: SYMBOL | B1: SERIES | C1: OPEN | D1: HIGH | E1: LOW | F1: CLOSE | G1: LAST | H1: PREVCLOSE | I1: TOTTRDQTY | J1: TOTTRDVAL | K1: TIMESTAMP | L1: TOTALTRADES | M1: ISIN
A2: 20MICRONS | B2: EQ | C2: 49 | D2: 49.95 | E2: 47.05 | F2: 47.2 | G2: 47.35 | H2: 48.7 | I2: 81163 | J2: 3929972.4 | K2: 2018-03-06 | L2: 798 | M2: INE144J01027
A3: 3IINFOTECH | B3: EQ | C3: 5.8 | D3: 5.9 | E3: 5.5 | F3: 5.6 | G3: 5.5 | H3: 5.7 | I3: 3263004 | J3: 18785841.65 | K3: 2018-03-06 | L3: 1207 | M3: INE748C01020
A4: 3MINDIA | B4: EQ | C4: 20889 | D4: 21099.65 | E4: 20601.25 | F4: 20747.9 | G4: 20735 | H4: 20832.6 | I4: 2669 | J4: 55465805.05 | K4: 2018-03-06 | L4: 1037 | M4: INE470A01017
A5: 63MOONS | B5: EQ | C5: 92.6 | D5: 93 | E5: 88.1 | F5: 89.3 | G5: 88.4 | H5: 91.2 | I5: 153311 | J5: 13937710.4 | K5: 2018-03-06 | L5: 1774 | M5: INE111B01023
A6: 8KMILES | B6: EQ | C6: 722.5 | D6: 739 | E6: 703.05 | F6: 710.5 | G6: 704 | H6: 718.25 | I6: 158089 | J6: 114282827.6 | K6: 2018-03-06 | L6: 7001 | M6: INE650K01021
A7: A2ZINFRA | B7: EQ | C7: 34.15 | D7: 34.45 | E7: 32.5 | F7: 32.75 | G7: 32.55 | H7: 33.95 | I7: 424597 | J7: 14155327.15 | K7: 2018-03-06 | L7: 1868 | M7: INE619I01012
A8: AARTIDRUGS | B8: EQ | C8: 594 | D8: 598.75 | E8: 582.25 | F8: 587.2 | G8: 587.5 | H8: 589.7 | I8: 3664 | J8: 2168382.35 | K8: 2018-03-06 | L8: 285 | M8: INE767A01016
A9: AARTIIND | B9: EQ | C9: 1155.55 | D9: 1170.45 | E9: 1153 | F9: 1159.55 | G9: 1166 | H9: 1161.85 | I9: 11447 | J9: 13345409.65 | K9: 2018-03-06 | L9: 961 | M9: INE769A01020
A10: AARVEEDEN | B10: EQ | C10: 49 | D10: 49 | E10: 46.9 | F10: 47.15 | G10: 47 | H10: 47.85 | I10: 30736 | J10: 1471472.6 | K10: 2018-03-06 | L10: 299 | M10: INE273D01019
A11: ABAN | B11: EQ | C11: 169 | D11: 171.4 | E11: 163.5 | F11: 164.45 | G11: 164.3 | H11: 166.75 | I11: 626726 | J11: 105115678.2 | K11: 2018-03-06 | L11: 8507 | M11: INE421A01028
A12: ABB | B12: EQ | C12: 1500 | D12: 1524 | E12: 1451 | F12: 1475.45 | G12: 1460 | H12: 1490.5 | I12: 72789 | J12: 107414908.8 | K12: 2018-03-06 | L12: 4465 | M12: INE117A01022
A13: ABBOTINDIA | B13: EQ | C13: 5717 | D13: 5769.95 | E13: 5677 | F13: 5712.1 | G13: 5727 | H13: 5737.2 | I13: 54038 | J13: 308593186.4 | K13: 2018-03-06 | L13: 1026 | M13: INE358A01014
A14: ABCAPITAL | B14: EQ | C14: 162 | D14: 162.65 | E14: 157.75 | F14: 158.15 | G14: 157.95 | H14: 160.85 | I14: 2083839 | J14: 333735795.6 | K14: 2018-03-06 | L14: 20865 | M14: INE674K01013
A15: ABFRL | B15: EQ | C15: 146.75 | D15: 151.45 | E15: 143 | F15: 143.8 | G15: 143.5 | H15: 145.2 | I15: 911776 | J15: 134586794.1 | K15: 2018-03-06 | L15: 10584 | M15: INE647O01011
A16: ACC | B16: EQ | C16: 1614.7 | D16: 1617 | E16: 1591 | F16: 1595.3 | G16: 1591 | H16: 1606.15 | I16: 238297 | J16: 381739943.2 | K16: 2018-03-06 | L16: 20066 | M16: INE012A01025
A17: ACCELYA | B17: EQ | C17: 1364 | D17: 1374 | E17: 1349 | F17: 1352.7 | G17: 1364.95 | H17: 1372.5 | I17: 3280 | J17: 4475154.4 | K17: 2018-03-06 | L17: 951 | M17: INE793A01012
A18: ACE | B18: EQ | C18: 182.65 | D18: 184.7 | E18: 170.45 | F18: 173.25 | G18: 173 | H18: 180.95 | I18: 571781 | J18: 102163846.8 | K18: 2018-03-06 | L18: 6185 | M18: INE731H01025
A19: ADANIENT | B19: EQ | C19: 202.5 | D19: 203.35 | E19: 180.1 | F19: 186.2 | G19: 183 | H19: 200.9 | I19: 8063223 | J19: 1559409715 | K19: 2018-03-06 | L19: 42162 | M19: INE423A01024
A20: ADANIPORTS | B20: EQ | C20: 406.7 | D20: 413.75 | E20: 395.15 | F20: 405.25 | G20: 395.6 | H20: 403.95 | I20: 3321338 | J20: 1354890281 | K20: 2018-03-06 | L20: 58381 | M20: INE742F01042
A21: ADANIPOWER | B21: EQ | C21: 30.9 | D21: 31.45 | E21: 28.75 | F21: 29.5 | G21: 29.1 | H21: 30.85 | I21: 7922751 | J21: 240385897.7 | K21: 2018-03-06 | L21: 12535 | M21: INE814H01011
A22: ADANITRANS | B22: EQ | C22: 202.5 | D22: 204.5 | E22: 187.5 | F22: 194.65 | G22: 194.05 | H22: 202.05 | I22: 689262 | J22: 137596969.8 | K22: 2018-03-06 | L22: 9051 | M22: INE931S01010
A23: ADFFOODS | B23: EQ | C23: 241 | D23: 241.95 | E23: 229.5 | F23: 230.75 | G23: 229.5 | H23: 238.7 | I23: 117715 | J23: 27819509.05 | K23: 2018-03-06 | L23: 2605 | M23: INE982B01019
A24: ADHUNIK | B24: EQ | C24: 4.65 | D24: 4.7 | E24: 4.45 | F24: 4.5 | G24: 4.5 | H24: 4.6 | I24: 42424 | J24: 191881.85 | K24: 2018-03-06 | L24: 70 | M24: INE400H01019
A25: ADHUNIKIND | B25: EQ | C25: 71.7 | D25: 71.7 | E25: 65.25 | F25: 68.55 | G25: 66 | H25: 68.65 | I25: 74691 | J25: 5172296.55 | K25: 2018-03-06 | L25: 268 | M25: INE452L01012
A26: ADLABS | B26: EQ | C26: 54.95 | D26: 55.5 | E26: 53.6 | F26: 54.2 | G26: 53.6 | H26: 53.9 | I26: 62171 | J26: 3381807.25 | K26: 2018-03-06 | L26: 404 | M26: INE172N01012
A27: ADORWELD | B27: EQ | C27: 423.05 | D27: 427 | E27: 410.2 | F27: 411.8 | G27: 413.05 | H27: 421.1 | I27: 4156 | J27: 1737058.05 | K27: 2018-03-06 | L27: 302 | M27: INE045A01017
A28: ADSL | B28: EQ | C28: 23.65 | D28: 24 | E28: 23.3 | F28: 23.7 | G28: 23.7 | H28: 23.75 | I28: 11736 | J28: 275591.1 | K28: 2018-03-06 | L28: 56 | M28: INE102I01027
A29: ADVANIHOTR | B29: EQ | C29: 62.65 | D29: 63.75 | E29: 59.55 | F29: 60 | G29: 59.7 | H29: 62.65 | I29: 23516 | J29: 1433415.15 | K29: 2018-03-06 | L29: 220 | M29: INE199C01026
A30: ADVENZYMES | B30: EQ | C30: 238.5 | D30: 239.8 | E30: 232.1 | F30: 233.4 | G30: 232.2 | H30: 237.95 | I30: 122225 | J30: 28791482.95 | K30: 2018-03-06 | L30: 4528 | M30: INE837H01020
A31: AEGISCHEM | B31: EQ | C31: 246.05 | D31: 247.55 | E31: 230 | F31: 236.75 | G31: 231 | H31: 245.75 | I31: 202482 | J31: 48987520.45 | K31: 2018-03-06 | L31: 5072 | M31: INE208C01025
A32: AFL | B32: EQ | C32: 58 | D32: 59.45 | E32: 56.15 | F32: 56.3 | G32: 56.15 | H32: 57.85 | I32: 7129 | J32: 409157.5 | K32: 2018-03-06 | L32: 45 | M32: INE020G01017
A33: AGCNET | B33: EQ | C33: 120 | D33: 120 | E33: 115.35 | F33: 116.55 | G33: 115.5 | H33: 120 | I33: 1407 | J33: 165454.1 | K33: 2018-03-06 | L33: 16 | M33: INE676A01019
A34: AGLSL | B34: EQ | C34: 109.55 | D34: 109.6 | E34: 100.45 | F34: 103.2 | G34: 103 | H34: 105.65 | I34: 13459 | J34: 1411023.6 | K34: 2018-03-06 | L34: 177 | M34: INE517U01013
A35: AGRITECH | B35: EQ | C35: 142 | D35: 142 | E35: 130.55 | F35: 131.8 | G35: 132 | H35: 137 | I35: 59735 | J35: 8116221.95 | K35: 2018-03-06 | L35: 1630 | M35: INE449G01018
A36: AHLUCONT | B36: EQ | C36: 378 | D36: 378 | E36: 368 | F36: 371.85 | G36: 372 | H36: 372.35 | I36: 6701 | J36: 2495152.25 | K36: 2018-03-06 | L36: 449 | M36: INE758C01029
A37: AHLWEST | B37: EQ | C37: 262 | D37: 265 | E37: 260.5 | F37: 263.1 | G37: 263.1 | H37: 261.05 | I37: 551 | J37: 145295.25 | K37: 2018-03-06 | L37: 20 | M37: INE915K01010
A38: AIAENG | B38: EQ | C38: 1414.85 | D38: 1452.95 | E38: 1380.2 | F38: 1401.95 | G38: 1411.5 | H38: 1414.85 | I38: 8180 | J38: 11486975.4 | K38: 2018-03-06 | L38: 1097 | M38: INE212H01026
A39: AIFL | B39: EQ | C39: 477 | D39: 478.35 | E39: 460.1 | F39: 469.25 | G39: 462.15 | H39: 476.65 | I39: 230365 | J39: 109322702.9 | K39: 2018-03-06 | L39: 2774 | M39: INE428O01016
A40: AJANTPHARM | B40: EQ | C40: 1366.9 | D40: 1381.55 | E40: 1325 | F40: 1338.05 | G40: 1332 | H40: 1364.15 | I40: 471601 | J40: 641326591.5 | K40: 2018-03-06 | L40: 5199 | M40: INE031B01049
A41: AJMERA | B41: EQ | C41: 230.15 | D41: 244.9 | E41: 228.25 | F41: 237.2 | G41: 236.75 | H41: 227.75 | I41: 321315 | J41: 76736156.55 | K41: 2018-03-06 | L41: 6412 | M41: INE298G01027
A42: AKSHARCHEM | B42: EQ | C42: 654.5 | D42: 665 | E42: 636 | F42: 637.25 | G42: 636 | H42: 655.65 | I42: 6285 | J42: 4104481.55 | K42: 2018-03-06 | L42: 342 | M42: INE542B01011
A43: AKSHOPTFBR | B43: EQ | C43: 35.6 | D43: 36.4 | E43: 34.25 | F43: 34.5 | G43: 34.25 | H43: 35.05 | I43: 626255 | J43: 22092069.6 | K43: 2018-03-06 | L43: 2617 | M43: INE523B01011
A44: AKZOINDIA | B44: EQ | C44: 1794.9 | D44: 1834.9 | E44: 1794.9 | F44: 1802.5 | G44: 1800 | H44: 1780.1 | I44: 18673 | J44: 33965692.15 | K44: 2018-03-06 | L44: 1059 | M44: INE133A01011
A45: ALANKIT | B45: EQ | C45: 54 | D45: 55 | E45: 50.85 | F45: 51.25 | G45: 51.9 | H45: 53.25 | I45: 119993 | J45: 6354111.9 | K45: 2018-03-06 | L45: 1167 | M45: INE914E01040
A46: ALBK | B46: EQ | C46: 50.7 | D46: 51.2 | E46: 48.2 | F46: 48.8 | G46: 49.05 | H46: 50.4 | I46: 3414987 | J46: 170328411.8 | K46: 2018-03-06 | L46: 9909 | M46: INE428A01015
A47: ALEMBICLTD | B47: EQ | C47: 62.9 | D47: 63.25 | E47: 62.1 | F47: 62.35 | G47: 62.35 | H47: 62.45 | I47: 281483 | J47: 17632855.5 | K47: 2018-03-06 | L47: 1827 | M47: INE426A01027
A48: ALICON | B48: EQ | C48: 606.05 | D48: 623.95 | E48: 606.05 | F48: 609.25 | G48: 614.9 | H48: 611.2 | I48: 601 | J48: 369966.15 | K48: 2018-03-06 | L48: 59 | M48: INE062D01024
A49: ALKALI | B49: EQ | C49: 80.9 | D49: 81 | E49: 75.6 | F49: 78.5 | G49: 77 | H49: 78.5 | I49: 25364 | J49: 1995290 | K49: 2018-03-06 | L49: 374 | M49: INE773I01017
A50: ALKEM | B50: EQ | C50: 2225 | D50: 2272.5 | E50: 2215 | F50: 2260.15 | G50: 2262.9 | H50: 2221.55 | I50: 26947 | J50: 60702758.15 | K50: 2018-03-06 | L50: 3399 | M50: INE540L01014
A51: ALKYLAMINE | B51: EQ | C51: 613.85 | D51: 615 | E51: 595.5 | F51: 600.05 | G51: 600 | H51: 613.85 | I51: 1222 | J51: 742588.35 | K51: 2018-03-06 | L51: 73 | M51: INE150B01021
A52: ALLCARGO | B52: EQ | C52: 175.2 | D52: 176.05 | E52: 169.95 | F52: 170.4 | G52: 170.05 | H52: 173.85 | I52: 193557 | J52: 33331916.1 | K52: 2018-03-06 | L52: 2578 | M52: INE418H01029
A53: ALLSEC | B53: EQ | C53: 378.05 | D53: 380.45 | E53: 355.1 | F53: 357 | G53: 355.1 | H53: 373.95 | I53: 29312 | J53: 10540741.65 | K53: 2018-03-06 | L53: 432 | M53: INE835G01018
A54: ALMONDZ | B54: EQ | C54: 24.75 | D54: 24.85 | E54: 23.95 | F54: 24.25 | G54: 24.4 | H54: 25.05 | I54: 14533 | J54: 354927.2 | K54: 2018-03-06 | L54: 49 | M54: INE326B01027
A55: ALOKTEXT | B55: EQ | C55: 3 | D55: 3.25 | E55: 3 | F55: 3.05 | G55: 3.05 | H55: 3.15 | I55: 5122894 | J55: 15736682.2 | K55: 2018-03-06 | L55: 949 | M55: INE270A01011
A56: ALPA | B56: EQ | C56: 43 | D56: 43.85 | E56: 41.7 | F56: 41.9 | G56: 41.7 | H56: 42.35 | I56: 17972 | J56: 761980 | K56: 2018-03-06 | L56: 125 | M56: INE385I01010
A57: ALPHAGEO | B57: EQ | C57: 805 | D57: 809.85 | E57: 783 | F57: 790.7 | G57: 785.35 | H57: 795.45 | I57: 10132 | J57: 8079695.3 | K57: 2018-03-06 | L57: 691 | M57: INE137C01018
A58: ALPSINDUS | B58: EQ | C58: 4.3 | D58: 4.3 | E58: 4.15 | F58: 4.15 | G58: 4.15 | H58: 4.35 | I58: 22077 | J58: 92196.7 | K58: 2018-03-06 | L58: 60 | M58: INE093B01015
A59: AMARAJABAT | B59: EQ | C59: 805 | D59: 813 | E59: 790 | F59: 798.7 | G59: 797 | H59: 803.55 | I59: 254905 | J59: 205578022.2 | K59: 2018-03-06 | L59: 9384 | M59: INE885A01032
A60: AMBER | B60: EQ | C60: 1109.7 | D60: 1149.8 | E60: 1102 | F60: 1122.2 | G60: 1127 | H60: 1098.8 | I60: 133122 | J60: 150390397.8 | K60: 2018-03-06 | L60: 8096 | M60: INE371P01015
A61: AMBIKCO | B61: EQ | C61: 1316.4 | D61: 1333.95 | E61: 1307 | F61: 1310.2 | G61: 1308 | H61: 1316.4 | I61: 1484 | J61: 1956198.05 | K61: 2018-03-06 | L61: 191 | M61: INE540G01014
A62: AMBUJACEM | B62: EQ | C62: 247.5 | D62: 249 | E62: 239.95 | F62: 240.65 | G62: 240.5 | H62: 246.1 | I62: 2727521 | J62: 666447384 | K62: 2018-03-06 | L62: 37670 | M62: INE079A01024
A63: AMDIND | B63: EQ | C63: 42.7 | D63: 45.8 | E63: 38.1 | F63: 41 | G63: 40.75 | H63: 43.05 | I63: 493230 | J63: 21718805.75 | K63: 2018-03-06 | L63: 3609 | M63: INE005I01014
A64: AMJLAND | B64: EQ | C64: 26.1 | D64: 26.95 | E64: 25.8 | F64: 25.85 | G64: 25.8 | H64: 26.1 | I64: 6657 | J64: 172936.25 | K64: 2018-03-06 | L64: 30 | M64: INE606A01024
A65: AMRUTANJAN | B65: EQ | C65: 579.85 | D65: 584 | E65: 555.55 | F65: 562.95 | G65: 562.9 | H65: 571.35 | I65: 2842 | J65: 1618781.95 | K65: 2018-03-06 | L65: 254 | M65: INE098F01023
A66: AMTEKAUTO | B66: EQ | C66: 23.4 | D66: 24.35 | E66: 23 | F66: 23.15 | G66: 23 | H66: 23.95 | I66: 358321 | J66: 8421273.2 | K66: 2018-03-06 | L66: 1703 | M66: INE130C01021
A67: ANANTRAJ | B67: EQ | C67: 54.8 | D67: 55.15 | E67: 52.55 | F67: 52.95 | G67: 52.75 | H67: 54.35 | I67: 768634 | J67: 41355656.2 | K67: 2018-03-06 | L67: 3577 | M67: INE242C01024
A68: ANDHRABANK | B68: EQ | C68: 45.2 | D68: 45.2 | E68: 42.2 | F68: 42.65 | G68: 42.2 | H68: 44.2 | I68: 3371917 | J68: 146938734.3 | K68: 2018-03-06 | L68: 9410 | M68: INE434A01013
A69: ANDHRACEMT | B69: EQ | C69: 10.8 | D69: 10.95 | E69: 10.65 | F69: 10.7 | G69: 10.65 | H69: 10.85 | I69: 105558 | J69: 1143611.65 | K69: 2018-03-06 | L69: 190 | M69: INE666E01012
A70: ANDHRSUGAR | B70: EQ | C70: 495.3 | D70: 502 | E70: 466.1 | F70: 474.5 | G70: 467 | H70: 495.35 | I70: 40948 | J70: 19910256.8 | K70: 2018-03-06 | L70: 1604 | M70: INE715B01013
A71: ANGIND | B71: EQ | C71: 5.95 | D71: 5.95 | E71: 5.65 | F71: 5.65 | G71: 5.7 | H71: 5.85 | I71: 10131 | J71: 57643.25 | K71: 2018-03-06 | L71: 37 | M71: INE017D01010
A72: ANIKINDS | B72: EQ | C72: 37.95 | D72: 38.45 | E72: 35.8 | F72: 36.25 | G72: 36.35 | H72: 36.25 | I72: 20440 | J72: 754709.95 | K72: 2018-03-06 | L72: 224 | M72: INE087B01017
A73: ANSALAPI | B73: EQ | C73: 22.55 | D73: 22.7 | E73: 21.1 | F73: 21.9 | G73: 21.65 | H73: 22.2 | I73: 73225 | J73: 1602944.25 | K73: 2018-03-06 | L73: 277 | M73: INE436A01026
A74: ANSALHSG | B74: EQ | C74: 22.65 | D74: 22.65 | E74: 21.25 | F74: 21.5 | G74: 21.75 | H74: 22.1 | I74: 32795 | J74: 714968.6 | K74: 2018-03-06 | L74: 189 | M74: INE880B01015
A75: APARINDS | B75: EQ | C75: 784.9 | D75: 789.45 | E75: 770 | F75: 770.35 | G75: 770 | H75: 780.95 | I75: 7575 | J75: 5864355.15 | K75: 2018-03-06 | L75: 793 | M75: INE372A01015
A76: APCL | B76: EQ | C76: 191 | D76: 193 | E76: 178 | F76: 181.9 | G76: 184.9 | H76: 189.45 | I76: 5764 | J76: 1052717.75 | K76: 2018-03-06 | L76: 151 | M76: INE071F01012
A77: APCOTEXIND | B77: EQ | C77: 526 | D77: 526.8 | E77: 505 | F77: 509.75 | G77: 505 | H77: 519.45 | I77: 9413 | J77: 4868250.2 | K77: 2018-03-06 | L77: 540 | M77: INE116A01024
A78: APEX | B78: EQ | C78: 694.7 | D78: 702 | E78: 658 | F78: 665.7 | G78: 665.35 | H78: 685.95 | I78: 144531 | J78: 98497955.6 | K78: 2018-03-06 | L78: 5649 | M78: INE346W01013
A79: APLAPOLLO | B79: EQ | C79: 2039.95 | D79: 2069.65 | E79: 2000 | F79: 2003.9 | G79: 2000 | H79: 2040.15 | I79: 65539 | J79: 131777939.3 | K79: 2018-03-06 | L79: 2519 | M79: INE702C01019
A80: APLLTD | B80: EQ | C80: 545 | D80: 555.4 | E80: 545 | F80: 550.85 | G80: 554.5 | H80: 548.65 | I80: 195796 | J80: 107737471.5 | K80: 2018-03-06 | L80: 1403 | M80: INE901L01018
A81: APOLLO | B81: EQ | C81: 301 | D81: 302.95 | E81: 284 | F81: 287.75 | G81: 286 | H81: 297.9 | I81: 84241 | J81: 24648045.2 | K81: 2018-03-06 | L81: 2148 | M81: INE713T01010
A82: APOLLOHOSP | B82: EQ | C82: 1170.1 | D82: 1189 | E82: 1145 | F82: 1160.8 | G82: 1150.7 | H82: 1167.9 | I82: 302547 | J82: 354257938.1 | K82: 2018-03-06 | L82: 13582 | M82: INE437A01024
A83: APOLLOTYRE | B83: EQ | C83: 260 | D83: 263 | E83: 255 | F83: 258.55 | G83: 259.2 | H83: 259.15 | I83: 3745933 | J83: 971284995.5 | K83: 2018-03-06 | L83: 34319 | M83: INE438A01022
A84: APOLSINHOT | B84: EQ | C84: 1500 | D84: 1500 | E84: 1440 | F84: 1445.9 | G84: 1440 | H84: 1476.85 | I84: 963 | J84: 1409688.05 | K84: 2018-03-06 | L84: 66 | M84: INE451F01016
A85: APTECHT | B85: EQ | C85: 310.95 | D85: 317.95 | E85: 302.1 | F85: 305.25 | G85: 302.95 | H85: 308.6 | I85: 408640 | J85: 126912343.2 | K85: 2018-03-06 | L85: 7872 | M85: INE266F01018
A86: ARCHIDPLY | B86: EQ | C86: 93.35 | D86: 94.75 | E86: 89.5 | F86: 91.35 | G86: 91.25 | H86: 92.7 | I86: 50114 | J86: 4604207.6 | K86: 2018-03-06 | L86: 519 | M86: INE877I01016
A87: ARCHIES | B87: EQ | C87: 36.95 | D87: 37.4 | E87: 35 | F87: 35.2 | G87: 35.05 | H87: 36.5 | I87: 159109 | J87: 5743182.3 | K87: 2018-03-06 | L87: 1270 | M87: INE731A01020
A88: ARCOTECH | B88: EQ | C88: 42.8 | D88: 43.4 | E88: 41.25 | F88: 41.75 | G88: 41.75 | H88: 41.9 | I88: 155371 | J88: 6596647.95 | K88: 2018-03-06 | L88: 832 | M88: INE574I01035
A89: ARIES | B89: EQ | C89: 210 | D89: 210 | E89: 199 | F89: 200.05 | G89: 199.6 | H89: 201.6 | I89: 27960 | J89: 5701371.55 | K89: 2018-03-06 | L89: 521 | M89: INE298I01015
A90: ARIHANTSUP | B90: EQ | C90: 128.45 | D90: 130 | E90: 118.1 | F90: 124.95 | G90: 122 | H90: 125.8 | I90: 196553 | J90: 24382238.65 | K90: 2018-03-06 | L90: 1460 | M90: INE643K01018
A91: ARMANFIN | B91: EQ | C91: 355 | D91: 364 | E91: 338.55 | F91: 348 | G91: 350 | H91: 349.15 | I91: 20215 | J91: 7100024.4 | K91: 2018-03-06 | L91: 458 | M91: INE109C01017
A92: AROGRANITE | B92: EQ | C92: 65.7 | D92: 65.7 | E92: 60.55 | F92: 61.5 | G92: 61.1 | H92: 64.1 | I92: 37578 | J92: 2364734.35 | K92: 2018-03-06 | L92: 442 | M92: INE210C01013
A93: ARROWGREEN | B93: EQ | C93: 388.8 | D93: 389.95 | E93: 365.1 | F93: 369.25 | G93: 370 | H93: 384.8 | I93: 17370 | J93: 6536072.15 | K93: 2018-03-06 | L93: 815 | M93: INE570D01018
A94: ARROWTEX | B94: EQ | C94: 40.05 | D94: 40.75 | E94: 39.5 | F94: 39.5 | G94: 39.5 | H94: 39.5 | I94: 5384 | J94: 213791.95 | K94: 2018-03-06 | L94: 64 | M94: INE933J01015
A95: ARSHIYA | B95: EQ | C95: 88.5 | D95: 91 | E95: 86.75 | F95: 87.25 | G95: 88 | H95: 88 | I95: 142513 | J95: 12503451.75 | K95: 2018-03-06 | L95: 596 | M95: INE968D01022
A96: ARVIND | B96: EQ | C96: 406 | D96: 411.8 | E96: 395.55 | F96: 398.25 | G96: 395.6 | H96: 402.3 | I96: 1597438 | J96: 648240813.1 | K96: 2018-03-06 | L96: 26389 | M96: INE034A01011
A97: ARVSMART | B97: EQ | C97: 184.25 | D97: 184.25 | E97: 171 | F97: 173.75 | G97: 174 | H97: 180.75 | I97: 33351 | J97: 5865146.8 | K97: 2018-03-06 | L97: 737 | M97: INE034S01021
A98: ASAHIINDIA | B98: EQ | C98: 344.65 | D98: 345.75 | E98: 335 | F98: 337.45 | G98: 335 | H98: 342.6 | I98: 18508 | J98: 6294438.3 | K98: 2018-03-06 | L98: 511 | M98: INE439A01020
A99: ASAHISONG | B99: EQ | C99: 355.95 | D99: 356 | E99: 335.1 | F99: 343.65 | G99: 339 | H99: 351.25 | I99: 5667 | J99: 1971252.05 | K99: 2018-03-06 | L99: 128 | M99: INE228I01012
A100: ASAL | B100: EQ | C100: 80.2 | D100: 80.2 | E100: 78 | F100: 78.3 | G100: 78 | H100: 79.7 | I100: 5244 | J100: 416317.9 | K100: 2018-03-06 | L100: 60 | M100: INE900C01027
A101: ASHAPURMIN | B101: EQ | C101: 76.9 | D101: 78 | E101: 72.55 | F101: 73.1 | G101: 73 | H101: 76.45 | I101: 93438 | J101: 7009262.5 | K101: 2018-03-06 | L101: 831 | M101: INE348A01023
A102: ASHIANA | B102: EQ | C102: 173.3 | D102: 173.3 | E102: 166 | F102: 166.25 | G102: 166 | H102: 171.65 | I102: 63164 | J102: 10662149.35 | K102: 2018-03-06 | L102: 1185 | M102: INE365D01021
A103: ASHIMASYN | B103: EQ | C103: 28.45 | D103: 29.15 | E103: 27.05 | F103: 27.65 | G103: 27.5 | H103: 28 | I103: 166822 | J103: 4701518 | K103: 2018-03-06 | L103: 805 | M103: INE440A01010
A104: ASHOKA | B104: EQ | C104: 224.8 | D104: 228.95 | E104: 222.55 | F104: 225.35 | G104: 225.5 | H104: 222.55 | I104: 146183 | J104: 33007513.4 | K104: 2018-03-06 | L104: 6969 | M104: INE442H01029
A105: ASHOKLEY | B105: EQ | C105: 140.95 | D105: 142.9 | E105: 139.25 | F105: 139.85 | G105: 139.5 | H105: 140.15 | I105: 12648186 | J105: 1790607762 | K105: 2018-03-06 | L105: 50064 | M105: INE208A01029
A106: ASIANPAINT | B106: EQ | C106: 1112.6 | D106: 1112.6 | E106: 1100 | F106: 1101.6 | G106: 1102.5 | H106: 1105.95 | I106: 702294 | J106: 774604931.4 | K106: 2018-03-06 | L106: 32056 | M106: INE021A01026
A107: ASIANTILES | B107: EQ | C107: 490 | D107: 491.8 | E107: 482.25 | F107: 484.75 | G107: 482.5 | H107: 487.1 | I107: 38314 | J107: 18616449.85 | K107: 2018-03-06 | L107: 1095 | M107: INE022I01019
A108: ASPINWALL | B108: EQ | C108: 410 | D108: 416 | E108: 402 | F108: 407.2 | G108: 402 | H108: 406.6 | I108: 1652 | J108: 679887.25 | K108: 2018-03-06 | L108: 70 | M108: INE991I01015
A109: ASSAMCO | B109: EQ | C109: 4.75 | D109: 4.8 | E109: 4.7 | F109: 4.75 | G109: 4.75 | H109: 4.75 | I109: 183191 | J109: 870343.4 | K109: 2018-03-06 | L109: 106 | M109: INE442A01024
A110: ASTEC | B110: EQ | C110: 593.8 | D110: 594 | E110: 575.1 | F110: 578.15 | G110: 575.1 | H110: 583 | I110: 10836 | J110: 6356850.4 | K110: 2018-03-06 | L110: 2187 | M110: INE563J01010
A111: ASTERDM | B111: EQ | C111: 170.15 | D111: 173 | E111: 169.2 | F111: 170.25 | G111: 170 | H111: 170.2 | I111: 352589 | J111: 60530421.4 | K111: 2018-03-06 | L111: 9204 | M111: INE914M01019
A112: ASTRAL | B112: EQ | C112: 865.05 | D112: 884.8 | E112: 850 | F112: 851.5 | G112: 850 | H112: 864.05 | I112: 46107 | J112: 39673681.35 | K112: 2018-03-06 | L112: 3481 | M112: INE006I01046
A113: ASTRAMICRO | B113: EQ | C113: 92 | D113: 93.7 | E113: 89.6 | F113: 90.3 | G113: 90.8 | H113: 90.65 | I113: 170497 | J113: 15545095.75 | K113: 2018-03-06 | L113: 1560 | M113: INE386C01029
A114: ASTRAZEN | B114: EQ | C114: 1007.05 | D114: 1021.1 | E114: 995 | F114: 1003.7 | G114: 1007.4 | H114: 998.95 | I114: 1686 | J114: 1699418.35 | K114: 2018-03-06 | L114: 212 | M114: INE203A01020
A115: ASTRON | B115: EQ | C115: 129.6 | D115: 130.75 | E115: 127 | F115: 128.45 | G115: 128 | H115: 128 | I115: 867655 | J115: 111872181.3 | K115: 2018-03-06 | L115: 2673 | M115: INE646X01014
A116: ATFL | B116: EQ | C116: 656.55 | D116: 661.75 | E116: 648 | F116: 650.1 | G116: 650.5 | H116: 650.1 | I116: 17738 | J116: 11558136.2 | K116: 2018-03-06 | L116: 2217 | M116: INE209A01019
A117: ATLANTA | B117: EQ | C117: 91.4 | D117: 91.6 | E117: 87 | F117: 87.5 | G117: 88 | H117: 89.5 | I117: 160609 | J117: 14278852.8 | K117: 2018-03-06 | L117: 1459 | M117: INE285H01022
A118: ATUL | B118: EQ | C118: 2651.8 | D118: 2664.95 | E118: 2561.45 | F118: 2652.6 | G118: 2655 | H118: 2667.3 | I118: 16293 | J118: 43180495.95 | K118: 2018-03-06 | L118: 1590 | M118: INE100A01010
A119: ATULAUTO | B119: EQ | C119: 426 | D119: 431.05 | E119: 424.05 | F119: 429.75 | G119: 428 | H119: 423.4 | I119: 23596 | J119: 10128270.85 | K119: 2018-03-06 | L119: 821 | M119: INE951D01028
A120: AUBANK | B120: EQ | C120: 588.15 | D120: 592.95 | E120: 572.7 | F120: 583.55 | G120: 580 | H120: 586.75 | I120: 64457 | J120: 37594885.05 | K120: 2018-03-06 | L120: 3835 | M120: INE949L01017
A121: AURIONPRO | B121: EQ | C121: 213.45 | D121: 218.5 | E121: 207.5 | F121: 210 | G121: 212 | H121: 210.5 | I121: 26672 | J121: 5655631.25 | K121: 2018-03-06 | L121: 547 | M121: INE132H01018
A122: AUROPHARMA | B122: EQ | C122: 602 | D122: 619.9 | E122: 601.4 | F122: 606.2 | G122: 605 | H122: 600.75 | I122: 4505696 | J122: 2755267758 | K122: 2018-03-06 | L122: 70922 | M122: INE406A01037
A123: AUSOMENT | B123: EQ | C123: 73 | D123: 73.05 | E123: 67.55 | F123: 69.15 | G123: 69.25 | H123: 72.05 | I123: 7416 | J123: 524552.6 | K123: 2018-03-06 | L123: 387 | M123: INE218C01016
A124: AUTOAXLES | B124: EQ | C124: 1510.7 | D124: 1541.9 | E124: 1455.95 | F124: 1469.85 | G124: 1465 | H124: 1510.7 | I124: 6462 | J124: 9661860.15 | K124: 2018-03-06 | L124: 765 | M124: INE449A01011
A125: AUTOIND | B125: EQ | C125: 80.1 | D125: 83 | E125: 77.5 | F125: 78.05 | G125: 79.4 | H125: 80.25 | I125: 36794 | J125: 2901557.95 | K125: 2018-03-06 | L125: 483 | M125: INE718H01014
A126: AUTOLITIND | B126: EQ | C126: 73 | D126: 74.25 | E126: 70.35 | F126: 70.75 | G126: 71 | H126: 71.55 | I126: 12040 | J126: 864413.45 | K126: 2018-03-06 | L126: 114 | M126: INE448A01013
A127: AVADHSUGAR | B127: EQ | C127: 628 | D127: 629.95 | E127: 565 | F127: 570 | G127: 567 | H127: 616.9 | I127: 72028 | J127: 42111534.1 | K127: 2018-03-06 | L127: 3088 | M127: INE349W01017
A128: AVANTIFEED | B128: EQ | C128: 2446.2 | D128: 2495 | E128: 2402 | F128: 2418.75 | G128: 2417 | H128: 2438.45 | I128: 67683 | J128: 165361705.8 | K128: 2018-03-06 | L128: 9084 | M128: INE871C01020
A129: AVTNPL | B129: EQ | C129: 41 | D129: 41.75 | E129: 39.8 | F129: 40 | G129: 39.9 | H129: 40.5 | I129: 94856 | J129: 3855739.3 | K129: 2018-03-06 | L129: 618 | M129: INE488D01021
A130: AXISBANK | B130: EQ | C130: 526 | D130: 530.65 | E130: 511.2 | F130: 517.35 | G130: 512.5 | H130: 524.55 | I130: 12240160 | J130: 6419343386 | K130: 2018-03-06 | L130: 124317 | M130: INE238A01034
A131: AXISCADES | B131: EQ | C131: 161.6 | D131: 163.95 | E131: 145.05 | F131: 152.4 | G131: 151 | H131: 160.1 | I131: 97783 | J131: 15384361.95 | K131: 2018-03-06 | L131: 1923 | M131: INE555B01013
A132: AXISGOLD | B132: EQ | C132: 2710 | D132: 2710 | E132: 2682.1 | F132: 2699.55 | G132: 2690.1 | H132: 2708.6 | I132: 326 | J132: 878587.15 | K132: 2018-03-06 | L132: 41 | M132: INF846K01347
A133: AXISNIFTY | B133: EQ | C133: 1052 | D133: 1052 | E133: 1024.97 | F133: 1025.28 | G133: 1024.97 | H133: 1044.47 | I133: 107 | J133: 111401.87 | K133: 2018-03-06 | L133: 10 | M133: INF846K01ZL0
A134: AYMSYNTEX | B134: EQ | C134: 68.2 | D134: 68.8 | E134: 65.25 | F134: 65.8 | G134: 66 | H134: 66.95 | I134: 22897 | J134: 1544955.9 | K134: 2018-03-06 | L134: 201 | M134: INE193B01039
A135: BAFNAPHARM | B135: EQ | C135: 27 | D135: 27.2 | E135: 25.8 | F135: 26.05 | G135: 26.05 | H135: 26.55 | I135: 19791 | J135: 522853.35 | K135: 2018-03-06 | L135: 109 | M135: INE878I01014
A136: BAGFILMS | B136: EQ | C136: 5.75 | D136: 6 | E136: 5.7 | F136: 5.75 | G136: 5.7 | H136: 5.75 | I136: 55778 | J136: 328346.85 | K136: 2018-03-06 | L136: 142 | M136: INE116D01028
A137: BAJAJ-AUTO | B137: EQ | C137: 2969.9 | D137: 2976.05 | E137: 2883.25 | F137: 2899.2 | G137: 2909.8 | H137: 2943.55 | I137: 258501 | J137: 759722927.5 | K137: 2018-03-06 | L137: 19425 | M137: INE917I01010
A138: BAJAJCORP | B138: EQ | C138: 481.1 | D138: 482.7 | E138: 463.35 | F138: 468.4 | G138: 463.5 | H138: 481.45 | I138: 391130 | J138: 187659737.2 | K138: 2018-03-06 | L138: 1260 | M138: INE933K01021
A139: BAJAJELEC | B139: EQ | C139: 551 | D139: 577 | E139: 547 | F139: 567.95 | G139: 566 | H139: 546.55 | I139: 1114400 | J139: 629685569.4 | K139: 2018-03-06 | L139: 28785 | M139: INE193E01025
A140: BAJAJFINSV | B140: EQ | C140: 5075.5 | D140: 5097.95 | E140: 4955 | F140: 4980.65 | G140: 4957 | H140: 5037.45 | I140: 86842 | J140: 436901346.8 | K140: 2018-03-06 | L140: 11684 | M140: INE918I01018
A141: BAJAJHIND | B141: EQ | C141: 12.3 | D141: 12.35 | E141: 11.6 | F141: 11.75 | G141: 11.75 | H141: 12.2 | I141: 3343081 | J141: 39728038.6 | K141: 2018-03-06 | L141: 4791 | M141: INE306A01021
A142: BAJAJHLDNG | B142: EQ | C142: 2720.6 | D142: 2955 | E142: 2720.6 | F142: 2761.35 | G142: 2759.95 | H142: 2720.6 | I142: 54499 | J142: 155230675.1 | K142: 2018-03-06 | L142: 9512 | M142: INE118A01012
A143: BAJFINANCE | B143: EQ | C143: 1655 | D143: 1671.85 | E143: 1627.6 | F143: 1637.75 | G143: 1628.75 | H143: 1636.95 | I143: 944176 | J143: 1560069889 | K143: 2018-03-06 | L143: 36068 | M143: INE296A01024
A144: BALAJITELE | B144: EQ | C144: 136.35 | D144: 142 | E144: 136.35 | F144: 138.1 | G144: 137.75 | H144: 136.3 | I144: 125829 | J144: 17470231.2 | K144: 2018-03-06 | L144: 1057 | M144: INE794B01026
A145: BALAMINES | B145: EQ | C145: 633 | D145: 635.05 | E145: 613 | F145: 616.45 | G145: 614 | H145: 627.45 | I145: 25742 | J145: 16105239.2 | K145: 2018-03-06 | L145: 1507 | M145: INE050E01027
A146: BALKRISHNA | B146: EQ | C146: 73.85 | D146: 73.85 | E146: 71.8 | F146: 72.15 | G146: 71.85 | H146: 71.75 | I146: 1887 | J146: 136471.4 | K146: 2018-03-06 | L146: 36 | M146: INE875R01011
A147: BALKRISIND | B147: EQ | C147: 1035 | D147: 1048.45 | E147: 1010 | F147: 1015.4 | G147: 1015.05 | H147: 1035.3 | I147: 172735 | J147: 178126836 | K147: 2018-03-06 | L147: 7332 | M147: INE787D01026
A148: BALLARPUR | B148: EQ | C148: 13.2 | D148: 13.55 | E148: 12.8 | F148: 12.9 | G148: 12.95 | H148: 13.15 | I148: 1206129 | J148: 15794966.05 | K148: 2018-03-06 | L148: 1410 | M148: INE294A01037
A149: BALMLAWRIE | B149: EQ | C149: 229.1 | D149: 231.3 | E149: 226.7 | F149: 227.2 | G149: 227.25 | H149: 228 | I149: 39221 | J149: 8957388.15 | K149: 2018-03-06 | L149: 1082 | M149: INE164A01016
A150: BALPHARMA | B150: EQ | C150: 93.4 | D150: 95.5 | E150: 92.05 | F150: 92.7 | G150: 92.05 | H150: 94.25 | I150: 10108 | J150: 949809.85 | K150: 2018-03-06 | L150: 215 | M150: INE083D01012
A151: BALRAMCHIN | B151: EQ | C151: 109.75 | D151: 109.75 | E151: 98.5 | F151: 100.3 | G151: 98.75 | H151: 107.45 | I151: 6330628 | J151: 653413676 | K151: 2018-03-06 | L151: 31635 | M151: INE119A01028
A152: BANARBEADS | B152: EQ | C152: 63.3 | D152: 64.65 | E152: 61 | F152: 63.25 | G152: 63.45 | H152: 61.6 | I152: 2545 | J152: 160157.35 | K152: 2018-03-06 | L152: 35 | M152: INE655B01011
A153: BANARISUG | B153: EQ | C153: 1719.6 | D153: 1719.6 | E153: 1675 | F153: 1675 | G153: 1675 | H153: 1690.4 | I153: 627 | J153: 1054479.5 | K153: 2018-03-06 | L153: 38 | M153: INE459A01010
A154: BANCOINDIA | B154: EQ | C154: 220.55 | D154: 221.9 | E154: 216.15 | F154: 217.75 | G154: 217.7 | H154: 219.4 | I154: 31297 | J154: 6880696.8 | K154: 2018-03-06 | L154: 1203 | M154: INE213C01025
A155: BANG | B155: EQ | C155: 29.45 | D155: 31 | E155: 28.55 | F155: 29.35 | G155: 28.55 | H155: 29.45 | I155: 2477 | J155: 73605.85 | K155: 2018-03-06 | L155: 44 | M155: INE863I01016
A156: BANKBARODA | B156: EQ | C156: 140.9 | D156: 141.35 | E156: 134.15 | F156: 135.25 | G156: 134.5 | H156: 138.8 | I156: 10841359 | J156: 1499199116 | K156: 2018-03-06 | L156: 50886 | M156: INE028A01039
A157: BANKBEES | B157: EQ | C157: 2526.25 | D157: 2538.5 | E157: 2475 | F157: 2483.22 | G157: 2477 | H157: 2517.28 | I157: 1203 | J157: 3020501.79 | K157: 2018-03-06 | L157: 261 | M157: INF732E01078
A158: BANKINDIA | B158: EQ | C158: 112.05 | D158: 113 | E158: 101.9 | F158: 103.5 | G158: 102 | H158: 110.65 | I158: 12955555 | J158: 1390113158 | K158: 2018-03-06 | L158: 38020 | M158: INE084A01016
A159: BANSWRAS | B159: EQ | C159: 112.65 | D159: 116.25 | E159: 112.55 | F159: 113.05 | G159: 113 | H159: 113.4 | I159: 8045 | J159: 919677.05 | K159: 2018-03-06 | L159: 146 | M159: INE629D01012
A160: BARTRONICS | B160: EQ | C160: 13.45 | D160: 13.5 | E160: 12.65 | F160: 12.75 | G160: 12.8 | H160: 13.3 | I160: 36409 | J160: 469489.5 | K160: 2018-03-06 | L160: 171 | M160: INE855F01034
A161: BASF | B161: EQ | C161: 2108 | D161: 2134.95 | E161: 2005.5 | F161: 2036.2 | G161: 2015 | H161: 2080.4 | I161: 8479 | J161: 17633100.7 | K161: 2018-03-06 | L161: 1314 | M161: INE373A01013
A162: BASML | B162: EQ | C162: 278.5 | D162: 289.25 | E162: 272.65 | F162: 275.25 | G162: 275 | H162: 277.55 | I162: 4865 | J162: 1364163.5 | K162: 2018-03-06 | L162: 141 | M162: INE186H01014
A163: BATAINDIA | B163: EQ | C163: 720 | D163: 724.5 | E163: 711 | F163: 714.9 | G163: 714.5 | H163: 716.2 | I163: 425438 | J163: 305741933.7 | K163: 2018-03-06 | L163: 16272 | M163: INE176A01028
A164: BAYERCROP | B164: EQ | C164: 3800 | D164: 3900 | E164: 3790.05 | F164: 3870.9 | G164: 3840 | H164: 3799.95 | I164: 7294 | J164: 27956811.05 | K164: 2018-03-06 | L164: 1458 | M164: INE462A01022
A165: BBL | B165: EQ | C165: 1724 | D165: 1749 | E165: 1635 | F165: 1650.8 | G165: 1645 | H165: 1710.6 | I165: 43914 | J165: 74886710.65 | K165: 2018-03-06 | L165: 2988 | M165: INE464A01028
A166: BBTC | B166: EQ | C166: 1430.7 | D166: 1445 | E166: 1410 | F166: 1416.15 | G166: 1410 | H166: 1414.2 | I166: 95538 | J166: 136218217.6 | K166: 2018-03-06 | L166: 7421 | M166: INE050A01025
A167: BEARDSELL | B167: EQ | C167: 55.65 | D167: 56.75 | E167: 54 | F167: 55 | G167: 54 | H167: 55.6 | I167: 1584 | J167: 87383.6 | K167: 2018-03-06 | L167: 39 | M167: INE520H01022
A168: BEDMUTHA | B168: EQ | C168: 23.8 | D168: 23.8 | E168: 22 | F168: 22.15 | G168: 22 | H168: 22.65 | I168: 5688 | J168: 129352.35 | K168: 2018-03-06 | L168: 86 | M168: INE844K01012
A169: BEL | B169: EQ | C169: 157.45 | D169: 157.95 | E169: 151.15 | F169: 152 | G169: 152 | H169: 155.55 | I169: 3481768 | J169: 539162163.5 | K169: 2018-03-06 | L169: 34447 | M169: INE263A01024
A170: BEML | B170: EQ | C170: 1325 | D170: 1325 | E170: 1240 | F170: 1259.25 | G170: 1245 | H170: 1360.3 | I170: 2040021 | J170: 2640513512 | K170: 2018-03-06 | L170: 51818 | M170: INE258A01016
A171: BEPL | B171: EQ | C171: 176.15 | D171: 178.15 | E171: 166.2 | F171: 168.75 | G171: 169 | H171: 173.4 | I171: 477574 | J171: 82999776 | K171: 2018-03-06 | L171: 8109 | M171: INE922A01025
A172: BERGEPAINT | B172: EQ | C172: 244 | D172: 248.95 | E172: 240 | F172: 242.6 | G172: 242 | H172: 242.65 | I172: 474721 | J172: 116172535.2 | K172: 2018-03-06 | L172: 14976 | M172: INE463A01038
A173: BFINVEST | B173: EQ | C173: 321.8 | D173: 328 | E173: 311.35 | F173: 315.95 | G173: 318.5 | H173: 315.75 | I173: 93125 | J173: 29984629.35 | K173: 2018-03-06 | L173: 3202 | M173: INE878K01010
A174: BFUTILITIE | B174: EQ | C174: 434 | D174: 448.35 | E174: 417.8 | F174: 425.85 | G174: 418 | H174: 429.1 | I174: 684887 | J174: 300789760.2 | K174: 2018-03-06 | L174: 14747 | M174: INE243D01012
A175: BGRENERGY | B175: EQ | C175: 116.7 | D175: 117.85 | E175: 112.5 | F175: 113.8 | G175: 113.85 | H175: 116.2 | I175: 43176 | J175: 4984807.1 | K175: 2018-03-06 | L175: 812 | M175: INE661I01014
A176: BHAGERIA | B176: EQ | C176: 302.15 | D176: 304.95 | E176: 295 | F176: 296.7 | G176: 295 | H176: 300.4 | I176: 7928 | J176: 2372541.45 | K176: 2018-03-06 | L176: 252 | M176: INE354C01027
A177: BHAGYANGR | B177: EQ | C177: 46.1 | D177: 55.05 | E177: 46.1 | F177: 54.05 | G177: 53 | H177: 45.9 | I177: 2378991 | J177: 127434836.3 | K177: 2018-03-06 | L177: 11767 | M177: INE458B01036
A178: BHAGYAPROP | B178: EQ | C178: 20 | D178: 21.9 | E178: 20 | F178: 21 | G178: 21 | H178: 20.75 | I178: 4599 | J178: 96616.3 | K178: 2018-03-06 | L178: 27 | M178: INE363W01018
A179: BHANDARI | B179: EQ | C179: 3.2 | D179: 3.3 | E179: 3.1 | F179: 3.1 | G179: 3.1 | H179: 3.2 | I179: 93106 | J179: 294722.95 | K179: 2018-03-06 | L179: 119 | M179: INE474E01029
A180: BHARATFIN | B180: EQ | C180: 1032.4 | D180: 1053.75 | E180: 1032.4 | F180: 1038.85 | G180: 1040.25 | H180: 1028.15 | I180: 577249 | J180: 604192355 | K180: 2018-03-06 | L180: 20338 | M180: INE180K01011
A181: BHARATFORG | B181: EQ | C181: 770 | D181: 772.7 | E181: 756.85 | F181: 762 | G181: 764.15 | H181: 763.05 | I181: 863068 | J181: 660530235.4 | K181: 2018-03-06 | L181: 23573 | M181: INE465A01025
A182: BHARATGEAR | B182: EQ | C182: 188.15 | D182: 189.9 | E182: 177 | F182: 179.75 | G182: 181 | H182: 186.45 | I182: 44532 | J182: 8095260.9 | K182: 2018-03-06 | L182: 2050 | M182: INE561C01019
A183: BHARATIWIN | B183: EQ | C183: 36 | D183: 36.09 | E183: 35.83 | F183: 35.94 | G183: 35.85 | H183: 35.88 | I183: 737393 | J183: 26509568.91 | K183: 2018-03-06 | L183: 1174 | M183: INF109KB15Y7
A184: BHARATRAS | B184: EQ | C184: 4440 | D184: 4491.95 | E184: 4360 | F184: 4372.8 | G184: 4365.35 | H184: 4404.8 | I184: 1047 | J184: 4632417.95 | K184: 2018-03-06 | L184: 340 | M184: INE838B01013
A185: BHARATWIRE | B185: EQ | C185: 123 | D185: 126.9 | E185: 117.1 | F185: 118.15 | G185: 117.1 | H185: 119.65 | I185: 128767 | J185: 15800894 | K185: 2018-03-06 | L185: 1626 | M185: INE316L01019
A186: BHARTIARTL | B186: EQ | C186: 423.7 | D186: 427.65 | E186: 410.6 | F186: 413.9 | G186: 410.65 | H186: 421.45 | I186: 3789549 | J186: 1596867752 | K186: 2018-03-06 | L186: 53682 | M186: INE397D01024
A187: BHEL | B187: EQ | C187: 91 | D187: 91.75 | E187: 87.8 | F187: 88.2 | G187: 88.1 | H187: 90.4 | I187: 5104528 | J187: 458743397.4 | K187: 2018-03-06 | L187: 25949 | M187: INE257A01026
A188: BHUSANSTL | B188: EQ | C188: 47.65 | D188: 47.7 | E188: 44.3 | F188: 44.6 | G188: 44.6 | H188: 46.95 | I188: 3193926 | J188: 145381575.6 | K188: 2018-03-06 | L188: 13537 | M188: INE824B01021
A189: BIGBLOC | B189: EQ | C189: 172.95 | D189: 178.4 | E189: 168.1 | F189: 170.2 | G189: 169 | H189: 170.05 | I189: 151033 | J189: 26287788.1 | K189: 2018-03-06 | L189: 3783 | M189: INE412U01017
A190: BIL | B190: EQ | C190: 405 | D190: 408.9 | E190: 400 | F190: 400.4 | G190: 400 | H190: 402.35 | I190: 6331 | J190: 2562884.6 | K190: 2018-03-06 | L190: 197 | M190: INE828A01016
A191: BILENERGY | B191: EQ | C191: 1.05 | D191: 1.05 | E191: 1.05 | F191: 1.05 | G191: 1.05 | H191: 1.1 | I191: 12783 | J191: 13422.15 | K191: 2018-03-06 | L191: 47 | M191: INE607L01029
A192: BILPOWER | B192: EQ | C192: 1.8 | D192: 1.8 | E192: 1.8 | F192: 1.8 | G192: 1.8 | H192: 1.75 | I192: 5525 | J192: 9945 | K192: 2018-03-06 | L192: 11 | M192: INE952D01018
A193: BINANIIND | B193: EQ | C193: 107.25 | D193: 108.7 | E193: 103.3 | F193: 103.8 | G193: 103.6 | H193: 106.5 | I193: 34202 | J193: 3620255.25 | K193: 2018-03-06 | L193: 657 | M193: INE071A01013
A194: BINDALAGRO | B194: EQ | C194: 28.9 | D194: 29.45 | E194: 28.5 | F194: 28.65 | G194: 28.6 | H194: 28.95 | I194: 33232 | J194: 964198.75 | K194: 2018-03-06 | L194: 168 | M194: INE143A01010
A195: BIOCON | B195: EQ | C195: 628.75 | D195: 643.7 | E195: 626 | F195: 632.4 | G195: 630.3 | H195: 623.3 | I195: 3343002 | J195: 2127327277 | K195: 2018-03-06 | L195: 52581 | M195: INE376G01013
A196: BIRLACABLE | B196: EQ | C196: 62.5 | D196: 63.8 | E196: 58.75 | F196: 59.1 | G196: 60 | H196: 61.8 | I196: 26937 | J196: 1616465.1 | K196: 2018-03-06 | L196: 173 | M196: INE800A01015
A197: BIRLACORPN | B197: EQ | C197: 885 | D197: 901 | E197: 848.15 | F197: 855.75 | G197: 856 | H197: 879.25 | I197: 37596 | J197: 33294576.7 | K197: 2018-03-06 | L197: 2175 | M197: INE340A01012
A198: BIRLAMONEY | B198: EQ | C198: 72.35 | D198: 72.65 | E198: 68.95 | F198: 69.35 | G198: 69.5 | H198: 71.6 | I198: 51147 | J198: 3615354.15 | K198: 2018-03-06 | L198: 780 | M198: INE865C01022
A199: BKMINDST | B199: EQ | C199: 35 | D199: 35.5 | E199: 34 | F199: 34 | G199: 34 | H199: 35.35 | I199: 10515 | J199: 365460.35 | K199: 2018-03-06 | L199: 68 | M199: INE831Q01016
A200: BLBLIMITED | B200: EQ | C200: 5.65 | D200: 5.85 | E200: 5.5 | F200: 5.55 | G200: 5.5 | H200: 5.65 | I200: 2963 | J200: 16655.5 | K200: 2018-03-06 | L200: 15 | M200: INE791A01024
... 1321 more rows
